Workbook

Sheet 1st Advance Payment
A1: STATE OF CALIFORNIA | J1: Purchase Authority: 5227
A2: BOARD OF STATE AND COMMUNITY CORRECTIONS | J2: ='INVOICE 15'!L2 -> Purchase Order: 2480
A3: Advance Payment Invoice - Form BSCC 201A (Revised 06/2020)
B6: Program: | C6: Adult Reentry Grant | H6: Grantee: | I6: ='INVOICE 15'!B7 -> ARSOLA's Distribution Center & Community Services
B8: Contract #: | C8: ='INVOICE 15'!B9 -> BSCC 416-19 | H8: Address | I8: ='INVOICE 15'!L56 -> P.O. Box 5520
J9: Address Line 1
B10: Term: | C10: 2019-08-01 | D10: TO | E10: 2023-02-28 | I10: ='INVOICE 15'!L58 -> Oakland, CA 94605
J11: Address Line 2
B13: Advance Payment # | C13: 1 ARG 2019 | G13: Please Note: The California State Controller's Office will send all checks directly to the address listed in the "BSCC Supplier Data" section at the bottom of this invoice.
B15: Effective Invoice # | C15: 1
A18: Advance Payment Invoice
J19: Total Grant Award: | K19: ='INVOICE 15'!B23 -> 3000000
J20: 1st Advance Total: | K20: =SUM(ROUNDUP(K19/3,0)) -> 1000000
J21: Grant Award Balance: | K21: =SUM(K19-K20) -> 2000000
F29: BSCC USE ONLY
B31: Approved By: | C31: Colleen Stoner | J31: BSCC Supplier Data
C32: BSCC Field Representative | I32: ='INVOICE 15'!L54 -> ARSOLASFOO-001
J33: Supplier Name
B34: Date: | C34: 2019-10-23 | I34: ='INVOICE 15'!L52 -> 146589
J35: Supplier Number

Sheet BM 1
M1: STATE OF CALIFORNIA
A2: MODIFICATION REQUEST - (FORM BSCC 223.1 (Revised 04/20) | M2: BOARD OF STATE AND COMMUNITY CORRECTIONS
B5: Line-Item Change | F5: Budget Modification | J5: Project Income Allocation
B6: Check this box if you are modifying narrative details within a line item (or line items) but not changing the budget. | F6: Check this box if you are modifying line-item dollar amounts by moving funds from one line-item to another. | J6: Check this box if you are allocating earned project income.
A8: Important Note: You must provide a detailed justification for all modification requests. All modifications require BSCC Field Representative approval.
A10: Grantee: | B10: ='INVOICE 15'!B7 -> ARSOLA's Distribution Center & Community Services | I10: Program: | J10: ='INVOICE 1 REVISED'!B5 -> Adult Reentry Grant
A12: Address | B12: ='INVOICE 15'!L56 -> P.O. Box 5520 | I12: Project Title: | J12: ='INVOICE 15'!G7 -> RA
B14: ='INVOICE 15'!L58 -> Oakland, CA 94605
A16: Contract #: | B16: ='INVOICE 15'!B9 -> BSCC 416-19 | J16: Modification Request # | K16: 1
A18: Term: | B18: ='INVOICE 1 REVISED'!E9 -> 2019-08-01 | C18: ='INVOICE 1 REVISED'!F9 -> TO | D18: ='INVOICE 1 REVISED'!G9 -> 2023-02-28 | J18: Effective on Invoice # | K18: 1
A20: Line Items | B20: Current Budget | E20: Available Budget | H20: Changes (+/-) | K20: Modified Budget
B21: Grant Funds | C21: Project Income | D21: TOTAL | E21: Grant Funds | F21: Project Income | G21: TOTAL | H21: Grant Funds | I21: Project Income | J21: TOTAL | K21: Grant Funds | L21: Project Income | M21: TOTAL
A22: Salaries & Benefits | B22: 930300 | C22: 0 | D22: =SUM(B22:C22) -> 930300 | E22: ='INVOICE 1 REVISED'!K15 -> 833387 | F22: ='INVOICE 1 REVISED'!L15 -> 0 | G22: =SUM(E22:F22) -> 833387 | H22: -96913 | I22: 0 | J22: =SUM(H22:I22) -> -96913 | K22: =SUM(B22,H22) -> 833387 | L22: 0 | M22: =SUM(K22:L22) -> 833387
A23: Services & Supplies | B23: 2027975 | C23: 0 | D23: 2027975 | E23: ='INVOICE 1 REVISED'!K16 -> 2042200 | F23: ='INVOICE 1 REVISED'!L16 -> 0 | G23: 2042200 | H23: 14225 | I23: 0 | J23: 14225 | K23: 2042200 | L23: 0 | M23: 2042200
A24: Professional Services | B24: 27700 | C24: 0 | D24: 27700 | E24: ='INVOICE 1 REVISED'!K17 -> 71000 | F24: ='INVOICE 1 REVISED'!L17 -> 0 | G24: 71000 | H24: 43300 | I24: 0 | J24: 43300 | K24: 71000 | L24: 0 | M24: 71000
A25: NGO Subcontracts | B25: 0 | C25: 0 | D25: 0 | E25: ='INVOICE 1 REVISED'!K18 -> 0 | F25: ='INVOICE 1 REVISED'!L18 -> 0 | G25: 0 | H25: 0 | I25: 0 | J25: 0 | K25: 0 | L25: 0 | M25: 0
A26: Equipment / Fixed Assets | B26: 2170 | C26: 0 | D26: 2170 | E26: ='INVOICE 1 REVISED'!K19 -> 0 | F26: ='INVOICE 1 REVISED'!L19 -> 0 | G26: 0 | H26: -2170 | I26: 0 | J26: -2170 | K26: 0 | L26: 0 | M26: 0
A27: Data Collection & Progress Reporting | B27: 0 | C27: 0 | D27: 0 | E27: ='INVOICE 1 REVISED'!K20 -> 0 | F27: ='INVOICE 1 REVISED'!L20 -> 0 | G27: 0 | H27: 0 | I27: 0 | J27: 0 | K27: 0 | L27: 0 | M27: 0
A28: Other (Travel, Training, etc.) | B28: 4360 | C28: 0 | D28: 4360 | E28: ='INVOICE 1 REVISED'!K21 -> 4360 | F28: ='INVOICE 1 REVISED'!L21 -> 0 | G28: 4360 | H28: 0 | I28: 0 | J28: 0 | K28: 4360 | L28: 0 | M28: 4360
A29: Indirect Costs | B29: 7495 | C29: 0 | D29: 7495 | E29: ='INVOICE 1 REVISED'!K22 -> 49053 | F29: ='INVOICE 1 REVISED'!L22 -> 0 | G29: 49053 | H29: 41558 | I29: 0 | J29: 41558 | K29: 49053 | L29: 0 | M29: 49053
A30: TOTAL | B30: =SUM(B22:B29) -> 3000000 | C30: 0 | D30: 3000000 | E30: 3000000 | F30: 0 | G30: 3000000 | H30: 0 | I30: 0 | J30: 0 | K30: 3000000 | L30: 0 | M30: 3000000
A32: Project Income | C32: Income reported to date | D32: ='INVOICE 1 REVISED'!D25 -> 0 | F32: Prior allocated income | G32: ='INVOICE 1 REVISED'!G25 -> 0 | H32: Allocating | I32: =I30 -> 0 | L32: Unallocated income balance | M32: =D32-I32 -> 0
A34: JUSTIFICATION FOR MODIFICATION:
A35: ARSOLA’s Budget Mod #1 Effective Invoice 1 At the outset of this project we had fiscal personnel writing the budget and managing the invoices who were not qualified and did not perform as they should have. As a result, we have terminated those staff and have hired a consultant to clean up our budget and implement stricter fiscal controls. As such, we are requesting to modify our budget, effective invoice #1 because, even though invoice #1 was submitted and approved, it was $100 for office supplies. We are requesting to submit a revised $0 invoice #1 and those costs will be absorbed by the organization because we are actually planning to use indirect costs to cover office supplies. We are also requesting to submit the modified budget as such because there were several miscalculations throughout each line item category in the initial budget. Our modified budget would be as follows: Salaries and Benefits Line Item Category: Position Title % FTE or Hourly Rate & Benefits Grant Funds Project Director $10,000*.75% FTE = $7,500x43 months - No Benefits $322,500 Administrative Coordinator $7,500*.25% FTE=$1,875x15 months - No Benefits $28,125 Financial Officer $8,000*.25% FTE=$2,000x43 months - No Benefits $ 86,000 Financial Assistant $6,400*.50% FTE=$3,200x17 months - No Benefits $54,400 Data Manager $7,500*.50% FTE=$3,750x15 months - No Benefits $56,250 Executive Assistant $4,320*.75% FTE=$3,240x28 months - No Benefits $90,720 Program Manager $5,000*.75% FTE=$3,750x28 months - No Benefits $105,000 Salary Deductions Eliminated line item 0 Employer Payroll Taxes Total Salaries $742,995 average 10% of Wages for 43 months $74,300 Payroll Processing Fees Total ADP average monthly payroll processing, Quarterly/Annual payroll reports, HR service fees for 43 months 10,932 Workers Compensation Insurance Estimated $120 for 43 months 5,160 Total 833,387 Justification: We request the Project Director be increased by $7,500 to correct a miscalculation of the time of service from 3.5 years to 43 months. We request for the Administrative Coordinator position to be a temporary position that will be funded from 8/1/2019-10/31/2020. This position will be eliminated as of 10/31/2020 because it is being replaced by the Executive Assistant. We request to reduce the time allocation for the Financial Officer from .50 FTE to .25 FTE because we realized the Financial Officer was not spending .50 FTE to complete the responsibilities for that position. We request to add a new detail line item allocation of $54,400 for a Financial Assistant position to be a temporary position to perform bookkeeping and payroll processing duties that will be funded from 9/1/2019-1/31/2021. This position will be eliminated as of 1/31/2021 and duties will be incorporated by the Financial Officer. We request for the Data Manager position to be a temporary position that will be funded from 8/1/2019-10/31/2020. This position will be eliminated as of 10/31/2020 because these duties are being incorporated into the Program Manager position. We request to add a new detail line for an Executive Assistant allocating $90,720 because we realized we need a daily operating assistant to coordinate and maintain our program responsibilities as well as requirements (job description attached) We request to add a new detail line for a Program Manager allocating $105,000 because we recognize that we need an employee that focuses on our program activities, participant recruitments, supportive services, outcomes and to further develop the program requirements (job description attached) We are eliminating the Salary Deductions line item expenditures originally budgeted in this category because it did not relate to any payroll expenses. We request to add a new detail line for Employer Payroll Taxes allocating $74,300 because the original budget did not include the Payroll Tax portion paid by Employer. Average amount is 10% of wages. We request to add a new detail line for Payroll Process Fees allocating $10,932 because the original did not include payroll service fees. These fees cover expenses such as Payroll Processing, Human Resource Support, Quarterly Reports and Annual Reports. We request to add a new detail line for Workers Compensation Insurance allocating $5,160 because the original budget did not include Worker’s Compensation Insurance for staff. Services and Supplies Line Item Category: Description of Service or Supplies Calculation for Expenditure Grant Funds Office Rent $1,500 a month for 29 months $43,500 Participant Rent $1,500 a month for 68 participants for19 months $1,938,000 Security Deposit $1,500 avg. rent deposits for 34 properties $51,000 Move-In & Move Out Costs $125 Est. average cost x 30 units / $3,750 $175 Est x x 34 units / $5,950 $9,700 Total $2,042,200 Justification: We are requesting to eliminate the detail lines for Office Supplies because we plan to address these costs via the Indirect Cost Line Item Category. We are requesting to eliminate the detail line for Office Services because those costs were originally miscalculated and not properly identified. The Rental Services detail line is being eliminated because utilities are included in the monthly rent amount. We are requesting to add a new detail line for Office Rent because it is necessary to have an office suite for the maintenance of the ARG program records and documents and to interview the incoming participants. We secured the new office space effective 10/1/2020 in the amount of $1500 per month. We are requesting to add a new detail line for Security Deposits allocating $51,000 because this was originally included with the “Participant Rents” and we discovered that we will not likely need to pay deposits for each participant because we will backfill vacancies as participants are eligible to remain in housing for 19 months. We are requesting to add a new detail line for Move-In & Move-Out Costs allocating $8680 because the original budget did not include these costs. Estimated average costs will cover: Cleaning, Furnishing & Supplies $125 x 30 units = $3750 Repairs & Maintenance $175 x 34 units = $4930 Total = $8680 We are also requesting to change the detail line originally identified as “Rents” to “Participant Rents” and we are reducing that line from $1,968,000 to $1,938,000 because the original budget miscalculated rents for 32 units @ $1500 and included $4500 for deposits and expenses. However, the “Participant Rents” should be calculated at $1500 x 19 months x 68 participants = $1,938,000. Professional Services: Description of Professional Service Calculation for Expenditure Grant Funds Operational Consultant Average $2,000 a month for 28 months 56,000 Accountant (CPA) Average $3,000 a year for 2019-2023 reporting periods. 15,000 Total 71,000 Justification: We are requesting to eliminate the original detail line items for Legal and Website Maintenance because these costs are more appropriately accounted for in the Indirect Cost Line Item Category. The Project Assistant is being eliminated because we realized the duties and tasks that were originally identified are included in the salary position of the Program Manager, as such, this position was not necessary. The Operational Consultant is a new addition and will support the projects State compliances requirements and to develop an operational system to provide computerized analysis of program financials & service outcomes. The position will be paid an average of $2,000 each month; however, the actual monthly charges may vary each month. The CPA will be responsible for preparing Financial Statements and Tax Returns for the exclusive preparation of ARG program years 2019-2023. Non-Governmental Organizations (NGO) Subcontracts Line Item Category: NO CHANGE $0 Equipment/Fixed Assets Line Item Category: We are eliminating the expenditures originally budgeted in this category. Justification: We are eliminating the items charged in the original budget because the expense is nominal and would be better accounted for in the Indirect Cost Line Item. Data Collection and Progress Reporting Line Item Category: NO CHANGE $0 Other (Travel, Training, etc.) Line Item Category: NO CHANGE $4360 Indirect Cost Line Item Category: 5% of total project cost $49,053. Justification: To correct a miscalculation of the original budget submitted which allocated $7,495. We want to add $41,558 to this category to include indirect costs for operational rental assistance expenses. Amount will be no more than allowed amount based on the calculation of the budget.
A54: PERSON PREPARING REPORT | I54: AUTHORIZED FINANCIAL OFFICER
I55: I hereby certify that I am the authorized financial officer of the herein named agency. I further certify that I have not violated any of the provisions of Section 1090 of the Government Code in incurring the expenditures reported in this invoice, nor in any other way; that Sections 1090 through 1096 of the Government Code will not be violated in any way in the expenditure of funds pursuant to this invoice; that statement of funds above is true, correct, and in accordance with program provisions in all respects; and that all expenditures submitted after the expiration date of this contract are for the purpose of substantiating obligations legally incurred during the contract period. Furthermore, by submitting this invoice, I acknowledge that it must adhere to all of the requirements in the BSCC Grant Administration Guide, including any updates to the Guide during the term of the grant agreement.
A56: Jennifer Walker-Kemp, Operational Consultant
A57: Name, Title
A58: 510) 798-1855
A59: Phone
A60: jennifersbie@sbcglobal.net
A61: Email
A62: 2021-01-14
A63: Date
I65: Latosha Reynolds, Financial Officer
I66: Name, Title
I67: (443) 253-0421
I68: Phone
I69: 2021-01-14
I70: Date
A72: BSCC USE ONLY
A73: Date Received: | C73: 2021-01-14 | H73: Approved By: | I73: Tanya Hill | L73: Date: | M73: 2021-01-15
I74: BSCC Field Representative

Sheet INVOICE 1
A1: STATE OF CALIFORNIA | L1: Purchase Authority: 5227
A2: BOARD OF STATE AND COMMUNITY CORRECTIONS | L2: Purchase Order: 2480
A3: Financial Invoice - Form BSCC 201 (Revised 06/2020)
A5: Program: | B5: Adult Reentry Grant | K5: Please Note: The California State Controller's Office will send all checks directly to the address listed in the "BSCC Supplier Data" section at the bottom of this invoice.
A7: Grantee: | B7: ARSOLA's Distribution Center & Community Services | F7: Project Title: | G7: RA
A9: Contract #: | B9: BSCC 416-19 | D9: Term: | E9: 2019-08-01 | F9: TO | G9: 2023-02-28 | L9: Invoicing Frequency | M9: Quarterly
A11: Invoice #: | B11: 1 | D11: Reporting Period: | E11: 2019-08-01 | F11: TO | G11: 2019-09-30 | H11: Due: | I11: 2019-11-15 | L11: Final Invoice (Y/N): | M11: No
A13: Line Items | B13: Budget | E13: Prior Expenditures | H13: This Reporting Period | K13: Balance | N13: Advance Disbursements
B14: Grant Funds | C14: Project Income | D14: TOTAL | E14: Grant Funds | F14: Project Income | G14: TOTAL | H14: Grant Funds | I14: Project Income | J14: TOTAL | K14: Grant Funds | L14: Project Income | M14: TOTAL
A15: Salaries & Benefits | B15: 930300 | C15: 0 | D15: =SUM(B15:C15) -> 930300 | E15: 0 | F15: 0 | G15: =SUM(E15:F15) -> 0 | H15: 0 | I15: 0 | J15: =SUM(H15:I15) -> 0 | K15: =B15-E15-H15 -> 930300 | L15: 0 | M15: =SUM(K15:L15) -> 930300 | N15: 1st Advance [10/23/19]
A16: Services & Supplies | B16: 2027975 | C16: 0 | D16: 2027975 | E16: 0 | F16: 0 | G16: =SUM(E16:F16) -> 0 | H16: 100 | I16: 0 | J16: 100 | K16: 2027875 | L16: 0 | M16: 2027875 | N16: ='1st Advance Payment'!K20 -> 1000000
A17: Professional Services | B17: 27700 | C17: 0 | D17: 27700 | E17: 0 | F17: 0 | G17: =SUM(E17:F17) -> 0 | H17: 0 | I17: 0 | J17: 0 | K17: 27700 | L17: 0 | M17: 27700
A18: NGO Subcontracts | B18: 0 | C18: 0 | D18: 0 | E18: 0 | F18: 0 | G18: 0 | H18: 0 | I18: 0 | J18: 0 | K18: 0 | L18: 0 | M18: 0 | N18: 2nd Advance [enter date]
A19: Equipment / Fixed Assets | B19: 2170 | C19: 0 | D19: 2170 | E19: 0 | F19: 0 | G19: 0 | H19: 0 | I19: 0 | J19: 0 | K19: 2170 | L19: 0 | M19: 2170 | N19: 0
A20: Data Collection & Progress Reporting | B20: 0 | C20: 0 | D20: 0 | E20: 0 | F20: 0 | G20: 0 | H20: 0 | I20: 0 | J20: 0 | K20: 0 | L20: 0 | M20: 0
A21: Other (Travel, Training, etc.) | B21: 4360 | C21: 0 | D21: 4360 | E21: 0 | F21: 0 | G21: 0 | H21: 0 | I21: 0 | J21: 0 | K21: 4360 | L21: 0 | M21: 4360 | N21: 3rd Advance [enter date]
A22: Indirect Costs | B22: 7495 | C22: 0 | D22: =SUM(B22:C22) -> 7495 | E22: 0 | F22: 0 | G22: 0 | H22: 0 | I22: 0 | J22: 0 | K22: 7495 | L22: 0 | M22: 7495 | N22: 0
A23: TOTAL | B23: =SUM(B15:B22) -> 3000000 | C23: 0 | D23: 3000000 | E23: 0 | F23: 0 | G23: 0 | H23: 100 | I23: 0 | J23: 100 | K23: 2999900 | L23: 0 | M23: 2999900 | N23: =SUM(N16+N19+N22) -> 1000000
A25: Project Income | C25: Income reported to date | D25: =I25 -> 0 | F25: Prior allocated income | G25: 0 | H25: This Period | I25: 0 | L25: Unallocated income balance | M25: =D25-G25 -> 0
C27: Grant funds expended to date: | D27: =SUM(E23,H23) -> 100 | G27: Grant funds claimed this period: | H27: =H23 -> 100 | L27: Percent of total disbursed
G28: Advance Disbursement Balance: | H28: =N23-D27 -> 999900 | L28: funds expended to date: | N28: =D27/N23 -> 0.0001
D32: Expenditure Descriptions - Units / $ Amounts | L32: Comments
A33: Salaries & Benefits | B33: Grant Funds | C33: =H15 -> 0 | D33: 0
B34: Project Income | C34: =I15 -> 0
A35: Services & Supplies | B35: Grant Funds | C35: =H16 -> 100 | D35: $33-shipping to BSCC/$67-supplies (2 printer ink) | L35: See receipts attached
B36: Project Income | C36: =I16 -> 0
A37: Professional Services | B37: Grant Funds | C37: =H17 -> 0
B38: Project Income | C38: =I17 -> 0
A39: NGO Subcontracts | B39: Grant Funds | C39: =H18 -> 0
B40: Project Income | C40: =I18 -> 0
A41: Equipment / Fixed Assets | B41: Grant Funds | C41: =H19 -> 0
B42: Project Income | C42: =I19 -> 0
A43: Data Collection & Progress Reporting | B43: Grant Funds | C43: =H20 -> 0
B44: Project Income | C44: =I20 -> 0
A45: Other (Travel, Training, etc.) | B45: Grant Funds | C45: =H21 -> 0
B46: Project Income | C46: =I21 -> 0
A47: Indirect Costs | B47: Grant Funds | C47: =H22 -> 0
B48: Project Income | C48: =I22 -> 0
A49: Project Income Earned | C49: =I25 -> 0
A50: PERSON PREPARING REPORT | E50: AUTHORIZED FINANCIAL OFFICER | L50: BSCC Supplier Data - Internal Use Only
E51: By checking the box below, I hereby certify that I am the authorized financial officer of the herein named agency. I further certify that I have not violated any of the provisions of Section 1090 of the Government Code in incurring the expenditures reported in this invoice, nor in any other way; that Sections 1090 through 1096 of the Government Code will not be violated in any way in the expenditure of funds pursuant to this invoice; that statement of funds above is true, correct, and in accordance with program provisions in all respects; and that all expenditures submitted after the expiration date of this contract are for the purpose of substantiating obligations legally incurred during the contract period. Furthermore, by submitting this invoice, I acknowledge that it must adhere to all of the requirements in the BSCC Grant Administration Guide, including any updates to the Guide during the term of the grant agreement.
A52: Candi Thornton, Project Director | L52: 146589
A53: Name, Title | L53: Supplier ID
A54: 510-830-7851 | L54: ARSOLASFOO-001
A55: Phone | L55: Supplier Name
A56: arsolahouse@sbcglobal.net | L56: P.O. Box 5520
A57: Email | L57: Address Line 1
A58: 2020-07-16 | L58: Oakland, CA 94605
A59: Date | L59: Address Line 2
E61: Laura McCoy, Financial Manager (Acting)
E62: Name, Title
E63: 415-902-5249
E64: Phone
E65: 2020-07-16
E66: Date
A68: BSCC USE ONLY
A69: Date Received: | C69: 2020-07-17 | G69: Approved By: | I69: Tanya Hill | M69: Date: | N69: 2020-07-20
I70: BSCC Field Representative

Sheet INVOICE 1 REVISED
A1: STATE OF CALIFORNIA | L1: Purchase Authority: 5227
A2: BOARD OF STATE AND COMMUNITY CORRECTIONS | L2: Purchase Order: 2480
A3: Financial Invoice - Form BSCC 201 (Revised 06/2020)
A5: Program: | B5: Adult Reentry Grant | K5: Please Note: The California State Controller's Office will send all checks directly to the address listed in the "BSCC Supplier Data" section at the bottom of this invoice.
A7: Grantee: | B7: ARSOLA's Distribution Center & Community Services | F7: Project Title: | G7: RA
A9: Contract #: | B9: BSCC 416-19 | D9: Term: | E9: 2019-08-01 | F9: TO | G9: 2023-02-28 | L9: Invoicing Frequency | M9: Quarterly
A11: Invoice #: | B11: 1 | D11: Reporting Period: | E11: 2019-08-01 | F11: TO | G11: 2019-09-30 | H11: Due: | I11: 2019-11-15 | L11: Final Invoice (Y/N): | M11: No
A13: Line Items | B13: Budget | E13: Prior Expenditures | H13: This Reporting Period | K13: Balance | N13: Advance Disbursements
B14: Grant Funds | C14: Project Income | D14: TOTAL | E14: Grant Funds | F14: Project Income | G14: TOTAL | H14: Grant Funds | I14: Project Income | J14: TOTAL | K14: Grant Funds | L14: Project Income | M14: TOTAL
A15: Salaries & Benefits | B15: 833387 | C15: 0 | D15: =SUM(B15:C15) -> 833387 | E15: 0 | F15: 0 | G15: =SUM(E15:F15) -> 0 | H15: 0 | I15: 0 | J15: =SUM(H15:I15) -> 0 | K15: =B15-E15-H15 -> 833387 | L15: =C15-F15-I15 -> 0 | M15: =SUM(K15:L15) -> 833387 | N15: 1st Advance [10/23/19]
A16: Services & Supplies | B16: 2042200 | C16: 0 | D16: 2042200 | E16: 0 | F16: 0 | G16: =SUM(E16:F16) -> 0 | H16: 0 | I16: 0 | J16: 0 | K16: 2042200 | L16: 0 | M16: 2042200 | N16: ='1st Advance Payment'!K20 -> 1000000
A17: Professional Services | B17: 71000 | C17: 0 | D17: 71000 | E17: 0 | F17: 0 | G17: =SUM(E17:F17) -> 0 | H17: 0 | I17: 0 | J17: 0 | K17: 71000 | L17: 0 | M17: 71000
A18: NGO Subcontracts | B18: 0 | C18: 0 | D18: 0 | E18: 0 | F18: 0 | G18: 0 | H18: 0 | I18: 0 | J18: 0 | K18: 0 | L18: 0 | M18: 0 | N18: 2nd Advance [enter date]
A19: Equipment / Fixed Assets | B19: 0 | C19: 0 | D19: 0 | E19: 0 | F19: 0 | G19: 0 | H19: 0 | I19: 0 | J19: 0 | K19: 0 | L19: 0 | M19: 0 | N19: 0
A20: Data Collection & Progress Reporting | B20: 0 | C20: 0 | D20: 0 | E20: 0 | F20: 0 | G20: 0 | H20: 0 | I20: 0 | J20: 0 | K20: 0 | L20: 0 | M20: 0
A21: Other (Travel, Training, etc.) | B21: 4360 | C21: 0 | D21: 4360 | E21: 0 | F21: 0 | G21: 0 | H21: 0 | I21: 0 | J21: 0 | K21: 4360 | L21: 0 | M21: 4360 | N21: 3rd Advance [enter date]
A22: Indirect Costs | B22: 49053 | C22: 0 | D22: =SUM(B22:C22) -> 49053 | E22: 0 | F22: 0 | G22: 0 | H22: 0 | I22: 0 | J22: 0 | K22: 49053 | L22: 0 | M22: 49053 | N22: 0
A23: TOTAL | B23: =SUM(B15:B22) -> 3000000 | C23: 0 | D23: 3000000 | E23: 0 | F23: 0 | G23: 0 | H23: 0 | I23: 0 | J23: 0 | K23: 3000000 | L23: 0 | M23: 3000000 | N23: =SUM(N16+N19+N22) -> 1000000
A25: Project Income | C25: Income reported to date | D25: =I25 -> 0 | F25: Prior allocated income | G25: 0 | H25: This Period | I25: 0 | L25: Unallocated income balance | M25: =D25-G25 -> 0
C27: Grant funds expended to date: | D27: =SUM(E23,H23) -> 0 | G27: Grant funds claimed this period: | H27: =H23 -> 0 | L27: Percent of total disbursed
G28: Advance Disbursement Balance: | H28: =N23-D27 -> 1000000 | L28: funds expended to date: | N28: =D27/N23 -> 0
D32: Expenditure Descriptions - Units / $ Amounts | L32: Comments
A33: Salaries & Benefits | B33: Grant Funds | C33: =H15 -> 0
B34: Project Income | C34: =I15 -> 0
A35: Services & Supplies | B35: Grant Funds | C35: =H16 -> 0
B36: Project Income | C36: =I16 -> 0
A37: Professional Services | B37: Grant Funds | C37: =H17 -> 0
B38: Project Income | C38: =I17 -> 0
A39: NGO Subcontracts | B39: Grant Funds | C39: =H18 -> 0
B40: Project Income | C40: =I18 -> 0
A41: Equipment / Fixed Assets | B41: Grant Funds | C41: =H19 -> 0
B42: Project Income | C42: =I19 -> 0
A43: Data Collection & Progress Reporting | B43: Grant Funds | C43: =H20 -> 0
B44: Project Income | C44: =I20 -> 0
A45: Other (Travel, Training, etc.) | B45: Grant Funds | C45: =H21 -> 0
B46: Project Income | C46: =I21 -> 0
A47: Indirect Costs | B47: Grant Funds | C47: =H22 -> 0
B48: Project Income | C48: =I22 -> 0
A49: Project Income Earned | C49: =I25 -> 0
A50: PERSON PREPARING REPORT | E50: AUTHORIZED FINANCIAL OFFICER | L50: BSCC Supplier Data - Internal Use Only
E51: By checking the box below, I hereby certify that I am the authorized financial officer of the herein named agency. I further certify that I have not violated any of the provisions of Section 1090 of the Government Code in incurring the expenditures reported in this invoice, nor in any other way; that Sections 1090 through 1096 of the Government Code will not be violated in any way in the expenditure of funds pursuant to this invoice; that statement of funds above is true, correct, and in accordance with program provisions in all respects; and that all expenditures submitted after the expiration date of this contract are for the purpose of substantiating obligations legally incurred during the contract period. Furthermore, by submitting this invoice, I acknowledge that it must adhere to all of the requirements in the BSCC Grant Administration Guide, including any updates to the Guide during the term of the grant agreement.
A52: Jennifer Walker-Kemp, Operational Consultant | L52: 146589
A53: Name, Title | L53: Supplier ID
A54: 510 798 1855 | L54: ARSOLASFOO-001
A55: Phone | L55: Supplier Name
A56: jennifersbie@sbcglobal.net | L56: P.O. Box 5520
A57: Email | L57: Address Line 1
A58: 2021-01-17 | L58: Oakland, CA 94605
A59: Date | L59: Address Line 2
E61: Latosha Reynolds, Financial Officer
E62: Name, Title
E63: (443) 253-0421
E64: Phone
E65: 2021-01-17
E66: Date
A68: BSCC USE ONLY
A69: Date Received: | C69: 2021-03-01 | G69: Approved By: | I69: Tanya Hill | M69: Date: | N69: 2021-03-05
I70: BSCC Field Representative

Sheet INVOICE 2
A1: STATE OF CALIFORNIA | L1: Purchase Authority: 5227
A2: BOARD OF STATE AND COMMUNITY CORRECTIONS | L2: ='INVOICE 1 REVISED'!L2:N2 -> Purchase Order: 2480
A3: Financial Invoice - Form BSCC 201 (Revised 06/2020)
A5: Program: | B5: Adult Reentry Grant | K5: Please Note: The California State Controller's Office will send all checks directly to the address listed in the "BSCC Supplier Data" section at the bottom of this invoice.
A7: Grantee: | B7: ='INVOICE 1 REVISED'!B7 -> ARSOLA's Distribution Center & Community Services | F7: Project Title: | G7: ='INVOICE 1 REVISED'!G7:I7 -> RA
A9: Contract #: | B9: ='INVOICE 1 REVISED'!B9 -> BSCC 416-19 | D9: Term: | E9: 2019-08-01 | F9: TO | G9: 2023-02-28 | L9: Invoicing Frequency | M9: Quarterly
A11: Invoice #: | B11: 2 | D11: Reporting Period: | E11: 2019-10-01 | F11: TO | G11: 2019-12-31 | H11: Due: | I11: 2020-02-14 | L11: Final Invoice (Y/N): | M11: No
A13: Line Items | B13: Budget | E13: Prior Expenditures | H13: This Reporting Period | K13: Balance | N13: Advance Disbursements
B14: Grant Funds | C14: Project Income | D14: TOTAL | E14: Grant Funds | F14: Project Income | G14: TOTAL | H14: Grant Funds | I14: Project Income | J14: TOTAL | K14: Grant Funds | L14: Project Income | M14: TOTAL
A15: Salaries & Benefits | B15: ='INVOICE 1 REVISED'!B15 -> 833387 | C15: ='INVOICE 1 REVISED'!C15 -> 0 | D15: =SUM(B15:C15) -> 833387 | E15: =SUM('INVOICE 1 REVISED'!E15,'INVOICE 1 REVISED'!H15) -> 0 | F15: =SUM('INVOICE 1 REVISED'!F15,'INVOICE 1 REVISED'!I15) -> 0 | G15: =SUM(E15:F15) -> 0 | H15: 96036 | I15: 0 | J15: =SUM(H15:I15) -> 96036 | K15: =B15-E15-H15 -> 737351 | L15: 0 | M15: =SUM(K15:L15) -> 737351 | N15: ='INVOICE 1 REVISED'!N15 -> 1st Advance [10/23/19]
A16: Services & Supplies | B16: ='INVOICE 1 REVISED'!B16 -> 2042200 | C16: ='INVOICE 1 REVISED'!C16 -> 0 | D16: 2042200 | E16: =SUM('INVOICE 1 REVISED'!E16,'INVOICE 1 REVISED'!H16) -> 0 | F16: =SUM('INVOICE 1 REVISED'!F16,'INVOICE 1 REVISED'!I16) -> 0 | G16: =SUM(E16:F16) -> 0 | H16: 38560 | I16: 0 | J16: 38560 | K16: 2003640 | L16: 0 | M16: 2003640 | N16: ='INVOICE 1 REVISED'!N16 -> 1000000
A17: Professional Services | B17: ='INVOICE 1 REVISED'!B17 -> 71000 | C17: ='INVOICE 1 REVISED'!C17 -> 0 | D17: 71000 | E17: =SUM('INVOICE 1 REVISED'!E17,'INVOICE 1 REVISED'!H17) -> 0 | F17: =SUM('INVOICE 1 REVISED'!F17,'INVOICE 1 REVISED'!I17) -> 0 | G17: =SUM(E17:F17) -> 0 | H17: 0 | I17: 0 | J17: 0 | K17: 71000 | L17: 0 | M17: 71000
A18: NGO Subcontracts | B18: ='INVOICE 1 REVISED'!B18 -> 0 | C18: ='INVOICE 1 REVISED'!C18 -> 0 | D18: 0 | E18: =SUM('INVOICE 1 REVISED'!E18,'INVOICE 1 REVISED'!H18) -> 0 | F18: =SUM('INVOICE 1 REVISED'!F18,'INVOICE 1 REVISED'!I18) -> 0 | G18: 0 | H18: 0 | I18: 0 | J18: 0 | K18: 0 | L18: 0 | M18: 0 | N18: ='INVOICE 1 REVISED'!N18 -> 2nd Advance [enter date]
A19: Equipment / Fixed Assets | B19: ='INVOICE 1 REVISED'!B19 -> 0 | C19: ='INVOICE 1 REVISED'!C19 -> 0 | D19: 0 | E19: =SUM('INVOICE 1 REVISED'!E19,'INVOICE 1 REVISED'!H19) -> 0 | F19: =SUM('INVOICE 1 REVISED'!F19,'INVOICE 1 REVISED'!I19) -> 0 | G19: 0 | H19: 0 | I19: 0 | J19: 0 | K19: 0 | L19: 0 | M19: 0 | N19: ='INVOICE 1 REVISED'!N19 -> 0
A20: Data Collection & Progress Reporting | B20: ='INVOICE 1 REVISED'!B20 -> 0 | C20: ='INVOICE 1 REVISED'!C20 -> 0 | D20: 0 | E20: =SUM('INVOICE 1 REVISED'!E20,'INVOICE 1 REVISED'!H20) -> 0 | F20: =SUM('INVOICE 1 REVISED'!F20,'INVOICE 1 REVISED'!I20) -> 0 | G20: 0 | H20: 0 | I20: 0 | J20: 0 | K20: 0 | L20: 0 | M20: 0
A21: Other (Travel, Training, etc.) | B21: ='INVOICE 1 REVISED'!B21 -> 4360 | C21: ='INVOICE 1 REVISED'!C21 -> 0 | D21: 4360 | E21: =SUM('INVOICE 1 REVISED'!E21,'INVOICE 1 REVISED'!H21) -> 0 | F21: =SUM('INVOICE 1 REVISED'!F21,'INVOICE 1 REVISED'!I21) -> 0 | G21: 0 | H21: 417 | I21: 0 | J21: 417 | K21: 3943 | L21: 0 | M21: 3943 | N21: ='INVOICE 1 REVISED'!N21 -> 3rd Advance [enter date]
A22: Indirect Costs | B22: ='INVOICE 1 REVISED'!B22 -> 49053 | C22: ='INVOICE 1 REVISED'!C22 -> 0 | D22: =SUM(B22:C22) -> 49053 | E22: =SUM('INVOICE 1 REVISED'!E22,'INVOICE 1 REVISED'!H22) -> 0 | F22: =SUM('INVOICE 1 REVISED'!F22,'INVOICE 1 REVISED'!I22) -> 0 | G22: 0 | H22: 6751 | I22: 0 | J22: 6751 | K22: 42302 | L22: 0 | M22: 42302 | N22: ='INVOICE 1 REVISED'!N22 -> 0
A23: TOTAL | B23: =SUM(B15:B22) -> 3000000 | C23: 0 | D23: 3000000 | E23: 0 | F23: 0 | G23: 0 | H23: 141764 | I23: 0 | J23: 141764 | K23: 2858236 | L23: 0 | M23: 2858236 | N23: =SUM(N16+N19+N22) -> 1000000
A25: Project Income | C25: Income reported to date | D25: ='INVOICE 1 REVISED'!D25+I25 -> 104 | F25: Prior allocated income | G25: 0 | H25: This Period | I25: 104 | L25: Unallocated income balance | M25: =D25-G25 -> 104
C27: Grant funds expended to date: | D27: =SUM(E23,H23) -> 141764 | G27: Grant funds claimed this period: | H27: =H23 -> 141764 | L27: Percent of total disbursed
G28: Advance Disbursement Balance: | H28: =N23-D27 -> 858236 | L28: funds expended to date: | N28: =D27/N23 -> 0.141764
D32: Expenditure Descriptions - Units / $ Amounts | L32: Comments
A33: Salaries & Benefits | B33: Grant Funds | C33: =H15 -> 96036 | D33: Project Director - Candi Thornton - $9,944.40 month @ .75% = $7,083.34 x 2 months =$14,166.68 Retro Pay Periods 8/1/2019-09/30/2019 Project Director $9,944.40 month @ .75% = $7,083.34 x 1 month = $7,083.34 Retro Pay Period 10/1/2019 -10/31/2019 Project Director $10,000.00 month @ .75% = $7,500.00 x 2 months = $15,000.00 Pay Period 11/1/2019 - 12/31/2019 Data Manager - Laura McCoy (Aug 2019) $7,500.00 month @ .50% = $3,750.00 x 1 month = $3,750.00 Retro Pay Periods 8/1/-31/2019 Data Manager - Letica Rivera $ 7,500.00 month @ .50% = $3,750.00 x 2 months = $7,500.00 Retro Pay Periods 9/1/2019-10/30/2019 Data Manager - Laura McCoy (Nov 2019) $7,500.00 month @ .50% = $3,750.00 x 1 month = $3,750.00 Pay Period 11/1-30/2019 Data Manager - Laura McCoy (Dec 2019) $7,500.00 month @ .50% = $3,750.00 x 1 month = $3,750.00 Pay Period 12/1-31/2019 Financial Assistant - Laura McCoy (Sep 2019) $3,066.64 month @ .50% = $1,533.32 x 1 month = $1,533.32 Retro Pay Period 9/1-30/2019 Financial Assistant - Bernice Tingle $3,333.36 month @ .50% = $1,666.68 x 2 months = $3,333.36 Retro Pay Periods 09/1/2019 - 10/31/2019 Financial Assistant - Laura McCoy (Oct 2019)$3,066.64 month @ .50% = $1,533.32 x 1 month = $1,533.32 Retro Pay Period 10/1-31/2019 Financial Assistant - Laura McCoy (Nov 2019) $2,400.00 month @ .50% = $1,200.00 x 1 month = $1,200.00 Pay Period 11/1-30/2019 Financial Assistant - Bernice Tingle $4,000.00 month @ .50% = $2,000.00 x 2 months = $4,000.00 Pay Periods 11/1/2019 - 12/31/2019 Financial Assistant - Laura McCoy (Dec 2019) $2,400.00 month @ .50% = $1,200.00 x 1 month = $1,200.00 Pay Period 12/1-31/2019 Financial Officer - Laura McCoy (Aug 2019) $8,000.00 month @ .25% = $2,000.00 x 1 month = $2,000.00 Retro Pay Period 8/1/2019-08/01/2019 Financial Officer - Laura McCoy (Sep 2019) $8,000.00 month @ .25% = $2,000.00 x 1 month = $2,000.00 Retro Pay Period 9/1/2019-09/30/2019 Financial Officer - Laura McCoy (Oct 2019) $8,000.00 month @ .25% = $2,000.00 x 1 month = $2,000.00 Retro Pay Period 10/1/2019 -10/31/2019 Financial Officer - Laura McCoy (Nov 2019) $2,700.00 month @ .25% = $675.00 x 1 month = $675.00 Pay Period 11/1/2019 - 11/30/2019 Financial Officer - Laura McCoy (Dec 2019) $2,700.00 month @ .25% = $675.00 x 1 month = $675.00 Pay Period 12/1/2019 - 12/31/2019 Administrative Coordinator - Laura McCoy (Aug 2019) $3,333.36 month @ .25% = $1,333.34 x 1 month = $1,333.34 Retro Pay Periods 8/1-31/2019 Administrative Coordinator - Laura McCoy (Sep 2019) $7,500.00 month @ .25% = 1,875.00 x 1 month = $1,875.00 Retro Pay Periods 9/1-30/2019 Administrative Coordinator - Laura McCoy (Oct 2019) $7,500.00 month @ .25% = 1,875.00 x 1 month = $1,875.00 Retro Pay Period 10/1-30/2019 Administrative Coordinator - Laura McCoy (Nov 2019) $7,500.00 month @ .25% = 1,875.00 x 1 month = $1,875.00 Pay Period 11/1-30/2019 Administrative Coordinator - Laura McCoy (Dec 2019) $7,500.00 month @ .25% = 1,875.00 x 1 month = $1,875.00 Pay Period 12/1-31/2019 Program Manager - Laura McCoy (Sep 2019) $2,233.36 month @ .75% = $1,675.02 x 1 month = $1,675.02 Retro Pay Period 9/1/2019-09/30/2019 Program Manager - Laura McCoy (Oct 2019) $2,233.36 month @ .75% = $1,675.02 x 1 month = $1,675.02 Retro Pay Period 10/1/2019 -10/31/2019 Payroll Processing Fees $490.80, Workers Comp $382.90, Employer Payroll Taxes $7,828.99
B34: Project Income | C34: =I15 -> 0
A35: Services & Supplies | B35: Grant Funds | C35: =H16 -> 38560 | D35: 13 Rents Participants $27,059.60,12 Rental Security Deposits $11,500.00 = $38,559.60
B36: Project Income | C36: =I16 -> 0
A37: Professional Services | B37: Grant Funds | C37: =H17 -> 0
B38: Project Income | C38: =I17 -> 0
A39: NGO Subcontracts | B39: Grant Funds | C39: =H18 -> 0
B40: Project Income | C40: =I18 -> 0
A41: Equipment / Fixed Assets | B41: Grant Funds | C41: =H19 -> 0
B42: Project Income | C42: =I19 -> 0
A43: Data Collection & Progress Reporting | B43: Grant Funds | C43: =H20 -> 0
B44: Project Income | C44: =I20 -> 0
A45: Other (Travel, Training, etc.) | B45: Grant Funds | C45: =H21 -> 417 | D45: Travel & Per Diem $164.00, Mileage $252.52 = $416.52 for training in Sacramento
B46: Project Income | C46: =I21 -> 0
A47: Indirect Costs | B47: Grant Funds | C47: =H22 -> 6751 | D47: Total Expenses $135,013 x 5% = $6,750.65
B48: Project Income | C48: =I22 -> 0
A49: Project Income Earned | C49: =I25 -> 104 | D49: Income is Interest Income from acounts saving $104 and checking $0
A50: PERSON PREPARING REPORT | E50: AUTHORIZED FINANCIAL OFFICER | L50: BSCC Supplier Data - Internal Use Only
E51: By checking the box below, I hereby certify that I am the authorized financial officer of the herein named agency. I further certify that I have not violated any of the provisions of Section 1090 of the Government Code in incurring the expenditures reported in this invoice, nor in any other way; that Sections 1090 through 1096 of the Government Code will not be violated in any way in the expenditure of funds pursuant to this invoice; that statement of funds above is true, correct, and in accordance with program provisions in all respects; and that all expenditures submitted after the expiration date of this contract are for the purpose of substantiating obligations legally incurred during the contract period. Furthermore, by submitting this invoice, I acknowledge that it must adhere to all of the requirements in the BSCC Grant Administration Guide, including any updates to the Guide during the term of the grant agreement.
A52: Jennifer Walker-Kemp, Operational Consultant | L52: ='INVOICE 1 REVISED'!L52:N52 -> 146589
A53: Name, Title | L53: Supplier ID
A54: 510 798 1855 | L54: ='INVOICE 1 REVISED'!L54:N54 -> ARSOLASFOO-001
A55: Phone | L55: Supplier Name
A56: jennifersbie@sbcglobal.net | L56: ='INVOICE 1 REVISED'!L56:N56 -> P.O. Box 5520
A57: Email | L57: Address Line 1
A58: 2021-01-17 | L58: ='INVOICE 1 REVISED'!L58:N58 -> Oakland, CA 94605
A59: Date | L59: Address Line 2
E61: Latosha Reynolds, Financial Officer
E62: Name, Title
E63: 443-253-0421
E64: Phone
E65: 2021-03-01
E66: Date
A68: BSCC USE ONLY
A69: Date Received: | C69: 2021-03-05 | G69: Approved By: | I69: Tanya Hill | M69: Date: | N69: 2021-03-09
I70: BSCC Field Representative

Sheet INVOICE 3
A1: STATE OF CALIFORNIA | L1: Purchase Authority: 5227
A2: BOARD OF STATE AND COMMUNITY CORRECTIONS | L2: ='INVOICE 2'!L2:N2 -> Purchase Order: 2480
A3: Financial Invoice - Form BSCC 201 (Revised 06/2020)
A5: Program: | B5: Adult Reentry Grant | K5: Please Note: The California State Controller's Office will send all checks directly to the address listed in the "BSCC Supplier Data" section at the bottom of this invoice.
A7: Grantee: | B7: ='INVOICE 2'!B7 -> ARSOLA's Distribution Center & Community Services | F7: Project Title: | G7: ='INVOICE 2'!G7:I7 -> RA
A9: Contract #: | B9: ='INVOICE 2'!B9 -> BSCC 416-19 | D9: Term: | E9: 2019-08-01 | F9: TO | G9: 2023-02-28 | L9: Invoicing Frequency | M9: Quarterly
A11: Invoice #: | B11: 3 | D11: Reporting Period: | E11: 2020-01-01 | F11: TO | G11: 2020-03-31 | H11: Due: | I11: 2020-05-15 | L11: Final Invoice (Y/N): | M11: No
A13: Line Items | B13: Budget | E13: Prior Expenditures | H13: This Reporting Period | K13: Balance | N13: Advance Disbursements
B14: Grant Funds | C14: Project Income | D14: TOTAL | E14: Grant Funds | F14: Project Income | G14: TOTAL | H14: Grant Funds | I14: Project Income | J14: TOTAL | K14: Grant Funds | L14: Project Income | M14: TOTAL
A15: Salaries & Benefits | B15: ='INVOICE 2'!B15 -> 833387 | C15: ='INVOICE 2'!C15 -> 0 | D15: =SUM(B15:C15) -> 833387 | E15: =SUM('INVOICE 2'!E15,'INVOICE 2'!H15) -> 96036 | F15: =SUM('INVOICE 2'!F15,'INVOICE 2'!I15) -> 0 | G15: =SUM(E15:F15) -> 96036 | H15: 56303 | I15: 0 | J15: =SUM(H15:I15) -> 56303 | K15: =B15-E15-H15 -> 681048 | L15: 0 | M15: =SUM(K15:L15) -> 681048 | N15: ='INVOICE 2'!N15 -> 1st Advance [10/23/19]
A16: Services & Supplies | B16: ='INVOICE 2'!B16 -> 2042200 | C16: ='INVOICE 2'!C16 -> 0 | D16: 2042200 | E16: =SUM('INVOICE 2'!E16,'INVOICE 2'!H16) -> 38560 | F16: =SUM('INVOICE 2'!F16,'INVOICE 2'!I16) -> 0 | G16: =SUM(E16:F16) -> 38560 | H16: 76500 | I16: 0 | J16: 76500 | K16: 1927140 | L16: 0 | M16: 1927140 | N16: ='INVOICE 2'!N16 -> 1000000
A17: Professional Services | B17: ='INVOICE 2'!B17 -> 71000 | C17: ='INVOICE 2'!C17 -> 0 | D17: 71000 | E17: =SUM('INVOICE 2'!E17,'INVOICE 2'!H17) -> 0 | F17: =SUM('INVOICE 2'!F17,'INVOICE 2'!I17) -> 0 | G17: =SUM(E17:F17) -> 0 | H17: 0 | I17: 0 | J17: 0 | K17: 71000 | L17: 0 | M17: 71000
A18: NGO Subcontracts | B18: ='INVOICE 2'!B18 -> 0 | C18: ='INVOICE 2'!C18 -> 0 | D18: 0 | E18: =SUM('INVOICE 2'!E18,'INVOICE 2'!H18) -> 0 | F18: =SUM('INVOICE 2'!F18,'INVOICE 2'!I18) -> 0 | G18: 0 | H18: 0 | I18: 0 | J18: 0 | K18: 0 | L18: 0 | M18: 0 | N18: ='INVOICE 2'!N18 -> 2nd Advance [enter date]
A19: Equipment / Fixed Assets | B19: ='INVOICE 2'!B19 -> 0 | C19: ='INVOICE 2'!C19 -> 0 | D19: 0 | E19: =SUM('INVOICE 2'!E19,'INVOICE 2'!H19) -> 0 | F19: =SUM('INVOICE 2'!F19,'INVOICE 2'!I19) -> 0 | G19: 0 | H19: 0 | I19: 0 | J19: 0 | K19: 0 | L19: 0 | M19: 0 | N19: ='INVOICE 2'!N19 -> 0
A20: Data Collection & Progress Reporting | B20: ='INVOICE 2'!B20 -> 0 | C20: ='INVOICE 2'!C20 -> 0 | D20: 0 | E20: =SUM('INVOICE 2'!E20,'INVOICE 2'!H20) -> 0 | F20: =SUM('INVOICE 2'!F20,'INVOICE 2'!I20) -> 0 | G20: 0 | H20: 0 | I20: 0 | J20: 0 | K20: 0 | L20: 0 | M20: 0
A21: Other (Travel, Training, etc.) | B21: ='INVOICE 2'!B21 -> 4360 | C21: ='INVOICE 2'!C21 -> 0 | D21: 4360 | E21: =SUM('INVOICE 2'!E21,'INVOICE 2'!H21) -> 417 | F21: =SUM('INVOICE 2'!F21,'INVOICE 2'!I21) -> 0 | G21: 417 | H21: 0 | I21: 0 | J21: 0 | K21: 3943 | L21: 0 | M21: 3943 | N21: ='INVOICE 2'!N21 -> 3rd Advance [enter date]
A22: Indirect Costs | B22: ='INVOICE 2'!B22 -> 49053 | C22: ='INVOICE 2'!C22 -> 0 | D22: =SUM(B22:C22) -> 49053 | E22: =SUM('INVOICE 2'!E22,'INVOICE 2'!H22) -> 6751 | F22: =SUM('INVOICE 2'!F22,'INVOICE 2'!I22) -> 0 | G22: 6751 | H22: 6640 | I22: 0 | J22: 6640 | K22: 35662 | L22: 0 | M22: 35662 | N22: ='INVOICE 2'!N22 -> 0
A23: TOTAL | B23: =SUM(B15:B22) -> 3000000 | C23: 0 | D23: 3000000 | E23: 141764 | F23: 0 | G23: 141764 | H23: 139443 | I23: 0 | J23: 139443 | K23: 2718793 | L23: 0 | M23: 2718793 | N23: =SUM(N16+N19+N22) -> 1000000
A25: Project Income | C25: Income reported to date | D25: ='INVOICE 2'!D25+I25 -> 286 | F25: Prior allocated income | G25: 0 | H25: This Period | I25: 182 | L25: Unallocated income balance | M25: =D25-G25 -> 286
C27: Grant funds expended to date: | D27: =SUM(E23,H23) -> 281207 | G27: Grant funds claimed this period: | H27: =H23 -> 139443 | L27: Percent of total disbursed
G28: Advance Disbursement Balance: | H28: =N23-D27 -> 718793 | L28: funds expended to date: | N28: =D27/N23 -> 0.281207
D32: Expenditure Descriptions - Units / $ Amounts | L32: Comments
A33: Salaries & Benefits | B33: Grant Funds | C33: =H15 -> 56303 | D33: Project Director - Candi Thornton $10,000.00 month @ .75% = $7,500.00 x 3 months = $22,500.00 Pay Period 1/1/2020-03/31/2020 Data Manager - Laura McCoy (Jan- Mar 2020) $7,500.00 month @ .50% = $3,750.00 x 3 month = $11,250.00 Pay Period 1/1/2020-03/31/2020 Financial Assistant - Bernice Tingle $4,000.00 month @ .50% = $2,000.00 x 3months = $6,000.00 Pay Period 1/1/2020-03/31/2020 Financial Assistant - Laura McCoy (Jan-Mar 2020) $2,400.00 month @ .50% = $1,200.00 x 3 month = $3,600.00 Pay Period 1/1/2020-03/31/2020 Administrative Coordinator - Laura McCoy (Jan-Mar 2020) $7,500.00 month @ .25% = $1,875.00 x 3 month = $5,625.00 Pay Period 1/1/2020-03/31/2020 Program Manager - Laura McCoy (Jan-Mar 2020) $900.00 month @ .75% = $675.00 x 3 month = $2,025.00 Pay Period 1/1/2020-03/31/2020 Payroll Processing Fees $323.44, Workers Comp $258.11, Employer Payroll Taxes $4,721.56
B34: Project Income | C34: =I15 -> 0
A35: Services & Supplies | B35: Grant Funds | C35: =H16 -> 76500 | D35: 17 Rents Participants $70,500.00, 4 Security Deposits $6,000.00 = $76,500.00
B36: Project Income | C36: =I16 -> 0
A37: Professional Services | B37: Grant Funds | C37: =H17 -> 0
B38: Project Income | C38: =I17 -> 0
A39: NGO Subcontracts | B39: Grant Funds | C39: =H18 -> 0
B40: Project Income | C40: =I18 -> 0
A41: Equipment / Fixed Assets | B41: Grant Funds | C41: =H19 -> 0
B42: Project Income | C42: =I19 -> 0
A43: Data Collection & Progress Reporting | B43: Grant Funds | C43: =H20 -> 0
B44: Project Income | C44: =I20 -> 0
A45: Other (Travel, Training, etc.) | B45: Grant Funds | C45: =H21 -> 0
B46: Project Income | C46: =I21 -> 0
A47: Indirect Costs | B47: Grant Funds | C47: =H22 -> 6640 | D47: Total Expenditures $132,803 x.5% = $6,640.
B48: Project Income | C48: =I22 -> 0
A49: Project Income Earned | C49: =I25 -> 182 | D49: Income is from Interest Income from accounts Savings $182 Checking $0
A50: PERSON PREPARING REPORT | E50: AUTHORIZED FINANCIAL OFFICER | L50: BSCC Supplier Data - Internal Use Only
E51: By checking the box below, I hereby certify that I am the authorized financial officer of the herein named agency. I further certify that I have not violated any of the provisions of Section 1090 of the Government Code in incurring the expenditures reported in this invoice, nor in any other way; that Sections 1090 through 1096 of the Government Code will not be violated in any way in the expenditure of funds pursuant to this invoice; that statement of funds above is true, correct, and in accordance with program provisions in all respects; and that all expenditures submitted after the expiration date of this contract are for the purpose of substantiating obligations legally incurred during the contract period. Furthermore, by submitting this invoice, I acknowledge that it must adhere to all of the requirements in the BSCC Grant Administration Guide, including any updates to the Guide during the term of the grant agreement.
A52: Jennifer Walker-Kemp, Operational Consultant | L52: ='INVOICE 2'!L52:N52 -> 146589
A53: Name, Title | L53: Supplier ID
A54: 510 798 1855 | L54: ='INVOICE 2'!L54:N54 -> ARSOLASFOO-001
A55: Phone | L55: Supplier Name
A56: jennifersbie@sbcglobal.net | L56: ='INVOICE 2'!L56:N56 -> P.O. Box 5520
A57: Email | L57: Address Line 1
A58: 2021-01-17 | L58: ='INVOICE 2'!L58:N58 -> Oakland, CA 94605
A59: Date | L59: Address Line 2
E61: Latosha Reynolds, Financial Officer
E62: Name, Title
E63: 443-253-0421
E64: Phone
E65: 2021-03-01
E66: Date
A68: BSCC USE ONLY
A69: Date Received: | C69: 2021-03-08 | G69: Approved By: | I69: Tanya Hill | M69: Date: | N69: 2021-03-09
I70: BSCC Field Representative

Sheet INVOICE 4
A1: STATE OF CALIFORNIA | L1: Purchase Authority: 5227
A2: BOARD OF STATE AND COMMUNITY CORRECTIONS | L2: ='INVOICE 3'!L2:N2 -> Purchase Order: 2480
A3: Financial Invoice - Form BSCC 201 (Revised 06/2020)
A5: Program: | B5: Adult Reentry Grant | K5: Please Note: The California State Controller's Office will send all checks directly to the address listed in the "BSCC Supplier Data" section at the bottom of this invoice.
A7: Grantee: | B7: ='INVOICE 3'!B7 -> ARSOLA's Distribution Center & Community Services | F7: Project Title: | G7: ='INVOICE 3'!G7:I7 -> RA
A9: Contract #: | B9: ='INVOICE 3'!B9 -> BSCC 416-19 | D9: Term: | E9: 2019-08-01 | F9: TO | G9: 2023-02-28 | L9: Invoicing Frequency | M9: Quarterly
A11: Invoice #: | B11: 4 | D11: Reporting Period: | E11: 2020-04-01 | F11: TO | G11: 2020-06-30 | H11: Due: | I11: 2020-08-14 | L11: Final Invoice (Y/N): | M11: No
A13: Line Items | B13: Budget | E13: Prior Expenditures | H13: This Reporting Period | K13: Balance | N13: Advance Disbursements
B14: Grant Funds | C14: Project Income | D14: TOTAL | E14: Grant Funds | F14: Project Income | G14: TOTAL | H14: Grant Funds | I14: Project Income | J14: TOTAL | K14: Grant Funds | L14: Project Income | M14: TOTAL
A15: Salaries & Benefits | B15: ='INVOICE 3'!B15 -> 833387 | C15: ='INVOICE 3'!C15 -> 0 | D15: =SUM(B15:C15) -> 833387 | E15: =SUM('INVOICE 3'!E15,'INVOICE 3'!H15) -> 152339 | F15: =SUM('INVOICE 3'!F15,'INVOICE 3'!I15) -> 0 | G15: =SUM(E15:F15) -> 152339 | H15: 55531 | I15: 0 | J15: =SUM(H15:I15) -> 55531 | K15: =B15-E15-H15 -> 625517 | L15: 0 | M15: =SUM(K15:L15) -> 625517 | N15: ='INVOICE 3'!N15 -> 1st Advance [10/23/19]
A16: Services & Supplies | B16: ='INVOICE 3'!B16 -> 2042200 | C16: ='INVOICE 3'!C16 -> 0 | D16: 2042200 | E16: =SUM('INVOICE 3'!E16,'INVOICE 3'!H16) -> 115060 | F16: =SUM('INVOICE 3'!F16,'INVOICE 3'!I16) -> 0 | G16: =SUM(E16:F16) -> 115060 | H16: 136932 | I16: 0 | J16: 136932 | K16: 1790208 | L16: 0 | M16: 1790208 | N16: ='INVOICE 3'!N16 -> 1000000
A17: Professional Services | B17: ='INVOICE 3'!B17 -> 71000 | C17: ='INVOICE 3'!C17 -> 0 | D17: 71000 | E17: =SUM('INVOICE 3'!E17,'INVOICE 3'!H17) -> 0 | F17: =SUM('INVOICE 3'!F17,'INVOICE 3'!I17) -> 0 | G17: =SUM(E17:F17) -> 0 | H17: 0 | I17: 0 | J17: 0 | K17: 71000 | L17: 0 | M17: 71000
A18: NGO Subcontracts | B18: ='INVOICE 3'!B18 -> 0 | C18: ='INVOICE 3'!C18 -> 0 | D18: 0 | E18: =SUM('INVOICE 3'!E18,'INVOICE 3'!H18) -> 0 | F18: =SUM('INVOICE 3'!F18,'INVOICE 3'!I18) -> 0 | G18: 0 | H18: 0 | I18: 0 | J18: 0 | K18: 0 | L18: 0 | M18: 0 | N18: ='INVOICE 3'!N18 -> 2nd Advance [enter date]
A19: Equipment / Fixed Assets | B19: ='INVOICE 3'!B19 -> 0 | C19: ='INVOICE 3'!C19 -> 0 | D19: 0 | E19: =SUM('INVOICE 3'!E19,'INVOICE 3'!H19) -> 0 | F19: =SUM('INVOICE 3'!F19,'INVOICE 3'!I19) -> 0 | G19: 0 | H19: 0 | I19: 0 | J19: 0 | K19: 0 | L19: 0 | M19: 0 | N19: ='INVOICE 3'!N19 -> 0
A20: Data Collection & Progress Reporting | B20: ='INVOICE 3'!B20 -> 0 | C20: ='INVOICE 3'!C20 -> 0 | D20: 0 | E20: =SUM('INVOICE 3'!E20,'INVOICE 3'!H20) -> 0 | F20: =SUM('INVOICE 3'!F20,'INVOICE 3'!I20) -> 0 | G20: 0 | H20: 0 | I20: 0 | J20: 0 | K20: 0 | L20: 0 | M20: 0
A21: Other (Travel, Training, etc.) | B21: ='INVOICE 3'!B21 -> 4360 | C21: ='INVOICE 3'!C21 -> 0 | D21: 4360 | E21: =SUM('INVOICE 3'!E21,'INVOICE 3'!H21) -> 417 | F21: =SUM('INVOICE 3'!F21,'INVOICE 3'!I21) -> 0 | G21: 417 | H21: 0 | I21: 0 | J21: 0 | K21: 3943 | L21: 0 | M21: 3943 | N21: ='INVOICE 3'!N21 -> 3rd Advance [enter date]
A22: Indirect Costs | B22: ='INVOICE 3'!B22 -> 49053 | C22: ='INVOICE 3'!C22 -> 0 | D22: =SUM(B22:C22) -> 49053 | E22: =SUM('INVOICE 3'!E22,'INVOICE 3'!H22) -> 13391 | F22: =SUM('INVOICE 3'!F22,'INVOICE 3'!I22) -> 0 | G22: 13391 | H22: 9623 | I22: 0 | J22: 9623 | K22: 26039 | L22: 0 | M22: 26039 | N22: ='INVOICE 3'!N22 -> 0
A23: TOTAL | B23: =SUM(B15:B22) -> 3000000 | C23: 0 | D23: 3000000 | E23: 281207 | F23: 0 | G23: 281207 | H23: 202086 | I23: 0 | J23: 202086 | K23: 2516707 | L23: 0 | M23: 2516707 | N23: =SUM(N16+N19+N22) -> 1000000
A25: Project Income | C25: Income reported to date | D25: ='INVOICE 3'!D25+I25 -> 353 | F25: Prior allocated income | G25: 0 | H25: This Period | I25: 67 | L25: Unallocated income balance | M25: =D25-G25 -> 353
C27: Grant funds expended to date: | D27: =SUM(E23,H23) -> 483293 | G27: Grant funds claimed this period: | H27: =H23 -> 202086 | L27: Percent of total disbursed
G28: Advance Disbursement Balance: | H28: =N23-D27 -> 516707 | L28: funds expended to date: | N28: =D27/N23 -> 0.483293
D32: Expenditure Descriptions - Units / $ Amounts | L32: Comments
A33: Salaries & Benefits | B33: Grant Funds | C33: =H15 -> 55531 | D33: Project Director - Candi Thornton $10,000.00 month @ .75% = $7,500.00 x 3 months = $22,500.00 Pay Period 4/1/2020-6/30/2020 Data Manager - Laura McCoy (Apr-Jun 2020) $7,500.00 month @ .50% = $3,750.00 x 3 month = $11,250.00 Pay Period 4/1/2020-6/30/2020 Financial Assistant - Bernice Tingle $4,000.00 month @ .50% = $2,000.00 x 3months = $6,000.00 Pay Period 4/1/2020-6/30/2020 Financial Assistant - Laura McCoy (Apr-Jun 2020) $2,400.00 month @ .50% = $1,200.00 x 3 month = $3,600.00 Pay Period 4/1/2020-6/30/2020 Administrative Coordinator - Laura McCoy (Apr-Jun 2020) $7,500.00 month @ .25% = 1,875.00 x 3 month = $5,625.00 Pay Period 4/1/2020-6/30/2020 Program Manager - Laura McCoy (Apr-Jun 2020) $900.00 month @ .75% = $675.00 x 3 month = $2,025.00 Pay Period 4/1/2020-6/30/2020 Payroll Processing Fees $338.65, Workers Comp $249.66, Employer Payroll Taxes $3,942.56
B34: Project Income | C34: =I15 -> 0
A35: Services & Supplies | B35: Grant Funds | C35: =H16 -> 136932 | D35: 30 Rents Participants $115,500, 14 Security Deposits $21,000.00, Move-In & Move-Out Cost $431.71 = Total $136,931.71
B36: Project Income | C36: =I16 -> 0
A37: Professional Services | B37: Grant Funds | C37: =H17 -> 0
B38: Project Income | C38: =I17 -> 0
A39: NGO Subcontracts | B39: Grant Funds | C39: =H18 -> 0
B40: Project Income | C40: =I18 -> 0
A41: Equipment / Fixed Assets | B41: Grant Funds | C41: =H19 -> 0
B42: Project Income | C42: =I19 -> 0
A43: Data Collection & Progress Reporting | B43: Grant Funds | C43: =H20 -> 0
B44: Project Income | C44: =I20 -> 0
A45: Other (Travel, Training, etc.) | B45: Grant Funds | C45: =H21 -> 0
B46: Project Income | C46: =I21 -> 0
A47: Indirect Costs | B47: Grant Funds | C47: =H22 -> 9623 | D47: Total Expenditures $192,462.58 @ 5% = $9,623.15
B48: Project Income | C48: =I22 -> 0
A49: Project Income Earned | C49: =I25 -> 67 | D49: Income is Interest Income from accounts Savings $67 and Checking $0
A50: PERSON PREPARING REPORT | E50: AUTHORIZED FINANCIAL OFFICER | L50: BSCC Supplier Data - Internal Use Only
E51: By checking the box below, I hereby certify that I am the authorized financial officer of the herein named agency. I further certify that I have not violated any of the provisions of Section 1090 of the Government Code in incurring the expenditures reported in this invoice, nor in any other way; that Sections 1090 through 1096 of the Government Code will not be violated in any way in the expenditure of funds pursuant to this invoice; that statement of funds above is true, correct, and in accordance with program provisions in all respects; and that all expenditures submitted after the expiration date of this contract are for the purpose of substantiating obligations legally incurred during the contract period. Furthermore, by submitting this invoice, I acknowledge that it must adhere to all of the requirements in the BSCC Grant Administration Guide, including any updates to the Guide during the term of the grant agreement.
A52: Jennifer Walker-Kemp, Operational Consultant | L52: ='INVOICE 3'!L52:N52 -> 146589
A53: Name, Title | L53: Supplier ID
A54: 510 798 1855 | L54: ='INVOICE 3'!L54:N54 -> ARSOLASFOO-001
A55: Phone | L55: Supplier Name
A56: jennifersbie@sbcglobal.net | L56: ='INVOICE 3'!L56:N56 -> P.O. Box 5520
A57: Email | L57: Address Line 1
A58: 2021-01-17 | L58: ='INVOICE 3'!L58:N58 -> Oakland, CA 94605
A59: Date | L59: Address Line 2
E61: Latosha Reynolds, Financial Officer
E62: Name, Title
E63: 443-253-0421
E64: Phone
E65: 2021-03-01
E66: Date
A68: BSCC USE ONLY
A69: Date Received: | C69: 2021-03-05 | G69: Approved By: | I69: Tanya Hill | M69: Date: | N69: 2021-03-09
I70: BSCC Field Representative

Sheet INVOICE 5
A1: STATE OF CALIFORNIA | L1: Purchase Authority: 5227
A2: BOARD OF STATE AND COMMUNITY CORRECTIONS | L2: ='INVOICE 4'!L2:N2 -> Purchase Order: 2480
A3: Financial Invoice - Form BSCC 201 (Revised 06/2020)
A5: Program: | B5: Adult Reentry Grant | K5: Please Note: The California State Controller's Office will send all checks directly to the address listed in the "BSCC Supplier Data" section at the bottom of this invoice.
A7: Grantee: | B7: ='INVOICE 4'!B7 -> ARSOLA's Distribution Center & Community Services | F7: Project Title: | G7: ='INVOICE 4'!G7:I7 -> RA
A9: Contract #: | B9: ='INVOICE 4'!B9 -> BSCC 416-19 | D9: Term: | E9: 2019-08-01 | F9: TO | G9: 2023-02-28 | L9: Invoicing Frequency | M9: Quarterly
A11: Invoice #: | B11: 5 | D11: Reporting Period: | E11: 2020-07-01 | F11: TO | G11: 2020-09-30 | H11: Due: | I11: 2020-11-16 | L11: Final Invoice (Y/N): | M11: No
A13: Line Items | B13: Budget | E13: Prior Expenditures | H13: This Reporting Period | K13: Balance | N13: Advance Disbursements
B14: Grant Funds | C14: Project Income | D14: TOTAL | E14: Grant Funds | F14: Project Income | G14: TOTAL | H14: Grant Funds | I14: Project Income | J14: TOTAL | K14: Grant Funds | L14: Project Income | M14: TOTAL
A15: Salaries & Benefits | B15: ='INVOICE 4'!B15 -> 833387 | C15: ='INVOICE 4'!C15 -> 0 | D15: =SUM(B15:C15) -> 833387 | E15: =SUM('INVOICE 4'!E15,'INVOICE 4'!H15) -> 207870 | F15: =SUM('INVOICE 4'!F15,'INVOICE 4'!I15) -> 0 | G15: =SUM(E15:F15) -> 207870 | H15: 55540 | I15: 0 | J15: =SUM(H15:I15) -> 55540 | K15: =B15-E15-H15 -> 569977 | L15: 0 | M15: =SUM(K15:L15) -> 569977 | N15: ='INVOICE 4'!N15 -> 1st Advance [10/23/19]
A16: Services & Supplies | B16: ='INVOICE 4'!B16 -> 2042200 | C16: ='INVOICE 4'!C16 -> 0 | D16: 2042200 | E16: =SUM('INVOICE 4'!E16,'INVOICE 4'!H16) -> 251992 | F16: =SUM('INVOICE 4'!F16,'INVOICE 4'!I16) -> 0 | G16: =SUM(E16:F16) -> 251992 | H16: 171860 | I16: 0 | J16: 171860 | K16: 1618348 | L16: 0 | M16: 1618348 | N16: ='INVOICE 4'!N16 -> 1000000
A17: Professional Services | B17: ='INVOICE 4'!B17 -> 71000 | C17: ='INVOICE 4'!C17 -> 0 | D17: 71000 | E17: =SUM('INVOICE 4'!E17,'INVOICE 4'!H17) -> 0 | F17: =SUM('INVOICE 4'!F17,'INVOICE 4'!I17) -> 0 | G17: =SUM(E17:F17) -> 0 | H17: 0 | I17: 0 | J17: 0 | K17: 71000 | L17: 0 | M17: 71000
A18: NGO Subcontracts | B18: ='INVOICE 4'!B18 -> 0 | C18: ='INVOICE 4'!C18 -> 0 | D18: 0 | E18: =SUM('INVOICE 4'!E18,'INVOICE 4'!H18) -> 0 | F18: =SUM('INVOICE 4'!F18,'INVOICE 4'!I18) -> 0 | G18: 0 | H18: 0 | I18: 0 | J18: 0 | K18: 0 | L18: 0 | M18: 0 | N18: ='INVOICE 4'!N18 -> 2nd Advance [enter date]
A19: Equipment / Fixed Assets | B19: ='INVOICE 4'!B19 -> 0 | C19: ='INVOICE 4'!C19 -> 0 | D19: 0 | E19: =SUM('INVOICE 4'!E19,'INVOICE 4'!H19) -> 0 | F19: =SUM('INVOICE 4'!F19,'INVOICE 4'!I19) -> 0 | G19: 0 | H19: 0 | I19: 0 | J19: 0 | K19: 0 | L19: 0 | M19: 0 | N19: ='INVOICE 4'!N19 -> 0
A20: Data Collection & Progress Reporting | B20: ='INVOICE 4'!B20 -> 0 | C20: ='INVOICE 4'!C20 -> 0 | D20: 0 | E20: =SUM('INVOICE 4'!E20,'INVOICE 4'!H20) -> 0 | F20: =SUM('INVOICE 4'!F20,'INVOICE 4'!I20) -> 0 | G20: 0 | H20: 0 | I20: 0 | J20: 0 | K20: 0 | L20: 0 | M20: 0
A21: Other (Travel, Training, etc.) | B21: ='INVOICE 4'!B21 -> 4360 | C21: ='INVOICE 4'!C21 -> 0 | D21: 4360 | E21: =SUM('INVOICE 4'!E21,'INVOICE 4'!H21) -> 417 | F21: =SUM('INVOICE 4'!F21,'INVOICE 4'!I21) -> 0 | G21: 417 | H21: 0 | I21: 0 | J21: 0 | K21: 3943 | L21: 0 | M21: 3943 | N21: ='INVOICE 4'!N21 -> 3rd Advance [enter date]
A22: Indirect Costs | B22: ='INVOICE 4'!B22 -> 49053 | C22: ='INVOICE 4'!C22 -> 0 | D22: =SUM(B22:C22) -> 49053 | E22: =SUM('INVOICE 4'!E22,'INVOICE 4'!H22) -> 23014 | F22: =SUM('INVOICE 4'!F22,'INVOICE 4'!I22) -> 0 | G22: 23014 | H22: 11370 | I22: 0 | J22: 11370 | K22: 14669 | L22: 0 | M22: 14669 | N22: ='INVOICE 4'!N22 -> 0
A23: TOTAL | B23: =SUM(B15:B22) -> 3000000 | C23: 0 | D23: 3000000 | E23: 483293 | F23: 0 | G23: 483293 | H23: 238770 | I23: 0 | J23: 238770 | K23: 2277937 | L23: 0 | M23: 2277937 | N23: =SUM(N16+N19+N22) -> 1000000
A25: Project Income | C25: Income reported to date | D25: ='INVOICE 4'!D25+I25 -> 391 | F25: Prior allocated income | G25: 0 | H25: This Period | I25: 38 | L25: Unallocated income balance | M25: =D25-G25 -> 391
C27: Grant funds expended to date: | D27: =SUM(E23,H23) -> 722063 | G27: Grant funds claimed this period: | H27: =H23 -> 238770 | L27: Percent of total disbursed
G28: Advance Disbursement Balance: | H28: =N23-D27 -> 277937 | L28: funds expended to date: | N28: =D27/N23 -> 0.722063
D32: Expenditure Descriptions - Units / $ Amounts | L32: Comments
A33: Salaries & Benefits | B33: Grant Funds | C33: =H15 -> 55540 | D33: Project Director - Candi Thornton $10,000.00 month @ .75% = $7,500.00 x 3 months = $22,500.00 Pay Period 7/1/2020-9/30/2020 Data Manager - Laura McCoy (Jul-Sep 2020) $7,500.00 month @ .50% = $3,750.00 x 3 month = $11,250.00 Pay Period 7/1/2020-9/30/2020 Financial Assistant - Bernice Tingle $4,000.00 month @ .50% = $2,000.00 x 3months = $6,000.00 Pay Period 7/1/2020-9/30/2020 Financial Assistant - Laura McCoy (Jul-Sep 2020) $2,400.00 month @ .50% = $1,200.00 x 3 month = $3,600.00 Pay Period 7/1/2020-9/30/2020 Administrative Coordinator - Laura McCoy (Jul-Sep 2020) $7,500.00 month @ .25% = 1,875.00 x 3 month = $5,625.00 Pay Period 7/1/2020-9/30/2020 Program Manager - Laura McCoy (Jul-Sep 2020) $900.00 month @ .75% = $675.00 x 3 month = $2,025.00 Pay Period 7/1/2020-9/30/2020 Payroll Processing Fees $388.38 Workers Comp $249.66 Employer Payroll Taxes $3,901.56
B34: Project Income | C34: =I15 -> 0
A35: Services & Supplies | B35: Grant Funds | C35: =H16 -> 171860 | D35: 39 Rent Participants $166,500, 9 Security Deposits $4,500.00, Move-In & Move-Out Cost $859.77= Total $171,859.77
B36: Project Income | C36: =I16 -> 0
A37: Professional Services | B37: Grant Funds | C37: =H17 -> 0
B38: Project Income | C38: =I17 -> 0
A39: NGO Subcontracts | B39: Grant Funds | C39: =H18 -> 0
B40: Project Income | C40: =I18 -> 0
A41: Equipment / Fixed Assets | B41: Grant Funds | C41: =H19 -> 0
B42: Project Income | C42: =I19 -> 0
A43: Data Collection & Progress Reporting | B43: Grant Funds | C43: =H20 -> 0
B44: Project Income | C44: =I20 -> 0
A45: Other (Travel, Training, etc.) | B45: Grant Funds | C45: =H21 -> 0
B46: Project Income | C46: =I21 -> 0
A47: Indirect Costs | B47: Grant Funds | C47: =H22 -> 11370 | D47: Total |Expenditures $227,399.37 @ 5% = 11,369.96
B48: Project Income | C48: =I22 -> 0
A49: Project Income Earned | C49: =I25 -> 38 | D49: Income is Interest Income from accounts Savings $38 and Checking $0
A50: PERSON PREPARING REPORT | E50: AUTHORIZED FINANCIAL OFFICER | L50: BSCC Supplier Data - Internal Use Only
E51: By checking the box below, I hereby certify that I am the authorized financial officer of the herein named agency. I further certify that I have not violated any of the provisions of Section 1090 of the Government Code in incurring the expenditures reported in this invoice, nor in any other way; that Sections 1090 through 1096 of the Government Code will not be violated in any way in the expenditure of funds pursuant to this invoice; that statement of funds above is true, correct, and in accordance with program provisions in all respects; and that all expenditures submitted after the expiration date of this contract are for the purpose of substantiating obligations legally incurred during the contract period. Furthermore, by submitting this invoice, I acknowledge that it must adhere to all of the requirements in the BSCC Grant Administration Guide, including any updates to the Guide during the term of the grant agreement.
A52: Jennifer Walker-Kemp, Operational Consultant | L52: ='INVOICE 4'!L52:N52 -> 146589
A53: Name, Title | L53: Supplier ID
A54: 510 798 1855 | L54: ='INVOICE 4'!L54:N54 -> ARSOLASFOO-001
A55: Phone | L55: Supplier Name
A56: jennifersbie@sbcglobal.net | L56: ='INVOICE 4'!L56:N56 -> P.O. Box 5520
A57: Email | L57: Address Line 1
A58: 2021-01-28 | L58: ='INVOICE 4'!L58:N58 -> Oakland, CA 94605
A59: Date | L59: Address Line 2
E61: Latosha Reynolds, Financial Officer
E62: Name, Title
E63: 443-253-0421
E64: Phone
E65: 2021-03-01
E66: Date
A68: BSCC USE ONLY
A69: Date Received: | C69: 2021-03-09 | G69: Approved By: | I69: Tanya Hill | M69: Date: | N69: 2021-03-10
I70: BSCC Field Representative

Sheet INVOICE 6
A1: STATE OF CALIFORNIA | L1: Purchase Authority: 5227
A2: BOARD OF STATE AND COMMUNITY CORRECTIONS | L2: ='INVOICE 5'!L2:N2 -> Purchase Order: 2480
A3: Financial Invoice - Form BSCC 201 (Revised 06/2020)
A5: Program: | B5: Adult Reentry Grant | K5: Please Note: The California State Controller's Office will send all checks directly to the address listed in the "BSCC Supplier Data" section at the bottom of this invoice.
A7: Grantee: | B7: ='INVOICE 5'!B7 -> ARSOLA's Distribution Center & Community Services | F7: Project Title: | G7: ='INVOICE 5'!G7:I7 -> RA
A9: Contract #: | B9: ='INVOICE 5'!B9 -> BSCC 416-19 | D9: Term: | E9: 2019-08-01 | F9: TO | G9: 2023-02-28 | L9: Invoicing Frequency | M9: Quarterly
A11: Invoice #: | B11: 6 | D11: Reporting Period: | E11: 2020-10-01 | F11: TO | G11: 2020-12-31 | H11: Due: | I11: 2021-02-15 | L11: Final Invoice (Y/N): | M11: No
A13: Line Items | B13: Budget | E13: Prior Expenditures | H13: This Reporting Period | K13: Balance | N13: Advance Disbursements
B14: Grant Funds | C14: Project Income | D14: TOTAL | E14: Grant Funds | F14: Project Income | G14: TOTAL | H14: Grant Funds | I14: Project Income | J14: TOTAL | K14: Grant Funds | L14: Project Income | M14: TOTAL
A15: Salaries & Benefits | B15: ='INVOICE 5'!B15 -> 833387 | C15: ='INVOICE 5'!C15 -> 0 | D15: =SUM(B15:C15) -> 833387 | E15: =SUM('INVOICE 5'!E15,'INVOICE 5'!H15) -> 263410 | F15: =SUM('INVOICE 5'!F15,'INVOICE 5'!I15) -> 0 | G15: =SUM(E15:F15) -> 263410 | H15: 57573 | I15: 0 | J15: =SUM(H15:I15) -> 57573 | K15: =B15-E15-H15 -> 512404 | L15: 0 | M15: =SUM(K15:L15) -> 512404 | N15: ='INVOICE 5'!N15 -> 1st Advance [10/23/19]
A16: Services & Supplies | B16: ='INVOICE 5'!B16 -> 2042200 | C16: ='INVOICE 5'!C16 -> 0 | D16: 2042200 | E16: =SUM('INVOICE 5'!E16,'INVOICE 5'!H16) -> 423852 | F16: =SUM('INVOICE 5'!F16,'INVOICE 5'!I16) -> 0 | G16: =SUM(E16:F16) -> 423852 | H16: 184500 | I16: 0 | J16: 184500 | K16: 1433848 | L16: 0 | M16: 1433848 | N16: ='INVOICE 5'!N16 -> 1000000
A17: Professional Services | B17: ='INVOICE 5'!B17 -> 71000 | C17: ='INVOICE 5'!C17 -> 0 | D17: 71000 | E17: =SUM('INVOICE 5'!E17,'INVOICE 5'!H17) -> 0 | F17: =SUM('INVOICE 5'!F17,'INVOICE 5'!I17) -> 0 | G17: =SUM(E17:F17) -> 0 | H17: 5885 | I17: 0 | J17: 5885 | K17: 65115 | L17: 0 | M17: 65115
A18: NGO Subcontracts | B18: ='INVOICE 5'!B18 -> 0 | C18: ='INVOICE 5'!C18 -> 0 | D18: 0 | E18: =SUM('INVOICE 5'!E18,'INVOICE 5'!H18) -> 0 | F18: =SUM('INVOICE 5'!F18,'INVOICE 5'!I18) -> 0 | G18: 0 | H18: 0 | I18: 0 | J18: 0 | K18: 0 | L18: 0 | M18: 0 | N18: ='INVOICE 5'!N18 -> 2nd Advance [enter date]
A19: Equipment / Fixed Assets | B19: ='INVOICE 5'!B19 -> 0 | C19: ='INVOICE 5'!C19 -> 0 | D19: 0 | E19: =SUM('INVOICE 5'!E19,'INVOICE 5'!H19) -> 0 | F19: =SUM('INVOICE 5'!F19,'INVOICE 5'!I19) -> 0 | G19: 0 | H19: 0 | I19: 0 | J19: 0 | K19: 0 | L19: 0 | M19: 0 | N19: ='INVOICE 5'!N19 -> 0
A20: Data Collection & Progress Reporting | B20: ='INVOICE 5'!B20 -> 0 | C20: ='INVOICE 5'!C20 -> 0 | D20: 0 | E20: =SUM('INVOICE 5'!E20,'INVOICE 5'!H20) -> 0 | F20: =SUM('INVOICE 5'!F20,'INVOICE 5'!I20) -> 0 | G20: 0 | H20: 0 | I20: 0 | J20: 0 | K20: 0 | L20: 0 | M20: 0
A21: Other (Travel, Training, etc.) | B21: ='INVOICE 5'!B21 -> 4360 | C21: ='INVOICE 5'!C21 -> 0 | D21: 4360 | E21: =SUM('INVOICE 5'!E21,'INVOICE 5'!H21) -> 417 | F21: =SUM('INVOICE 5'!F21,'INVOICE 5'!I21) -> 0 | G21: 417 | H21: 0 | I21: 0 | J21: 0 | K21: 3943 | L21: 0 | M21: 3943 | N21: ='INVOICE 5'!N21 -> 3rd Advance [enter date]
A22: Indirect Costs | B22: ='INVOICE 5'!B22 -> 49053 | C22: ='INVOICE 5'!C22 -> 0 | D22: =SUM(B22:C22) -> 49053 | E22: =SUM('INVOICE 5'!E22,'INVOICE 5'!H22) -> 34384 | F22: =SUM('INVOICE 5'!F22,'INVOICE 5'!I22) -> 0 | G22: 34384 | H22: 12398 | I22: 0 | J22: 12398 | K22: 2271 | L22: 0 | M22: 2271 | N22: ='INVOICE 5'!N22 -> 0
A23: TOTAL | B23: =SUM(B15:B22) -> 3000000 | C23: 0 | D23: 3000000 | E23: 722063 | F23: 0 | G23: 722063 | H23: 260356 | I23: 0 | J23: 260356 | K23: 2017581 | L23: 0 | M23: 2017581 | N23: =SUM(N16+N19+N22) -> 1000000
A25: Project Income | C25: Income reported to date | D25: ='INVOICE 5'!D25+I25 -> 400 | F25: Prior allocated income | G25: 0 | H25: This Period | I25: 9 | L25: Unallocated income balance | M25: =D25-G25 -> 400
C27: Grant funds expended to date: | D27: =SUM(E23,H23) -> 982419 | G27: Grant funds claimed this period: | H27: =H23 -> 260356 | L27: Percent of total disbursed
G28: Advance Disbursement Balance: | H28: =N23-D27 -> 17581 | L28: funds expended to date: | N28: =D27/N23 -> 0.982419
D32: Expenditure Descriptions - Units / $ Amounts | L32: Comments
A33: Salaries & Benefits | B33: Grant Funds | C33: =H15 -> 57573 | D33: Project Director - Candi Thornton $10,000.00 month @ .75% = $7,500.00 x 3 months = $22,500.00 Pay Period 10/01/2020 -12/31/2020 Data Manager - Laura McCoy (Oct 2020) $7,500.00 month @ .50% = $3,750.00 x 1 month = $3,750 Pay Period 10/01/2020-10/31/2020 Financial Assistant - Laura McCoy (Oct 2020) $2,400.00 month @ .50% = $1,200.00 x 1 month = $1.200.00 Pay Period 10/01/2020-10/31/2020 Financial Assistant - Bernice Tingle $4,000.00 month @ .50% = $2,000.00 x 1months = $2,000.00 Pay Period 10/01/2020-10/31/2020 Financial Assistant - Bernice Tingle $6,400.00 month @ .50% = $3,200.00 x 2months = $6,400.00 Pay Period 11/01/2020-12/31/2020 Administrative Coordinator - Laura McCoy (Oct 2020) $7,500.00 month @ .25% = 1,875.00 x 1 month = $1,875.00 Pay Period 10/01/2020-10/31/2020 Program Manager - Laura McCoy (Oct 2020) $900.00 month @ .75% = $675.00 x 1 month = $675.00 Pay Period 10/01/2020-10/31/2020 Executive Assistant - Succatti Shaw $$4,320.00 month @.75% = $3,240.00 x 2 months = $6,480.00 Pay Period 11/1/2020 - 12/31/2020 Program Manager - Sam Johnson, Sr. $5,000.00 month @.75% = $3,750.00 x 2 months = $7,500.00 Pay Period 11/1/2020 - 12/31/2020 Payroll Processing Fees $429.02 Workers Comp $204.32 Employer Payroll Taxes $4,559.82
B34: Project Income | C34: =I15 -> 0
A35: Services & Supplies | B35: Grant Funds | C35: =H16 -> 184500 | D35: 40 Rent Participants $180,000.00. Office Rents $1,500.00 X 3 months = $4,500.00
B36: Project Income | C36: =I16 -> 0
A37: Professional Services | B37: Grant Funds | C37: =H17 -> 5885 | D37: Operational Consultant $5885.00
B38: Project Income | C38: =I17 -> 0
A39: NGO Subcontracts | B39: Grant Funds | C39: =H18 -> 0
B40: Project Income | C40: =I18 -> 0
A41: Equipment / Fixed Assets | B41: Grant Funds | C41: =H19 -> 0
B42: Project Income | C42: =I19 -> 0
A43: Data Collection & Progress Reporting | B43: Grant Funds | C43: =H20 -> 0
B44: Project Income | C44: =I20 -> 0
A45: Other (Travel, Training, etc.) | B45: Grant Funds | C45: =H21 -> 0
B46: Project Income | C46: =I21 -> 0
A47: Indirect Costs | B47: Grant Funds | C47: =H22 -> 12398 | D47: Total Expenditures $247,958.16 @ 5% = $12,397.90
B48: Project Income | C48: =I22 -> 0
A49: Project Income Earned | C49: =I25 -> 9 | D49: Income is Interest Income from accounts Savings $9.22 and Checking $0
A50: PERSON PREPARING REPORT | E50: AUTHORIZED FINANCIAL OFFICER | L50: BSCC Supplier Data - Internal Use Only
E51: By checking the box below, I hereby certify that I am the authorized financial officer of the herein named agency. I further certify that I have not violated any of the provisions of Section 1090 of the Government Code in incurring the expenditures reported in this invoice, nor in any other way; that Sections 1090 through 1096 of the Government Code will not be violated in any way in the expenditure of funds pursuant to this invoice; that statement of funds above is true, correct, and in accordance with program provisions in all respects; and that all expenditures submitted after the expiration date of this contract are for the purpose of substantiating obligations legally incurred during the contract period. Furthermore, by submitting this invoice, I acknowledge that it must adhere to all of the requirements in the BSCC Grant Administration Guide, including any updates to the Guide during the term of the grant agreement.
A52: Jennifer Walker-Kemp, Operational Consultant | L52: ='INVOICE 5'!L52:N52 -> 146589
A53: Name, Title | L53: Supplier ID
A54: 510 798 1855 | L54: ='INVOICE 5'!L54:N54 -> ARSOLASFOO-001
A55: Phone | L55: Supplier Name
A56: jennifersbie@sbcglobal.net | L56: ='INVOICE 5'!L56:N56 -> P.O. Box 5520
A57: Email | L57: Address Line 1
A58: 2021-03-09 | L58: ='INVOICE 5'!L58:N58 -> Oakland, CA 94605
A59: Date | L59: Address Line 2
E61: Latosha Reynolds, Financial Officer
E62: Name, Title
E63: 443-253-0421
E64: Phone
E65: 2021-03-09
E66: Date
A68: BSCC USE ONLY
A69: Date Received: | C69: 2021-03-20 | G69: Approved By: | I69: Tanya Hill | M69: Date: | N69: 2021-03-23
I70: BSCC Field Representative

Sheet 2nd Advance Payment
A1: STATE OF CALIFORNIA | J1: Purchase Authority: 5227
A2: BOARD OF STATE AND COMMUNITY CORRECTIONS | J2: ='INVOICE 15'!L2 -> Purchase Order: 2480
A3: Advance Payment Invoice - Form BSCC 201A (Revised 06/2020)
B6: Program: | C6: ='INVOICE 1 REVISED'!B5 -> Adult Reentry Grant | H6: Grantee: | I6: ='INVOICE 15'!B7 -> ARSOLA's Distribution Center & Community Services
B8: Contract #: | C8: ='INVOICE 15'!B9 -> BSCC 416-19 | H8: Address | I8: ='INVOICE 15'!L56 -> P.O. Box 5520
J9: Address Line 1
B10: Term: | C10: ='INVOICE 1 REVISED'!E9 -> 2019-08-01 | D10: TO | E10: ='INVOICE 1 REVISED'!G9 -> 2023-02-28 | I10: ='INVOICE 15'!L58 -> Oakland, CA 94605
J11: Address Line 2
B13: Advance Payment # | C13: 2 RA 2019 | G13: Please Note: The California State Controller's Office will send all checks directly to the address listed in the "BSCC Supplier Data" section at the bottom of this invoice.
B15: Effective Invoice # | C15: 7
A18: Advance Payment Invoice
J19: Total Grant Award: | K19: ='1st Advance Payment'!K19 -> 3000000
J20: 2nd Advance Total: | K20: =SUM(ROUNDUP(K19/3,0)) -> 1000000
J21: Grant Award Balance: | K21: =SUM(ROUNDDOWN('1st Advance Payment'!K19-'1st Advance Payment'!K20-'2nd Advance Payment'!K20,0)) -> 1000000
B25: PERSON PREPARING REPORT | G25: AUTHORIZED FINANCIAL OFFICER
B26: Jennifer Walker-Kemp, Operational Consultant | G26: I hereby certify that I am the authorized financial officer of the herein named agency. I further certify that I have not violated any of the provisions of Section 1090 of the Government Code in incurring the expenditures reported in this invoice, nor in any other way; that Sections 1090 through 1096 of the Government Code will not be violated in any way in the expenditure of funds pursuant to this invoice; that statement of funds above is true, correct, and in accordance with program provisions in all respects; and that all expenditures submitted after the expiration date of this contract are for the purpose of substantiating obligations legally incurred during the contract period. Furthermore, by submitting this invoice, I acknowledge that it must adhere to all of the requirements in the BSCC Grant Administration Guide, including any updates to the Guide during the term of the grant agreement.
B27: Name, Title
B28: (510) 798-1855
B29: Phone
B30: jennifersbie@sbcglobal.net
B31: Email
B32: 2021-03-24
B33: Date
G35: Latosha Reynolds, Financial Officer
G36: Name, Title
G37: (443) 253-0421
G38: Phone
G39: Tifon822@yahoo.com
G40: Email
G41: 2021-03-24
G42: Date
G43: Latosha Reynolds
G44: Signature
F48: BSCC USE ONLY
B50: Approved By: | C50: Tanya Hill | J50: BSCC Supplier Data
C51: BSCC Field Representative | I51: ='INVOICE 15'!L54 -> ARSOLASFOO-001
J52: Supplier Name
B53: Date: | C53: 2021-03-23 | I53: ='INVOICE 15'!L52 -> 146589
J54: Supplier Number

Sheet INVOICE 7
A1: STATE OF CALIFORNIA | L1: Purchase Authority: 5227
A2: BOARD OF STATE AND COMMUNITY CORRECTIONS | L2: ='INVOICE 6'!L2:N2 -> Purchase Order: 2480
A3: Financial Invoice - Form BSCC 201 (Revised 06/2020)
A5: Program: | B5: Adult Reentry Grant | K5: Please Note: The California State Controller's Office will send all checks directly to the address listed in the "BSCC Supplier Data" section at the bottom of this invoice.
A7: Grantee: | B7: ='INVOICE 6'!B7 -> ARSOLA's Distribution Center & Community Services | F7: Project Title: | G7: ='INVOICE 6'!G7:I7 -> RA
A9: Contract #: | B9: ='INVOICE 6'!B9 -> BSCC 416-19 | D9: Term: | E9: 2019-08-01 | F9: TO | G9: 2023-02-28 | L9: Invoicing Frequency | M9: Quarterly
A11: Invoice #: | B11: 7 | D11: Reporting Period: | E11: 2021-01-01 | F11: TO | G11: 2021-03-31 | H11: Due: | I11: 2021-05-14 | L11: Final Invoice (Y/N): | M11: No
A13: Line Items | B13: Budget | E13: Prior Expenditures | H13: This Reporting Period | K13: Balance | N13: Advance Disbursements
B14: Grant Funds | C14: Project Income | D14: TOTAL | E14: Grant Funds | F14: Project Income | G14: TOTAL | H14: Grant Funds | I14: Project Income | J14: TOTAL | K14: Grant Funds | L14: Project Income | M14: TOTAL
A15: Salaries & Benefits | B15: ='INVOICE 6'!B15 -> 833387 | C15: ='INVOICE 6'!C15 -> 0 | D15: =SUM(B15:C15) -> 833387 | E15: =SUM('INVOICE 6'!E15,'INVOICE 6'!H15) -> 320983 | F15: =SUM('INVOICE 6'!F15,'INVOICE 6'!I15) -> 0 | G15: =SUM(E15:F15) -> 320983 | H15: 0 | I15: 0 | J15: =SUM(H15:I15) -> 0 | K15: =B15-E15-H15 -> 512404 | L15: 0 | M15: =SUM(K15:L15) -> 512404 | N15: ='INVOICE 6'!N15 -> 1st Advance [10/23/19]
A16: Services & Supplies | B16: ='INVOICE 6'!B16 -> 2042200 | C16: ='INVOICE 6'!C16 -> 0 | D16: 2042200 | E16: =SUM('INVOICE 6'!E16,'INVOICE 6'!H16) -> 608352 | F16: =SUM('INVOICE 6'!F16,'INVOICE 6'!I16) -> 0 | G16: =SUM(E16:F16) -> 608352 | H16: 0 | I16: 0 | J16: 0 | K16: 1433848 | L16: 0 | M16: 1433848 | N16: ='INVOICE 6'!N16 -> 1000000
A17: Professional Services | B17: ='INVOICE 6'!B17 -> 71000 | C17: ='INVOICE 6'!C17 -> 0 | D17: 71000 | E17: =SUM('INVOICE 6'!E17,'INVOICE 6'!H17) -> 5885 | F17: =SUM('INVOICE 6'!F17,'INVOICE 6'!I17) -> 0 | G17: =SUM(E17:F17) -> 5885 | H17: 0 | I17: 0 | J17: 0 | K17: 65115 | L17: 0 | M17: 65115
A18: NGO Subcontracts | B18: ='INVOICE 6'!B18 -> 0 | C18: ='INVOICE 6'!C18 -> 0 | D18: 0 | E18: =SUM('INVOICE 6'!E18,'INVOICE 6'!H18) -> 0 | F18: =SUM('INVOICE 6'!F18,'INVOICE 6'!I18) -> 0 | G18: 0 | H18: 0 | I18: 0 | J18: 0 | K18: 0 | L18: 0 | M18: 0 | N18: ='INVOICE 6'!N18 -> 2nd Advance [enter date]
A19: Equipment / Fixed Assets | B19: ='INVOICE 6'!B19 -> 0 | C19: ='INVOICE 6'!C19 -> 0 | D19: 0 | E19: =SUM('INVOICE 6'!E19,'INVOICE 6'!H19) -> 0 | F19: =SUM('INVOICE 6'!F19,'INVOICE 6'!I19) -> 0 | G19: 0 | H19: 0 | I19: 0 | J19: 0 | K19: 0 | L19: 0 | M19: 0 | N19: 1000000
A20: Data Collection & Progress Reporting | B20: ='INVOICE 6'!B20 -> 0 | C20: ='INVOICE 6'!C20 -> 0 | D20: 0 | E20: =SUM('INVOICE 6'!E20,'INVOICE 6'!H20) -> 0 | F20: =SUM('INVOICE 6'!F20,'INVOICE 6'!I20) -> 0 | G20: 0 | H20: 0 | I20: 0 | J20: 0 | K20: 0 | L20: 0 | M20: 0
A21: Other (Travel, Training, etc.) | B21: ='INVOICE 6'!B21 -> 4360 | C21: ='INVOICE 6'!C21 -> 0 | D21: 4360 | E21: =SUM('INVOICE 6'!E21,'INVOICE 6'!H21) -> 417 | F21: =SUM('INVOICE 6'!F21,'INVOICE 6'!I21) -> 0 | G21: 417 | H21: 0 | I21: 0 | J21: 0 | K21: 3943 | L21: 0 | M21: 3943 | N21: ='INVOICE 6'!N21 -> 3rd Advance [enter date]
A22: Indirect Costs | B22: ='INVOICE 6'!B22 -> 49053 | C22: ='INVOICE 6'!C22 -> 0 | D22: =SUM(B22:C22) -> 49053 | E22: =SUM('INVOICE 6'!E22,'INVOICE 6'!H22) -> 46782 | F22: =SUM('INVOICE 6'!F22,'INVOICE 6'!I22) -> 0 | G22: 46782 | H22: 0 | I22: 0 | J22: 0 | K22: 2271 | L22: 0 | M22: 2271 | N22: ='INVOICE 6'!N22 -> 0
A23: TOTAL | B23: =SUM(B15:B22) -> 3000000 | C23: 0 | D23: 3000000 | E23: 982419 | F23: 0 | G23: 982419 | H23: 0 | I23: 0 | J23: 0 | K23: 2017581 | L23: 0 | M23: 2017581 | N23: =SUM(N16+N19+N22) -> 2000000
A25: Project Income | C25: Income reported to date | D25: ='INVOICE 6'!D25+I25 -> 400 | F25: Prior allocated income | G25: 0 | H25: This Period | I25: 0 | L25: Unallocated income balance | M25: =D25-G25 -> 400
C27: Grant funds expended to date: | D27: =SUM(E23,H23) -> 982419 | G27: Grant funds claimed this period: | H27: =H23 -> 0 | L27: Percent of total disbursed
G28: Advance Disbursement Balance: | H28: =N23-D27 -> 1017581 | L28: funds expended to date: | N28: =D27/N23 -> 0.4912095
D32: Expenditure Descriptions - Units / $ Amounts | L32: Comments
A33: Salaries & Benefits | B33: Grant Funds | C33: =H15 -> 0
B34: Project Income | C34: =I15 -> 0
A35: Services & Supplies | B35: Grant Funds | C35: =H16 -> 0
B36: Project Income | C36: =I16 -> 0
A37: Professional Services | B37: Grant Funds | C37: =H17 -> 0
B38: Project Income | C38: =I17 -> 0
A39: NGO Subcontracts | B39: Grant Funds | C39: =H18 -> 0
B40: Project Income | C40: =I18 -> 0
A41: Equipment / Fixed Assets | B41: Grant Funds | C41: =H19 -> 0
B42: Project Income | C42: =I19 -> 0
A43: Data Collection & Progress Reporting | B43: Grant Funds | C43: =H20 -> 0
B44: Project Income | C44: =I20 -> 0
A45: Other (Travel, Training, etc.) | B45: Grant Funds | C45: =H21 -> 0
B46: Project Income | C46: =I21 -> 0
A47: Indirect Costs | B47: Grant Funds | C47: =H22 -> 0
B48: Project Income | C48: =I22 -> 0
A49: Project Income Earned | C49: =I25 -> 0
A50: PERSON PREPARING REPORT | E50: AUTHORIZED FINANCIAL OFFICER | L50: BSCC Supplier Data - Internal Use Only
E51: By checking the box below, I hereby certify that I am the authorized financial officer of the herein named agency. I further certify that I have not violated any of the provisions of Section 1090 of the Government Code in incurring the expenditures reported in this invoice, nor in any other way; that Sections 1090 through 1096 of the Government Code will not be violated in any way in the expenditure of funds pursuant to this invoice; that statement of funds above is true, correct, and in accordance with program provisions in all respects; and that all expenditures submitted after the expiration date of this contract are for the purpose of substantiating obligations legally incurred during the contract period. Furthermore, by submitting this invoice, I acknowledge that it must adhere to all of the requirements in the BSCC Grant Administration Guide, including any updates to the Guide during the term of the grant agreement.
L52: ='INVOICE 6'!L52:N52 -> 146589
A53: Name, Title | L53: Supplier ID
L54: ='INVOICE 6'!L54:N54 -> ARSOLASFOO-001
A55: Phone | L55: Supplier Name
L56: ='INVOICE 6'!L56:N56 -> P.O. Box 5520
A57: Email | L57: Address Line 1
L58: ='INVOICE 6'!L58:N58 -> Oakland, CA 94605
A59: Date | L59: Address Line 2
E62: Name, Title
E64: Phone
E66: Date
A68: BSCC USE ONLY
A69: Date Received: | G69: Approved By: | M69: Date:
I70: BSCC Field Representative

Sheet INVOICE 8
A1: STATE OF CALIFORNIA | L1: Purchase Authority: 5227
A2: BOARD OF STATE AND COMMUNITY CORRECTIONS | L2: ='INVOICE 7'!L2:N2 -> Purchase Order: 2480
A3: Financial Invoice - Form BSCC 201 (Revised 06/2020)
A5: Program: | B5: Adult Reentry Grant | K5: Please Note: The California State Controller's Office will send all checks directly to the address listed in the "BSCC Supplier Data" section at the bottom of this invoice.
A7: Grantee: | B7: ='INVOICE 7'!B7 -> ARSOLA's Distribution Center & Community Services | F7: Project Title: | G7: ='INVOICE 7'!G7:I7 -> RA
A9: Contract #: | B9: ='INVOICE 7'!B9 -> BSCC 416-19 | D9: Term: | E9: 2019-08-01 | F9: TO | G9: 2023-02-28 | L9: Invoicing Frequency | M9: Quarterly
A11: Invoice #: | B11: 8 | D11: Reporting Period: | E11: 2021-04-01 | F11: TO | G11: 2021-06-30 | H11: Due: | I11: 2021-08-16 | L11: Final Invoice (Y/N): | M11: No
A13: Line Items | B13: Budget | E13: Prior Expenditures | H13: This Reporting Period | K13: Balance | N13: Advance Disbursements
B14: Grant Funds | C14: Project Income | D14: TOTAL | E14: Grant Funds | F14: Project Income | G14: TOTAL | H14: Grant Funds | I14: Project Income | J14: TOTAL | K14: Grant Funds | L14: Project Income | M14: TOTAL
A15: Salaries & Benefits | B15: ='INVOICE 7'!B15 -> 833387 | C15: ='INVOICE 7'!C15 -> 0 | D15: =SUM(B15:C15) -> 833387 | E15: =SUM('INVOICE 7'!E15,'INVOICE 7'!H15) -> 320983 | F15: =SUM('INVOICE 7'!F15,'INVOICE 7'!I15) -> 0 | G15: =SUM(E15:F15) -> 320983 | H15: 0 | I15: 0 | J15: =SUM(H15:I15) -> 0 | K15: =B15-E15-H15 -> 512404 | L15: 0 | M15: =SUM(K15:L15) -> 512404 | N15: ='INVOICE 7'!N15 -> 1st Advance [10/23/19]
A16: Services & Supplies | B16: ='INVOICE 7'!B16 -> 2042200 | C16: ='INVOICE 7'!C16 -> 0 | D16: 2042200 | E16: =SUM('INVOICE 7'!E16,'INVOICE 7'!H16) -> 608352 | F16: =SUM('INVOICE 7'!F16,'INVOICE 7'!I16) -> 0 | G16: =SUM(E16:F16) -> 608352 | H16: 0 | I16: 0 | J16: 0 | K16: 1433848 | L16: 0 | M16: 1433848 | N16: ='INVOICE 7'!N16 -> 1000000
A17: Professional Services | B17: ='INVOICE 7'!B17 -> 71000 | C17: ='INVOICE 7'!C17 -> 0 | D17: 71000 | E17: =SUM('INVOICE 7'!E17,'INVOICE 7'!H17) -> 5885 | F17: =SUM('INVOICE 7'!F17,'INVOICE 7'!I17) -> 0 | G17: =SUM(E17:F17) -> 5885 | H17: 0 | I17: 0 | J17: 0 | K17: 65115 | L17: 0 | M17: 65115
A18: NGO Subcontracts | B18: ='INVOICE 7'!B18 -> 0 | C18: ='INVOICE 7'!C18 -> 0 | D18: 0 | E18: =SUM('INVOICE 7'!E18,'INVOICE 7'!H18) -> 0 | F18: =SUM('INVOICE 7'!F18,'INVOICE 7'!I18) -> 0 | G18: 0 | H18: 0 | I18: 0 | J18: 0 | K18: 0 | L18: 0 | M18: 0 | N18: ='INVOICE 7'!N18 -> 2nd Advance [enter date]
A19: Equipment / Fixed Assets | B19: ='INVOICE 7'!B19 -> 0 | C19: ='INVOICE 7'!C19 -> 0 | D19: 0 | E19: =SUM('INVOICE 7'!E19,'INVOICE 7'!H19) -> 0 | F19: =SUM('INVOICE 7'!F19,'INVOICE 7'!I19) -> 0 | G19: 0 | H19: 0 | I19: 0 | J19: 0 | K19: 0 | L19: 0 | M19: 0 | N19: ='INVOICE 7'!N19 -> 1000000
A20: Data Collection & Progress Reporting | B20: ='INVOICE 7'!B20 -> 0 | C20: ='INVOICE 7'!C20 -> 0 | D20: 0 | E20: =SUM('INVOICE 7'!E20,'INVOICE 7'!H20) -> 0 | F20: =SUM('INVOICE 7'!F20,'INVOICE 7'!I20) -> 0 | G20: 0 | H20: 0 | I20: 0 | J20: 0 | K20: 0 | L20: 0 | M20: 0
A21: Other (Travel, Training, etc.) | B21: ='INVOICE 7'!B21 -> 4360 | C21: ='INVOICE 7'!C21 -> 0 | D21: 4360 | E21: =SUM('INVOICE 7'!E21,'INVOICE 7'!H21) -> 417 | F21: =SUM('INVOICE 7'!F21,'INVOICE 7'!I21) -> 0 | G21: 417 | H21: 0 | I21: 0 | J21: 0 | K21: 3943 | L21: 0 | M21: 3943 | N21: ='INVOICE 7'!N21 -> 3rd Advance [enter date]
A22: Indirect Costs | B22: ='INVOICE 7'!B22 -> 49053 | C22: ='INVOICE 7'!C22 -> 0 | D22: =SUM(B22:C22) -> 49053 | E22: =SUM('INVOICE 7'!E22,'INVOICE 7'!H22) -> 46782 | F22: =SUM('INVOICE 7'!F22,'INVOICE 7'!I22) -> 0 | G22: 46782 | H22: 0 | I22: 0 | J22: 0 | K22: 2271 | L22: 0 | M22: 2271 | N22: ='INVOICE 7'!N22 -> 0
A23: TOTAL | B23: =SUM(B15:B22) -> 3000000 | C23: 0 | D23: 3000000 | E23: 982419 | F23: 0 | G23: 982419 | H23: 0 | I23: 0 | J23: 0 | K23: 2017581 | L23: 0 | M23: 2017581 | N23: =SUM(N16+N19+N22) -> 2000000
A25: Project Income | C25: Income reported to date | D25: ='INVOICE 7'!D25+I25 -> 400 | F25: Prior allocated income | G25: 0 | H25: This Period | I25: 0 | L25: Unallocated income balance | M25: =D25-G25 -> 400
C27: Grant funds expended to date: | D27: =SUM(E23,H23) -> 982419 | G27: Grant funds claimed this period: | H27: =H23 -> 0 | L27: Percent of total disbursed
G28: Advance Disbursement Balance: | H28: =N23-D27 -> 1017581 | L28: funds expended to date: | N28: =D27/N23 -> 0.4912095
D32: Expenditure Descriptions - Units / $ Amounts | L32: Comments
A33: Salaries & Benefits | B33: Grant Funds | C33: =H15 -> 0
B34: Project Income | C34: =I15 -> 0
A35: Services & Supplies | B35: Grant Funds | C35: =H16 -> 0
B36: Project Income | C36: =I16 -> 0
A37: Professional Services | B37: Grant Funds | C37: =H17 -> 0
B38: Project Income | C38: =I17 -> 0
A39: NGO Subcontracts | B39: Grant Funds | C39: =H18 -> 0
B40: Project Income | C40: =I18 -> 0
A41: Equipment / Fixed Assets | B41: Grant Funds | C41: =H19 -> 0
B42: Project Income | C42: =I19 -> 0
A43: Data Collection & Progress Reporting | B43: Grant Funds | C43: =H20 -> 0
B44: Project Income | C44: =I20 -> 0
A45: Other (Travel, Training, etc.) | B45: Grant Funds | C45: =H21 -> 0
B46: Project Income | C46: =I21 -> 0
A47: Indirect Costs | B47: Grant Funds | C47: =H22 -> 0
B48: Project Income | C48: =I22 -> 0
A49: Project Income Earned | C49: =I25 -> 0
A50: PERSON PREPARING REPORT | E50: AUTHORIZED FINANCIAL OFFICER | L50: BSCC Supplier Data - Internal Use Only
E51: By checking the box below, I hereby certify that I am the authorized financial officer of the herein named agency. I further certify that I have not violated any of the provisions of Section 1090 of the Government Code in incurring the expenditures reported in this invoice, nor in any other way; that Sections 1090 through 1096 of the Government Code will not be violated in any way in the expenditure of funds pursuant to this invoice; that statement of funds above is true, correct, and in accordance with program provisions in all respects; and that all expenditures submitted after the expiration date of this contract are for the purpose of substantiating obligations legally incurred during the contract period. Furthermore, by submitting this invoice, I acknowledge that it must adhere to all of the requirements in the BSCC Grant Administration Guide, including any updates to the Guide during the term of the grant agreement.
L52: ='INVOICE 7'!L52:N52 -> 146589
A53: Name, Title | L53: Supplier ID
L54: ='INVOICE 7'!L54:N54 -> ARSOLASFOO-001
A55: Phone | L55: Supplier Name
L56: ='INVOICE 7'!L56:N56 -> P.O. Box 5520
A57: Email | L57: Address Line 1
L58: ='INVOICE 7'!L58:N58 -> Oakland, CA 94605
A59: Date | L59: Address Line 2
E62: Name, Title
E64: Phone
E66: Date
A68: BSCC USE ONLY
A69: Date Received: | G69: Approved By: | M69: Date:
I70: BSCC Field Representative

Sheet INVOICE 9
A1: STATE OF CALIFORNIA | L1: Purchase Authority: 5227
A2: BOARD OF STATE AND COMMUNITY CORRECTIONS | L2: ='INVOICE 8'!L2:N2 -> Purchase Order: 2480
A3: Financial Invoice - Form BSCC 201 (Revised 06/2020)
A5: Program: | B5: Adult Reentry Grant | K5: Please Note: The California State Controller's Office will send all checks directly to the address listed in the "BSCC Supplier Data" section at the bottom of this invoice.
A7: Grantee: | B7: ='INVOICE 8'!B7 -> ARSOLA's Distribution Center & Community Services | F7: Project Title: | G7: ='INVOICE 8'!G7:I7 -> RA
A9: Contract #: | B9: ='INVOICE 8'!B9 -> BSCC 416-19 | D9: Term: | E9: 2019-08-01 | F9: TO | G9: 2023-02-28 | L9: Invoicing Frequency | M9: Quarterly
A11: Invoice #: | B11: 9 | D11: Reporting Period: | E11: 2021-07-01 | F11: TO | G11: 2021-09-30 | H11: Due: | I11: 2021-11-15 | L11: Final Invoice (Y/N): | M11: No
A13: Line Items | B13: Budget | E13: Prior Expenditures | H13: This Reporting Period | K13: Balance | N13: Advance Disbursements
B14: Grant Funds | C14: Project Income | D14: TOTAL | E14: Grant Funds | F14: Project Income | G14: TOTAL | H14: Grant Funds | I14: Project Income | J14: TOTAL | K14: Grant Funds | L14: Project Income | M14: TOTAL
A15: Salaries & Benefits | B15: ='INVOICE 8'!B15 -> 833387 | C15: ='INVOICE 8'!C15 -> 0 | D15: =SUM(B15:C15) -> 833387 | E15: =SUM('INVOICE 8'!E15,'INVOICE 8'!H15) -> 320983 | F15: =SUM('INVOICE 8'!F15,'INVOICE 8'!I15) -> 0 | G15: =SUM(E15:F15) -> 320983 | H15: 0 | I15: 0 | J15: =SUM(H15:I15) -> 0 | K15: =B15-E15-H15 -> 512404 | L15: 0 | M15: =SUM(K15:L15) -> 512404 | N15: ='INVOICE 8'!N15 -> 1st Advance [10/23/19]
A16: Services & Supplies | B16: ='INVOICE 8'!B16 -> 2042200 | C16: ='INVOICE 8'!C16 -> 0 | D16: 2042200 | E16: =SUM('INVOICE 8'!E16,'INVOICE 8'!H16) -> 608352 | F16: =SUM('INVOICE 8'!F16,'INVOICE 8'!I16) -> 0 | G16: =SUM(E16:F16) -> 608352 | H16: 0 | I16: 0 | J16: 0 | K16: 1433848 | L16: 0 | M16: 1433848 | N16: ='INVOICE 8'!N16 -> 1000000
A17: Professional Services | B17: ='INVOICE 8'!B17 -> 71000 | C17: ='INVOICE 8'!C17 -> 0 | D17: 71000 | E17: =SUM('INVOICE 8'!E17,'INVOICE 8'!H17) -> 5885 | F17: =SUM('INVOICE 8'!F17,'INVOICE 8'!I17) -> 0 | G17: =SUM(E17:F17) -> 5885 | H17: 0 | I17: 0 | J17: 0 | K17: 65115 | L17: 0 | M17: 65115
A18: NGO Subcontracts | B18: ='INVOICE 8'!B18 -> 0 | C18: ='INVOICE 8'!C18 -> 0 | D18: 0 | E18: =SUM('INVOICE 8'!E18,'INVOICE 8'!H18) -> 0 | F18: =SUM('INVOICE 8'!F18,'INVOICE 8'!I18) -> 0 | G18: 0 | H18: 0 | I18: 0 | J18: 0 | K18: 0 | L18: 0 | M18: 0 | N18: ='INVOICE 8'!N18 -> 2nd Advance [enter date]
A19: Equipment / Fixed Assets | B19: ='INVOICE 8'!B19 -> 0 | C19: ='INVOICE 8'!C19 -> 0 | D19: 0 | E19: =SUM('INVOICE 8'!E19,'INVOICE 8'!H19) -> 0 | F19: =SUM('INVOICE 8'!F19,'INVOICE 8'!I19) -> 0 | G19: 0 | H19: 0 | I19: 0 | J19: 0 | K19: 0 | L19: 0 | M19: 0 | N19: ='INVOICE 8'!N19 -> 1000000
A20: Data Collection & Progress Reporting | B20: ='INVOICE 8'!B20 -> 0 | C20: ='INVOICE 8'!C20 -> 0 | D20: 0 | E20: =SUM('INVOICE 8'!E20,'INVOICE 8'!H20) -> 0 | F20: =SUM('INVOICE 8'!F20,'INVOICE 8'!I20) -> 0 | G20: 0 | H20: 0 | I20: 0 | J20: 0 | K20: 0 | L20: 0 | M20: 0
A21: Other (Travel, Training, etc.) | B21: ='INVOICE 8'!B21 -> 4360 | C21: ='INVOICE 8'!C21 -> 0 | D21: 4360 | E21: =SUM('INVOICE 8'!E21,'INVOICE 8'!H21) -> 417 | F21: =SUM('INVOICE 8'!F21,'INVOICE 8'!I21) -> 0 | G21: 417 | H21: 0 | I21: 0 | J21: 0 | K21: 3943 | L21: 0 | M21: 3943 | N21: ='INVOICE 8'!N21 -> 3rd Advance [enter date]
A22: Indirect Costs | B22: ='INVOICE 8'!B22 -> 49053 | C22: ='INVOICE 8'!C22 -> 0 | D22: =SUM(B22:C22) -> 49053 | E22: =SUM('INVOICE 8'!E22,'INVOICE 8'!H22) -> 46782 | F22: =SUM('INVOICE 8'!F22,'INVOICE 8'!I22) -> 0 | G22: 46782 | H22: 0 | I22: 0 | J22: 0 | K22: 2271 | L22: 0 | M22: 2271 | N22: ='INVOICE 8'!N22 -> 0
A23: TOTAL | B23: =SUM(B15:B22) -> 3000000 | C23: 0 | D23: 3000000 | E23: 982419 | F23: 0 | G23: 982419 | H23: 0 | I23: 0 | J23: 0 | K23: 2017581 | L23: 0 | M23: 2017581 | N23: =SUM(N16+N19+N22) -> 2000000
A25: Project Income | C25: Income reported to date | D25: ='INVOICE 8'!D25+I25 -> 400 | F25: Prior allocated income | G25: 0 | H25: This Period | I25: 0 | L25: Unallocated income balance | M25: =D25-G25 -> 400
C27: Grant funds expended to date: | D27: =SUM(E23,H23) -> 982419 | G27: Grant funds claimed this period: | H27: =H23 -> 0 | L27: Percent of total disbursed
G28: Advance Disbursement Balance: | H28: =N23-D27 -> 1017581 | L28: funds expended to date: | N28: =D27/N23 -> 0.4912095
D32: Expenditure Descriptions - Units / $ Amounts | L32: Comments
A33: Salaries & Benefits | B33: Grant Funds | C33: =H15 -> 0
B34: Project Income | C34: =I15 -> 0
A35: Services & Supplies | B35: Grant Funds | C35: =H16 -> 0
B36: Project Income | C36: =I16 -> 0
A37: Professional Services | B37: Grant Funds | C37: =H17 -> 0
B38: Project Income | C38: =I17 -> 0
A39: NGO Subcontracts | B39: Grant Funds | C39: =H18 -> 0
B40: Project Income | C40: =I18 -> 0
A41: Equipment / Fixed Assets | B41: Grant Funds | C41: =H19 -> 0
B42: Project Income | C42: =I19 -> 0
A43: Data Collection & Progress Reporting | B43: Grant Funds | C43: =H20 -> 0
B44: Project Income | C44: =I20 -> 0
A45: Other (Travel, Training, etc.) | B45: Grant Funds | C45: =H21 -> 0
B46: Project Income | C46: =I21 -> 0
A47: Indirect Costs | B47: Grant Funds | C47: =H22 -> 0
B48: Project Income | C48: =I22 -> 0
A49: Project Income Earned | C49: =I25 -> 0
A50: PERSON PREPARING REPORT | E50: AUTHORIZED FINANCIAL OFFICER | L50: BSCC Supplier Data - Internal Use Only
E51: By checking the box below, I hereby certify that I am the authorized financial officer of the herein named agency. I further certify that I have not violated any of the provisions of Section 1090 of the Government Code in incurring the expenditures reported in this invoice, nor in any other way; that Sections 1090 through 1096 of the Government Code will not be violated in any way in the expenditure of funds pursuant to this invoice; that statement of funds above is true, correct, and in accordance with program provisions in all respects; and that all expenditures submitted after the expiration date of this contract are for the purpose of substantiating obligations legally incurred during the contract period. Furthermore, by submitting this invoice, I acknowledge that it must adhere to all of the requirements in the BSCC Grant Administration Guide, including any updates to the Guide during the term of the grant agreement.
L52: ='INVOICE 8'!L52:N52 -> 146589
A53: Name, Title | L53: Supplier ID
L54: ='INVOICE 8'!L54:N54 -> ARSOLASFOO-001
A55: Phone | L55: Supplier Name
L56: ='INVOICE 8'!L56:N56 -> P.O. Box 5520
A57: Email | L57: Address Line 1
L58: ='INVOICE 8'!L58:N58 -> Oakland, CA 94605
A59: Date | L59: Address Line 2
E62: Name, Title
E64: Phone
E66: Date
A68: BSCC USE ONLY
A69: Date Received: | G69: Approved By: | M69: Date:
I70: BSCC Field Representative

Sheet INVOICE 10
A1: STATE OF CALIFORNIA | L1: Purchase Authority: 5227
A2: BOARD OF STATE AND COMMUNITY CORRECTIONS | L2: ='INVOICE 9'!L2:N2 -> Purchase Order: 2480
A3: Financial Invoice - Form BSCC 201 (Revised 06/2020)
A5: Program: | B5: Adult Reentry Grant | K5: Please Note: The California State Controller's Office will send all checks directly to the address listed in the "BSCC Supplier Data" section at the bottom of this invoice.
A7: Grantee: | B7: ='INVOICE 9'!B7 -> ARSOLA's Distribution Center & Community Services | F7: Project Title: | G7: ='INVOICE 9'!G7:I7 -> RA
A9: Contract #: | B9: ='INVOICE 9'!B9 -> BSCC 416-19 | D9: Term: | E9: 2019-08-01 | F9: TO | G9: 2023-02-28 | L9: Invoicing Frequency | M9: Quarterly
A11: Invoice #: | B11: 10 | D11: Reporting Period: | E11: 2021-10-01 | F11: TO | G11: 2021-12-31 | H11: Due: | I11: 2022-02-15 | L11: Final Invoice (Y/N): | M11: No
A13: Line Items | B13: Budget | E13: Prior Expenditures | H13: This Reporting Period | K13: Balance | N13: Advance Disbursements
B14: Grant Funds | C14: Project Income | D14: TOTAL | E14: Grant Funds | F14: Project Income | G14: TOTAL | H14: Grant Funds | I14: Project Income | J14: TOTAL | K14: Grant Funds | L14: Project Income | M14: TOTAL
A15: Salaries & Benefits | B15: ='INVOICE 9'!B15 -> 833387 | C15: ='INVOICE 9'!C15 -> 0 | D15: =SUM(B15:C15) -> 833387 | E15: =SUM('INVOICE 9'!E15,'INVOICE 9'!H15) -> 320983 | F15: =SUM('INVOICE 9'!F15,'INVOICE 9'!I15) -> 0 | G15: =SUM(E15:F15) -> 320983 | H15: 0 | I15: 0 | J15: =SUM(H15:I15) -> 0 | K15: =B15-E15-H15 -> 512404 | L15: 0 | M15: =SUM(K15:L15) -> 512404 | N15: ='INVOICE 9'!N15 -> 1st Advance [10/23/19]
A16: Services & Supplies | B16: ='INVOICE 9'!B16 -> 2042200 | C16: ='INVOICE 9'!C16 -> 0 | D16: 2042200 | E16: =SUM('INVOICE 9'!E16,'INVOICE 9'!H16) -> 608352 | F16: =SUM('INVOICE 9'!F16,'INVOICE 9'!I16) -> 0 | G16: =SUM(E16:F16) -> 608352 | H16: 0 | I16: 0 | J16: 0 | K16: 1433848 | L16: 0 | M16: 1433848 | N16: ='INVOICE 9'!N16 -> 1000000
A17: Professional Services | B17: ='INVOICE 9'!B17 -> 71000 | C17: ='INVOICE 9'!C17 -> 0 | D17: 71000 | E17: =SUM('INVOICE 9'!E17,'INVOICE 9'!H17) -> 5885 | F17: =SUM('INVOICE 9'!F17,'INVOICE 9'!I17) -> 0 | G17: =SUM(E17:F17) -> 5885 | H17: 0 | I17: 0 | J17: 0 | K17: 65115 | L17: 0 | M17: 65115
A18: NGO Subcontracts | B18: ='INVOICE 9'!B18 -> 0 | C18: ='INVOICE 9'!C18 -> 0 | D18: 0 | E18: =SUM('INVOICE 9'!E18,'INVOICE 9'!H18) -> 0 | F18: =SUM('INVOICE 9'!F18,'INVOICE 9'!I18) -> 0 | G18: 0 | H18: 0 | I18: 0 | J18: 0 | K18: 0 | L18: 0 | M18: 0 | N18: ='INVOICE 9'!N18 -> 2nd Advance [enter date]
A19: Equipment / Fixed Assets | B19: ='INVOICE 9'!B19 -> 0 | C19: ='INVOICE 9'!C19 -> 0 | D19: 0 | E19: =SUM('INVOICE 9'!E19,'INVOICE 9'!H19) -> 0 | F19: =SUM('INVOICE 9'!F19,'INVOICE 9'!I19) -> 0 | G19: 0 | H19: 0 | I19: 0 | J19: 0 | K19: 0 | L19: 0 | M19: 0 | N19: ='INVOICE 9'!N19 -> 1000000
A20: Data Collection & Progress Reporting | B20: ='INVOICE 9'!B20 -> 0 | C20: ='INVOICE 9'!C20 -> 0 | D20: 0 | E20: =SUM('INVOICE 9'!E20,'INVOICE 9'!H20) -> 0 | F20: =SUM('INVOICE 9'!F20,'INVOICE 9'!I20) -> 0 | G20: 0 | H20: 0 | I20: 0 | J20: 0 | K20: 0 | L20: 0 | M20: 0
A21: Other (Travel, Training, etc.) | B21: ='INVOICE 9'!B21 -> 4360 | C21: ='INVOICE 9'!C21 -> 0 | D21: 4360 | E21: =SUM('INVOICE 9'!E21,'INVOICE 9'!H21) -> 417 | F21: =SUM('INVOICE 9'!F21,'INVOICE 9'!I21) -> 0 | G21: 417 | H21: 0 | I21: 0 | J21: 0 | K21: 3943 | L21: 0 | M21: 3943 | N21: ='INVOICE 9'!N21 -> 3rd Advance [enter date]
A22: Indirect Costs | B22: ='INVOICE 9'!B22 -> 49053 | C22: ='INVOICE 9'!C22 -> 0 | D22: =SUM(B22:C22) -> 49053 | E22: =SUM('INVOICE 9'!E22,'INVOICE 9'!H22) -> 46782 | F22: =SUM('INVOICE 9'!F22,'INVOICE 9'!I22) -> 0 | G22: 46782 | H22: 0 | I22: 0 | J22: 0 | K22: 2271 | L22: 0 | M22: 2271 | N22: ='INVOICE 9'!N22 -> 0
A23: TOTAL | B23: =SUM(B15:B22) -> 3000000 | C23: 0 | D23: 3000000 | E23: 982419 | F23: 0 | G23: 982419 | H23: 0 | I23: 0 | J23: 0 | K23: 2017581 | L23: 0 | M23: 2017581 | N23: =SUM(N16+N19+N22) -> 2000000
A25: Project Income | C25: Income reported to date | D25: ='INVOICE 9'!D25+I25 -> 400 | F25: Prior allocated income | G25: 0 | H25: This Period | I25: 0 | L25: Unallocated income balance | M25: =D25-G25 -> 400
C27: Grant funds expended to date: | D27: =SUM(E23,H23) -> 982419 | G27: Grant funds claimed this period: | H27: =H23 -> 0 | L27: Percent of total disbursed
G28: Advance Disbursement Balance: | H28: =N23-D27 -> 1017581 | L28: funds expended to date: | N28: =D27/N23 -> 0.4912095
D32: Expenditure Descriptions - Units / $ Amounts | L32: Comments
A33: Salaries & Benefits | B33: Grant Funds | C33: =H15 -> 0
B34: Project Income | C34: =I15 -> 0
A35: Services & Supplies | B35: Grant Funds | C35: =H16 -> 0
B36: Project Income | C36: =I16 -> 0
A37: Professional Services | B37: Grant Funds | C37: =H17 -> 0
B38: Project Income | C38: =I17 -> 0
A39: NGO Subcontracts | B39: Grant Funds | C39: =H18 -> 0
B40: Project Income | C40: =I18 -> 0
A41: Equipment / Fixed Assets | B41: Grant Funds | C41: =H19 -> 0
B42: Project Income | C42: =I19 -> 0
A43: Data Collection & Progress Reporting | B43: Grant Funds | C43: =H20 -> 0
B44: Project Income | C44: =I20 -> 0
A45: Other (Travel, Training, etc.) | B45: Grant Funds | C45: =H21 -> 0
B46: Project Income | C46: =I21 -> 0
A47: Indirect Costs | B47: Grant Funds | C47: =H22 -> 0
B48: Project Income | C48: =I22 -> 0
A49: Project Income Earned | C49: =I25 -> 0
A50: PERSON PREPARING REPORT | E50: AUTHORIZED FINANCIAL OFFICER | L50: BSCC Supplier Data - Internal Use Only
E51: By checking the box below, I hereby certify that I am the authorized financial officer of the herein named agency. I further certify that I have not violated any of the provisions of Section 1090 of the Government Code in incurring the expenditures reported in this invoice, nor in any other way; that Sections 1090 through 1096 of the Government Code will not be violated in any way in the expenditure of funds pursuant to this invoice; that statement of funds above is true, correct, and in accordance with program provisions in all respects; and that all expenditures submitted after the expiration date of this contract are for the purpose of substantiating obligations legally incurred during the contract period. Furthermore, by submitting this invoice, I acknowledge that it must adhere to all of the requirements in the BSCC Grant Administration Guide, including any updates to the Guide during the term of the grant agreement.
L52: ='INVOICE 9'!L52:N52 -> 146589
A53: Name, Title | L53: Supplier ID
L54: ='INVOICE 9'!L54:N54 -> ARSOLASFOO-001
A55: Phone | L55: Supplier Name
L56: ='INVOICE 9'!L56:N56 -> P.O. Box 5520
A57: Email | L57: Address Line 1
L58: ='INVOICE 9'!L58:N58 -> Oakland, CA 94605
A59: Date | L59: Address Line 2
E62: Name, Title
E64: Phone
E66: Date
A68: BSCC USE ONLY
A69: Date Received: | G69: Approved By: | M69: Date:
I70: BSCC Field Representative

Sheet INVOICE 11
A1: STATE OF CALIFORNIA | L1: Purchase Authority: 5227
A2: BOARD OF STATE AND COMMUNITY CORRECTIONS | L2: ='INVOICE 10'!L2:N2 -> Purchase Order: 2480
A3: Financial Invoice - Form BSCC 201 (Revised 06/2020)
A5: Program: | B5: Adult Reentry Grant | K5: Please Note: The California State Controller's Office will send all checks directly to the address listed in the "BSCC Supplier Data" section at the bottom of this invoice.
A7: Grantee: | B7: ='INVOICE 10'!B7 -> ARSOLA's Distribution Center & Community Services | F7: Project Title: | G7: ='INVOICE 10'!G7:I7 -> RA
A9: Contract #: | B9: ='INVOICE 10'!B9 -> BSCC 416-19 | D9: Term: | E9: 2019-08-01 | F9: TO | G9: 2023-02-28 | L9: Invoicing Frequency | M9: Quarterly
A11: Invoice #: | B11: 11 | D11: Reporting Period: | E11: 2022-01-01 | F11: TO | G11: 2022-03-31 | H11: Due: | I11: 2022-05-16 | L11: Final Invoice (Y/N): | M11: No
A13: Line Items | B13: Budget | E13: Prior Expenditures | H13: This Reporting Period | K13: Balance | N13: Advance Disbursements
B14: Grant Funds | C14: Project Income | D14: TOTAL | E14: Grant Funds | F14: Project Income | G14: TOTAL | H14: Grant Funds | I14: Project Income | J14: TOTAL | K14: Grant Funds | L14: Project Income | M14: TOTAL
A15: Salaries & Benefits | B15: ='INVOICE 10'!B15 -> 833387 | C15: ='INVOICE 10'!C15 -> 0 | D15: =SUM(B15:C15) -> 833387 | E15: =SUM('INVOICE 10'!E15,'INVOICE 10'!H15) -> 320983 | F15: =SUM('INVOICE 10'!F15,'INVOICE 10'!I15) -> 0 | G15: =SUM(E15:F15) -> 320983 | H15: 0 | I15: 0 | J15: =SUM(H15:I15) -> 0 | K15: =B15-E15-H15 -> 512404 | L15: 0 | M15: =SUM(K15:L15) -> 512404 | N15: ='INVOICE 10'!N15 -> 1st Advance [10/23/19]
A16: Services & Supplies | B16: ='INVOICE 10'!B16 -> 2042200 | C16: ='INVOICE 10'!C16 -> 0 | D16: 2042200 | E16: =SUM('INVOICE 10'!E16,'INVOICE 10'!H16) -> 608352 | F16: =SUM('INVOICE 10'!F16,'INVOICE 10'!I16) -> 0 | G16: =SUM(E16:F16) -> 608352 | H16: 0 | I16: 0 | J16: 0 | K16: 1433848 | L16: 0 | M16: 1433848 | N16: ='INVOICE 10'!N16 -> 1000000
A17: Professional Services | B17: ='INVOICE 10'!B17 -> 71000 | C17: ='INVOICE 10'!C17 -> 0 | D17: 71000 | E17: =SUM('INVOICE 10'!E17,'INVOICE 10'!H17) -> 5885 | F17: =SUM('INVOICE 10'!F17,'INVOICE 10'!I17) -> 0 | G17: =SUM(E17:F17) -> 5885 | H17: 0 | I17: 0 | J17: 0 | K17: 65115 | L17: 0 | M17: 65115
A18: NGO Subcontracts | B18: ='INVOICE 10'!B18 -> 0 | C18: ='INVOICE 10'!C18 -> 0 | D18: 0 | E18: =SUM('INVOICE 10'!E18,'INVOICE 10'!H18) -> 0 | F18: =SUM('INVOICE 10'!F18,'INVOICE 10'!I18) -> 0 | G18: 0 | H18: 0 | I18: 0 | J18: 0 | K18: 0 | L18: 0 | M18: 0 | N18: ='INVOICE 10'!N18 -> 2nd Advance [enter date]
A19: Equipment / Fixed Assets | B19: ='INVOICE 10'!B19 -> 0 | C19: ='INVOICE 10'!C19 -> 0 | D19: 0 | E19: =SUM('INVOICE 10'!E19,'INVOICE 10'!H19) -> 0 | F19: =SUM('INVOICE 10'!F19,'INVOICE 10'!I19) -> 0 | G19: 0 | H19: 0 | I19: 0 | J19: 0 | K19: 0 | L19: 0 | M19: 0 | N19: ='INVOICE 10'!N19 -> 1000000
A20: Data Collection & Progress Reporting | B20: ='INVOICE 10'!B20 -> 0 | C20: ='INVOICE 10'!C20 -> 0 | D20: 0 | E20: =SUM('INVOICE 10'!E20,'INVOICE 10'!H20) -> 0 | F20: =SUM('INVOICE 10'!F20,'INVOICE 10'!I20) -> 0 | G20: 0 | H20: 0 | I20: 0 | J20: 0 | K20: 0 | L20: 0 | M20: 0
A21: Other (Travel, Training, etc.) | B21: ='INVOICE 10'!B21 -> 4360 | C21: ='INVOICE 10'!C21 -> 0 | D21: 4360 | E21: =SUM('INVOICE 10'!E21,'INVOICE 10'!H21) -> 417 | F21: =SUM('INVOICE 10'!F21,'INVOICE 10'!I21) -> 0 | G21: 417 | H21: 0 | I21: 0 | J21: 0 | K21: 3943 | L21: 0 | M21: 3943 | N21: ='INVOICE 10'!N21 -> 3rd Advance [enter date]
A22: Indirect Costs | B22: ='INVOICE 10'!B22 -> 49053 | C22: ='INVOICE 10'!C22 -> 0 | D22: =SUM(B22:C22) -> 49053 | E22: =SUM('INVOICE 10'!E22,'INVOICE 10'!H22) -> 46782 | F22: =SUM('INVOICE 10'!F22,'INVOICE 10'!I22) -> 0 | G22: 46782 | H22: 0 | I22: 0 | J22: 0 | K22: 2271 | L22: 0 | M22: 2271 | N22: ='INVOICE 10'!N22 -> 0
A23: TOTAL | B23: =SUM(B15:B22) -> 3000000 | C23: 0 | D23: 3000000 | E23: 982419 | F23: 0 | G23: 982419 | H23: 0 | I23: 0 | J23: 0 | K23: 2017581 | L23: 0 | M23: 2017581 | N23: =SUM(N16+N19+N22) -> 2000000
A25: Project Income | C25: Income reported to date | D25: ='INVOICE 10'!D25+I25 -> 400 | F25: Prior allocated income | G25: 0 | H25: This Period | I25: 0 | L25: Unallocated income balance | M25: =D25-G25 -> 400
C27: Grant funds expended to date: | D27: =SUM(E23,H23) -> 982419 | G27: Grant funds claimed this period: | H27: =H23 -> 0 | L27: Percent of total disbursed
G28: Advance Disbursement Balance: | H28: =N23-D27 -> 1017581 | L28: funds expended to date: | N28: =D27/N23 -> 0.4912095
D32: Expenditure Descriptions - Units / $ Amounts | L32: Comments
A33: Salaries & Benefits | B33: Grant Funds | C33: =H15 -> 0
B34: Project Income | C34: =I15 -> 0
A35: Services & Supplies | B35: Grant Funds | C35: =H16 -> 0
B36: Project Income | C36: =I16 -> 0
A37: Professional Services | B37: Grant Funds | C37: =H17 -> 0
B38: Project Income | C38: =I17 -> 0
A39: NGO Subcontracts | B39: Grant Funds | C39: =H18 -> 0
B40: Project Income | C40: =I18 -> 0
A41: Equipment / Fixed Assets | B41: Grant Funds | C41: =H19 -> 0
B42: Project Income | C42: =I19 -> 0
A43: Data Collection & Progress Reporting | B43: Grant Funds | C43: =H20 -> 0
B44: Project Income | C44: =I20 -> 0
A45: Other (Travel, Training, etc.) | B45: Grant Funds | C45: =H21 -> 0
B46: Project Income | C46: =I21 -> 0
A47: Indirect Costs | B47: Grant Funds | C47: =H22 -> 0
B48: Project Income | C48: =I22 -> 0
A49: Project Income Earned | C49: =I25 -> 0
A50: PERSON PREPARING REPORT | E50: AUTHORIZED FINANCIAL OFFICER | L50: BSCC Supplier Data - Internal Use Only
E51: By checking the box below, I hereby certify that I am the authorized financial officer of the herein named agency. I further certify that I have not violated any of the provisions of Section 1090 of the Government Code in incurring the expenditures reported in this invoice, nor in any other way; that Sections 1090 through 1096 of the Government Code will not be violated in any way in the expenditure of funds pursuant to this invoice; that statement of funds above is true, correct, and in accordance with program provisions in all respects; and that all expenditures submitted after the expiration date of this contract are for the purpose of substantiating obligations legally incurred during the contract period. Furthermore, by submitting this invoice, I acknowledge that it must adhere to all of the requirements in the BSCC Grant Administration Guide, including any updates to the Guide during the term of the grant agreement.
L52: ='INVOICE 10'!L52:N52 -> 146589
A53: Name, Title | L53: Supplier ID
L54: ='INVOICE 10'!L54:N54 -> ARSOLASFOO-001
A55: Phone | L55: Supplier Name
L56: ='INVOICE 10'!L56:N56 -> P.O. Box 5520
A57: Email | L57: Address Line 1
L58: ='INVOICE 10'!L58:N58 -> Oakland, CA 94605
A59: Date | L59: Address Line 2
E62: Name, Title
E64: Phone
E66: Date
A68: BSCC USE ONLY
A69: Date Received: | G69: Approved By: | M69: Date:
I70: BSCC Field Representative

Sheet INVOICE 12
A1: STATE OF CALIFORNIA | L1: Purchase Authority: 5227
A2: BOARD OF STATE AND COMMUNITY CORRECTIONS | L2: ='INVOICE 11'!L2:N2 -> Purchase Order: 2480
A3: Financial Invoice - Form BSCC 201 (Revised 06/2020)
A5: Program: | B5: Adult Reentry Grant | K5: Please Note: The California State Controller's Office will send all checks directly to the address listed in the "BSCC Supplier Data" section at the bottom of this invoice.
A7: Grantee: | B7: ='INVOICE 11'!B7 -> ARSOLA's Distribution Center & Community Services | F7: Project Title: | G7: ='INVOICE 11'!G7:I7 -> RA
A9: Contract #: | B9: ='INVOICE 11'!B9 -> BSCC 416-19 | D9: Term: | E9: 2019-08-01 | F9: TO | G9: 2023-02-28 | L9: Invoicing Frequency | M9: Quarterly
A11: Invoice #: | B11: 12 | D11: Reporting Period: | E11: 2022-04-01 | F11: TO | G11: 2022-06-30 | H11: Due: | I11: 2022-08-15 | L11: Final Invoice (Y/N): | M11: No
A13: Line Items | B13: Budget | E13: Prior Expenditures | H13: This Reporting Period | K13: Balance | N13: Advance Disbursements
B14: Grant Funds | C14: Project Income | D14: TOTAL | E14: Grant Funds | F14: Project Income | G14: TOTAL | H14: Grant Funds | I14: Project Income | J14: TOTAL | K14: Grant Funds | L14: Project Income | M14: TOTAL
A15: Salaries & Benefits | B15: ='INVOICE 11'!B15 -> 833387 | C15: ='INVOICE 11'!C15 -> 0 | D15: =SUM(B15:C15) -> 833387 | E15: =SUM('INVOICE 11'!E15,'INVOICE 11'!H15) -> 320983 | F15: =SUM('INVOICE 11'!F15,'INVOICE 11'!I15) -> 0 | G15: =SUM(E15:F15) -> 320983 | H15: 0 | I15: 0 | J15: =SUM(H15:I15) -> 0 | K15: =B15-E15-H15 -> 512404 | L15: 0 | M15: =SUM(K15:L15) -> 512404 | N15: ='INVOICE 11'!N15 -> 1st Advance [10/23/19]
A16: Services & Supplies | B16: ='INVOICE 11'!B16 -> 2042200 | C16: ='INVOICE 11'!C16 -> 0 | D16: 2042200 | E16: =SUM('INVOICE 11'!E16,'INVOICE 11'!H16) -> 608352 | F16: =SUM('INVOICE 11'!F16,'INVOICE 11'!I16) -> 0 | G16: =SUM(E16:F16) -> 608352 | H16: 0 | I16: 0 | J16: 0 | K16: 1433848 | L16: 0 | M16: 1433848 | N16: ='INVOICE 11'!N16 -> 1000000
A17: Professional Services | B17: ='INVOICE 11'!B17 -> 71000 | C17: ='INVOICE 11'!C17 -> 0 | D17: 71000 | E17: =SUM('INVOICE 11'!E17,'INVOICE 11'!H17) -> 5885 | F17: =SUM('INVOICE 11'!F17,'INVOICE 11'!I17) -> 0 | G17: =SUM(E17:F17) -> 5885 | H17: 0 | I17: 0 | J17: 0 | K17: 65115 | L17: 0 | M17: 65115
A18: NGO Subcontracts | B18: ='INVOICE 11'!B18 -> 0 | C18: ='INVOICE 11'!C18 -> 0 | D18: 0 | E18: =SUM('INVOICE 11'!E18,'INVOICE 11'!H18) -> 0 | F18: =SUM('INVOICE 11'!F18,'INVOICE 11'!I18) -> 0 | G18: 0 | H18: 0 | I18: 0 | J18: 0 | K18: 0 | L18: 0 | M18: 0 | N18: ='INVOICE 11'!N18 -> 2nd Advance [enter date]
A19: Equipment / Fixed Assets | B19: ='INVOICE 11'!B19 -> 0 | C19: ='INVOICE 11'!C19 -> 0 | D19: 0 | E19: =SUM('INVOICE 11'!E19,'INVOICE 11'!H19) -> 0 | F19: =SUM('INVOICE 11'!F19,'INVOICE 11'!I19) -> 0 | G19: 0 | H19: 0 | I19: 0 | J19: 0 | K19: 0 | L19: 0 | M19: 0 | N19: ='INVOICE 11'!N19 -> 1000000
A20: Data Collection & Progress Reporting | B20: ='INVOICE 11'!B20 -> 0 | C20: ='INVOICE 11'!C20 -> 0 | D20: 0 | E20: =SUM('INVOICE 11'!E20,'INVOICE 11'!H20) -> 0 | F20: =SUM('INVOICE 11'!F20,'INVOICE 11'!I20) -> 0 | G20: 0 | H20: 0 | I20: 0 | J20: 0 | K20: 0 | L20: 0 | M20: 0
A21: Other (Travel, Training, etc.) | B21: ='INVOICE 11'!B21 -> 4360 | C21: ='INVOICE 11'!C21 -> 0 | D21: 4360 | E21: =SUM('INVOICE 11'!E21,'INVOICE 11'!H21) -> 417 | F21: =SUM('INVOICE 11'!F21,'INVOICE 11'!I21) -> 0 | G21: 417 | H21: 0 | I21: 0 | J21: 0 | K21: 3943 | L21: 0 | M21: 3943 | N21: ='INVOICE 11'!N21 -> 3rd Advance [enter date]
A22: Indirect Costs | B22: ='INVOICE 11'!B22 -> 49053 | C22: ='INVOICE 11'!C22 -> 0 | D22: =SUM(B22:C22) -> 49053 | E22: =SUM('INVOICE 11'!E22,'INVOICE 11'!H22) -> 46782 | F22: =SUM('INVOICE 11'!F22,'INVOICE 11'!I22) -> 0 | G22: 46782 | H22: 0 | I22: 0 | J22: 0 | K22: 2271 | L22: 0 | M22: 2271 | N22: ='INVOICE 11'!N22 -> 0
A23: TOTAL | B23: =SUM(B15:B22) -> 3000000 | C23: 0 | D23: 3000000 | E23: 982419 | F23: 0 | G23: 982419 | H23: 0 | I23: 0 | J23: 0 | K23: 2017581 | L23: 0 | M23: 2017581 | N23: =SUM(N16+N19+N22) -> 2000000
A25: Project Income | C25: Income reported to date | D25: ='INVOICE 11'!D25+I25 -> 400 | F25: Prior allocated income | G25: 0 | H25: This Period | I25: 0 | L25: Unallocated income balance | M25: =D25-G25 -> 400
C27: Grant funds expended to date: | D27: =SUM(E23,H23) -> 982419 | G27: Grant funds claimed this period: | H27: =H23 -> 0 | L27: Percent of total disbursed
G28: Advance Disbursement Balance: | H28: =N23-D27 -> 1017581 | L28: funds expended to date: | N28: =D27/N23 -> 0.4912095
D32: Expenditure Descriptions - Units / $ Amounts | L32: Comments
A33: Salaries & Benefits | B33: Grant Funds | C33: =H15 -> 0
B34: Project Income | C34: =I15 -> 0
A35: Services & Supplies | B35: Grant Funds | C35: =H16 -> 0
B36: Project Income | C36: =I16 -> 0
A37: Professional Services | B37: Grant Funds | C37: =H17 -> 0
B38: Project Income | C38: =I17 -> 0
A39: NGO Subcontracts | B39: Grant Funds | C39: =H18 -> 0
B40: Project Income | C40: =I18 -> 0
A41: Equipment / Fixed Assets | B41: Grant Funds | C41: =H19 -> 0
B42: Project Income | C42: =I19 -> 0
A43: Data Collection & Progress Reporting | B43: Grant Funds | C43: =H20 -> 0
B44: Project Income | C44: =I20 -> 0
A45: Other (Travel, Training, etc.) | B45: Grant Funds | C45: =H21 -> 0
B46: Project Income | C46: =I21 -> 0
A47: Indirect Costs | B47: Grant Funds | C47: =H22 -> 0
B48: Project Income | C48: =I22 -> 0
A49: Project Income Earned | C49: =I25 -> 0
A50: PERSON PREPARING REPORT | E50: AUTHORIZED FINANCIAL OFFICER | L50: BSCC Supplier Data - Internal Use Only
E51: By checking the box below, I hereby certify that I am the authorized financial officer of the herein named agency. I further certify that I have not violated any of the provisions of Section 1090 of the Government Code in incurring the expenditures reported in this invoice, nor in any other way; that Sections 1090 through 1096 of the Government Code will not be violated in any way in the expenditure of funds pursuant to this invoice; that statement of funds above is true, correct, and in accordance with program provisions in all respects; and that all expenditures submitted after the expiration date of this contract are for the purpose of substantiating obligations legally incurred during the contract period. Furthermore, by submitting this invoice, I acknowledge that it must adhere to all of the requirements in the BSCC Grant Administration Guide, including any updates to the Guide during the term of the grant agreement.
L52: ='INVOICE 11'!L52:N52 -> 146589
A53: Name, Title | L53: Supplier ID
L54: ='INVOICE 11'!L54:N54 -> ARSOLASFOO-001
A55: Phone | L55: Supplier Name
L56: ='INVOICE 11'!L56:N56 -> P.O. Box 5520
A57: Email | L57: Address Line 1
L58: ='INVOICE 11'!L58:N58 -> Oakland, CA 94605
A59: Date | L59: Address Line 2
E62: Name, Title
E64: Phone
E66: Date
A68: BSCC USE ONLY
A69: Date Received: | G69: Approved By: | M69: Date:
I70: BSCC Field Representative

Sheet INVOICE 13
A1: STATE OF CALIFORNIA | L1: Purchase Authority: 5227
A2: BOARD OF STATE AND COMMUNITY CORRECTIONS | L2: ='INVOICE 12'!L2:N2 -> Purchase Order: 2480
A3: Financial Invoice - Form BSCC 201 (Revised 06/2020)
A5: Program: | B5: Adult Reentry Grant | K5: Please Note: The California State Controller's Office will send all checks directly to the address listed in the "BSCC Supplier Data" section at the bottom of this invoice.
A7: Grantee: | B7: ='INVOICE 12'!B7 -> ARSOLA's Distribution Center & Community Services | F7: Project Title: | G7: ='INVOICE 12'!G7:I7 -> RA
A9: Contract #: | B9: ='INVOICE 12'!B9 -> BSCC 416-19 | D9: Term: | E9: 2019-08-01 | F9: TO | G9: 2023-02-28 | L9: Invoicing Frequency | M9: Quarterly
A11: Invoice #: | B11: 13 | D11: Reporting Period: | E11: 2022-07-01 | F11: TO | G11: 2022-09-30 | H11: Due: | I11: 2022-11-15 | L11: Final Invoice (Y/N): | M11: No
A13: Line Items | B13: Budget | E13: Prior Expenditures | H13: This Reporting Period | K13: Balance | N13: Advance Disbursements
B14: Grant Funds | C14: Project Income | D14: TOTAL | E14: Grant Funds | F14: Project Income | G14: TOTAL | H14: Grant Funds | I14: Project Income | J14: TOTAL | K14: Grant Funds | L14: Project Income | M14: TOTAL
A15: Salaries & Benefits | B15: ='INVOICE 12'!B15 -> 833387 | C15: ='INVOICE 12'!C15 -> 0 | D15: =SUM(B15:C15) -> 833387 | E15: =SUM('INVOICE 12'!E15,'INVOICE 12'!H15) -> 320983 | F15: =SUM('INVOICE 12'!F15,'INVOICE 12'!I15) -> 0 | G15: =SUM(E15:F15) -> 320983 | H15: 0 | I15: 0 | J15: =SUM(H15:I15) -> 0 | K15: =B15-E15-H15 -> 512404 | L15: 0 | M15: =SUM(K15:L15) -> 512404 | N15: ='INVOICE 12'!N15 -> 1st Advance [10/23/19]
A16: Services & Supplies | B16: ='INVOICE 12'!B16 -> 2042200 | C16: ='INVOICE 12'!C16 -> 0 | D16: 2042200 | E16: =SUM('INVOICE 12'!E16,'INVOICE 12'!H16) -> 608352 | F16: =SUM('INVOICE 12'!F16,'INVOICE 12'!I16) -> 0 | G16: =SUM(E16:F16) -> 608352 | H16: 0 | I16: 0 | J16: 0 | K16: 1433848 | L16: 0 | M16: 1433848 | N16: ='INVOICE 12'!N16 -> 1000000
A17: Professional Services | B17: ='INVOICE 12'!B17 -> 71000 | C17: ='INVOICE 12'!C17 -> 0 | D17: 71000 | E17: =SUM('INVOICE 12'!E17,'INVOICE 12'!H17) -> 5885 | F17: =SUM('INVOICE 12'!F17,'INVOICE 12'!I17) -> 0 | G17: =SUM(E17:F17) -> 5885 | H17: 0 | I17: 0 | J17: 0 | K17: 65115 | L17: 0 | M17: 65115
A18: NGO Subcontracts | B18: ='INVOICE 12'!B18 -> 0 | C18: ='INVOICE 12'!C18 -> 0 | D18: 0 | E18: =SUM('INVOICE 12'!E18,'INVOICE 12'!H18) -> 0 | F18: =SUM('INVOICE 12'!F18,'INVOICE 12'!I18) -> 0 | G18: 0 | H18: 0 | I18: 0 | J18: 0 | K18: 0 | L18: 0 | M18: 0 | N18: ='INVOICE 12'!N18 -> 2nd Advance [enter date]
A19: Equipment / Fixed Assets | B19: ='INVOICE 12'!B19 -> 0 | C19: ='INVOICE 12'!C19 -> 0 | D19: 0 | E19: =SUM('INVOICE 12'!E19,'INVOICE 12'!H19) -> 0 | F19: =SUM('INVOICE 12'!F19,'INVOICE 12'!I19) -> 0 | G19: 0 | H19: 0 | I19: 0 | J19: 0 | K19: 0 | L19: 0 | M19: 0 | N19: ='INVOICE 12'!N19 -> 1000000
A20: Data Collection & Progress Reporting | B20: ='INVOICE 12'!B20 -> 0 | C20: ='INVOICE 12'!C20 -> 0 | D20: 0 | E20: =SUM('INVOICE 12'!E20,'INVOICE 12'!H20) -> 0 | F20: =SUM('INVOICE 12'!F20,'INVOICE 12'!I20) -> 0 | G20: 0 | H20: 0 | I20: 0 | J20: 0 | K20: 0 | L20: 0 | M20: 0
A21: Other (Travel, Training, etc.) | B21: ='INVOICE 12'!B21 -> 4360 | C21: ='INVOICE 12'!C21 -> 0 | D21: 4360 | E21: =SUM('INVOICE 12'!E21,'INVOICE 12'!H21) -> 417 | F21: =SUM('INVOICE 12'!F21,'INVOICE 12'!I21) -> 0 | G21: 417 | H21: 0 | I21: 0 | J21: 0 | K21: 3943 | L21: 0 | M21: 3943 | N21: ='INVOICE 12'!N21 -> 3rd Advance [enter date]
A22: Indirect Costs | B22: ='INVOICE 12'!B22 -> 49053 | C22: ='INVOICE 12'!C22 -> 0 | D22: =SUM(B22:C22) -> 49053 | E22: =SUM('INVOICE 12'!E22,'INVOICE 12'!H22) -> 46782 | F22: =SUM('INVOICE 12'!F22,'INVOICE 12'!I22) -> 0 | G22: 46782 | H22: 0 | I22: 0 | J22: 0 | K22: 2271 | L22: 0 | M22: 2271 | N22: ='INVOICE 12'!N22 -> 0
A23: TOTAL | B23: =SUM(B15:B22) -> 3000000 | C23: 0 | D23: 3000000 | E23: 982419 | F23: 0 | G23: 982419 | H23: 0 | I23: 0 | J23: 0 | K23: 2017581 | L23: 0 | M23: 2017581 | N23: =SUM(N16+N19+N22) -> 2000000
A25: Project Income | C25: Income reported to date | D25: ='INVOICE 12'!D25+I25 -> 400 | F25: Prior allocated income | G25: 0 | H25: This Period | I25: 0 | L25: Unallocated income balance | M25: =D25-G25 -> 400
C27: Grant funds expended to date: | D27: =SUM(E23,H23) -> 982419 | G27: Grant funds claimed this period: | H27: =H23 -> 0 | L27: Percent of total disbursed
G28: Advance Disbursement Balance: | H28: =N23-D27 -> 1017581 | L28: funds expended to date: | N28: =D27/N23 -> 0.4912095
D32: Expenditure Descriptions - Units / $ Amounts | L32: Comments
A33: Salaries & Benefits | B33: Grant Funds | C33: =H15 -> 0
B34: Project Income | C34: =I15 -> 0
A35: Services & Supplies | B35: Grant Funds | C35: =H16 -> 0
B36: Project Income | C36: =I16 -> 0
A37: Professional Services | B37: Grant Funds | C37: =H17 -> 0
B38: Project Income | C38: =I17 -> 0
A39: NGO Subcontracts | B39: Grant Funds | C39: =H18 -> 0
B40: Project Income | C40: =I18 -> 0
A41: Equipment / Fixed Assets | B41: Grant Funds | C41: =H19 -> 0
B42: Project Income | C42: =I19 -> 0
A43: Data Collection & Progress Reporting | B43: Grant Funds | C43: =H20 -> 0
B44: Project Income | C44: =I20 -> 0
A45: Other (Travel, Training, etc.) | B45: Grant Funds | C45: =H21 -> 0
B46: Project Income | C46: =I21 -> 0
A47: Indirect Costs | B47: Grant Funds | C47: =H22 -> 0
B48: Project Income | C48: =I22 -> 0
A49: Project Income Earned | C49: =I25 -> 0
A50: PERSON PREPARING REPORT | E50: AUTHORIZED FINANCIAL OFFICER | L50: BSCC Supplier Data - Internal Use Only
E51: By checking the box below, I hereby certify that I am the authorized financial officer of the herein named agency. I further certify that I have not violated any of the provisions of Section 1090 of the Government Code in incurring the expenditures reported in this invoice, nor in any other way; that Sections 1090 through 1096 of the Government Code will not be violated in any way in the expenditure of funds pursuant to this invoice; that statement of funds above is true, correct, and in accordance with program provisions in all respects; and that all expenditures submitted after the expiration date of this contract are for the purpose of substantiating obligations legally incurred during the contract period. Furthermore, by submitting this invoice, I acknowledge that it must adhere to all of the requirements in the BSCC Grant Administration Guide, including any updates to the Guide during the term of the grant agreement.
L52: ='INVOICE 12'!L52:N52 -> 146589
A53: Name, Title | L53: Supplier ID
L54: ='INVOICE 12'!L54:N54 -> ARSOLASFOO-001
A55: Phone | L55: Supplier Name
L56: ='INVOICE 12'!L56:N56 -> P.O. Box 5520
A57: Email | L57: Address Line 1
L58: ='INVOICE 12'!L58:N58 -> Oakland, CA 94605
A59: Date | L59: Address Line 2
E62: Name, Title
E64: Phone
E66: Date
A68: BSCC USE ONLY
A69: Date Received: | G69: Approved By: | M69: Date:
I70: BSCC Field Representative

Sheet INVOICE 15
A1: STATE OF CALIFORNIA | L1: Purchase Authority: 5227
A2: BOARD OF STATE AND COMMUNITY CORRECTIONS | L2: ='INVOICE 14'!L2:N2 -> Purchase Order: 2480
A3: Financial Invoice - Form BSCC 201 (Revised 06/2020)
A5: Program: | B5: Adult Reentry Grant | K5: Please Note: The California State Controller's Office will send all checks directly to the address listed in the "BSCC Supplier Data" section at the bottom of this invoice.
A7: Grantee: | B7: ='INVOICE 14'!B7 -> ARSOLA's Distribution Center & Community Services | F7: Project Title: | G7: ='INVOICE 14'!G7:I7 -> RA
A9: Contract #: | B9: ='INVOICE 14'!B9 -> BSCC 416-19 | D9: Term: | E9: 2019-08-01 | F9: TO | G9: 2023-02-28 | L9: Invoicing Frequency | M9: Quarterly
A11: Invoice #: | B11: 15 | D11: Reporting Period: | E11: 2023-01-01 | F11: TO | G11: 2023-02-28 | H11: Due: | I11: 2023-04-14 | L11: Final Invoice (Y/N): | M11: Yes
A13: Line Items | B13: Budget | E13: Prior Expenditures | H13: This Reporting Period | K13: Balance | N13: Advance Disbursements
B14: Grant Funds | C14: Project Income | D14: TOTAL | E14: Grant Funds | F14: Project Income | G14: TOTAL | H14: Grant Funds | I14: Project Income | J14: TOTAL | K14: Grant Funds | L14: Project Income | M14: TOTAL
A15: Salaries & Benefits | B15: ='INVOICE 14'!B15 -> 833387 | C15: ='INVOICE 14'!C15 -> 0 | D15: =SUM(B15:C15) -> 833387 | E15: =SUM('INVOICE 14'!E15,'INVOICE 14'!H15) -> 320983 | F15: =SUM('INVOICE 14'!F15,'INVOICE 14'!I15) -> 0 | G15: =SUM(E15:F15) -> 320983 | H15: 0 | I15: 0 | J15: =SUM(H15:I15) -> 0 | K15: =B15-E15-H15 -> 512404 | L15: 0 | M15: =SUM(K15:L15) -> 512404 | N15: ='INVOICE 14'!N15 -> 1st Advance [10/23/19]
A16: Services & Supplies | B16: ='INVOICE 14'!B16 -> 2042200 | C16: ='INVOICE 14'!C16 -> 0 | D16: 2042200 | E16: =SUM('INVOICE 14'!E16,'INVOICE 14'!H16) -> 608352 | F16: =SUM('INVOICE 14'!F16,'INVOICE 14'!I16) -> 0 | G16: =SUM(E16:F16) -> 608352 | H16: 0 | I16: 0 | J16: 0 | K16: 1433848 | L16: 0 | M16: 1433848 | N16: ='INVOICE 14'!N16 -> 1000000
A17: Professional Services | B17: ='INVOICE 14'!B17 -> 71000 | C17: ='INVOICE 14'!C17 -> 0 | D17: 71000 | E17: =SUM('INVOICE 14'!E17,'INVOICE 14'!H17) -> 5885 | F17: =SUM('INVOICE 14'!F17,'INVOICE 14'!I17) -> 0 | G17: =SUM(E17:F17) -> 5885 | H17: 0 | I17: 0 | J17: 0 | K17: 65115 | L17: 0 | M17: 65115
A18: NGO Subcontracts | B18: ='INVOICE 14'!B18 -> 0 | C18: ='INVOICE 14'!C18 -> 0 | D18: 0 | E18: =SUM('INVOICE 14'!E18,'INVOICE 14'!H18) -> 0 | F18: =SUM('INVOICE 14'!F18,'INVOICE 14'!I18) -> 0 | G18: 0 | H18: 0 | I18: 0 | J18: 0 | K18: 0 | L18: 0 | M18: 0 | N18: ='INVOICE 14'!N18 -> 2nd Advance [enter date]
A19: Equipment / Fixed Assets | B19: ='INVOICE 14'!B19 -> 0 | C19: ='INVOICE 14'!C19 -> 0 | D19: 0 | E19: =SUM('INVOICE 14'!E19,'INVOICE 14'!H19) -> 0 | F19: =SUM('INVOICE 14'!F19,'INVOICE 14'!I19) -> 0 | G19: 0 | H19: 0 | I19: 0 | J19: 0 | K19: 0 | L19: 0 | M19: 0 | N19: ='INVOICE 14'!N19 -> 1000000
A20: Data Collection & Progress Reporting | B20: ='INVOICE 14'!B20 -> 0 | C20: ='INVOICE 14'!C20 -> 0 | D20: 0 | E20: =SUM('INVOICE 14'!E20,'INVOICE 14'!H20) -> 0 | F20: =SUM('INVOICE 14'!F20,'INVOICE 14'!I20) -> 0 | G20: 0 | H20: 0 | I20: 0 | J20: 0 | K20: 0 | L20: 0 | M20: 0
A21: Other (Travel, Training, etc.) | B21: ='INVOICE 14'!B21 -> 4360 | C21: ='INVOICE 14'!C21 -> 0 | D21: 4360 | E21: =SUM('INVOICE 14'!E21,'INVOICE 14'!H21) -> 417 | F21: =SUM('INVOICE 14'!F21,'INVOICE 14'!I21) -> 0 | G21: 417 | H21: 0 | I21: 0 | J21: 0 | K21: 3943 | L21: 0 | M21: 3943 | N21: ='INVOICE 14'!N21 -> 3rd Advance [enter date]
A22: Indirect Costs | B22: ='INVOICE 14'!B22 -> 49053 | C22: ='INVOICE 14'!C22 -> 0 | D22: =SUM(B22:C22) -> 49053 | E22: =SUM('INVOICE 14'!E22,'INVOICE 14'!H22) -> 46782 | F22: =SUM('INVOICE 14'!F22,'INVOICE 14'!I22) -> 0 | G22: 46782 | H22: 0 | I22: 0 | J22: 0 | K22: 2271 | L22: 0 | M22: 2271 | N22: ='INVOICE 14'!N22 -> 0
A23: TOTAL | B23: =SUM(B15:B22) -> 3000000 | C23: 0 | D23: 3000000 | E23: 982419 | F23: 0 | G23: 982419 | H23: 0 | I23: 0 | J23: 0 | K23: 2017581 | L23: 0 | M23: 2017581 | N23: =SUM(N16+N19+N22) -> 2000000
A25: Project Income | C25: Income reported to date | D25: ='INVOICE 14'!D25+I25 -> 400 | F25: Prior allocated income | G25: 0 | H25: This Period | I25: 0 | L25: Unallocated income balance | M25: =D25-G25 -> 400
C27: Grant funds expended to date: | D27: =SUM(E23,H23) -> 982419 | G27: Grant funds claimed this period: | H27: =H23 -> 0 | L27: Percent of total disbursed
G28: Advance Disbursement Balance: | H28: =N23-D27 -> 1017581 | L28: funds expended to date: | N28: =D27/N23 -> 0.4912095
D32: Expenditure Descriptions - Units / $ Amounts | L32: Comments
A33: Salaries & Benefits | B33: Grant Funds | C33: =H15 -> 0
B34: Project Income | C34: =I15 -> 0
A35: Services & Supplies | B35: Grant Funds | C35: =H16 -> 0
B36: Project Income | C36: =I16 -> 0
A37: Professional Services | B37: Grant Funds | C37: =H17 -> 0
B38: Project Income | C38: =I17 -> 0
A39: NGO Subcontracts | B39: Grant Funds | C39: =H18 -> 0
B40: Project Income | C40: =I18 -> 0
A41: Equipment / Fixed Assets | B41: Grant Funds | C41: =H19 -> 0
B42: Project Income | C42: =I19 -> 0
A43: Data Collection & Progress Reporting | B43: Grant Funds | C43: =H20 -> 0
B44: Project Income | C44: =I20 -> 0
A45: Other (Travel, Training, etc.) | B45: Grant Funds | C45: =H21 -> 0
B46: Project Income | C46: =I21 -> 0
A47: Indirect Costs | B47: Grant Funds | C47: =H22 -> 0
B48: Project Income | C48: =I22 -> 0
A49: Project Income Earned | C49: =I25 -> 0
A50: PERSON PREPARING REPORT | E50: AUTHORIZED FINANCIAL OFFICER | L50: BSCC Supplier Data - Internal Use Only
E51: By checking the box below, I hereby certify that I am the authorized financial officer of the herein named agency. I further certify that I have not violated any of the provisions of Section 1090 of the Government Code in incurring the expenditures reported in this invoice, nor in any other way; that Sections 1090 through 1096 of the Government Code will not be violated in any way in the expenditure of funds pursuant to this invoice; that statement of funds above is true, correct, and in accordance with program provisions in all respects; and that all expenditures submitted after the expiration date of this contract are for the purpose of substantiating obligations legally incurred during the contract period. Furthermore, by submitting this invoice, I acknowledge that it must adhere to all of the requirements in the BSCC Grant Administration Guide, including any updates to the Guide during the term of the grant agreement.
L52: ='INVOICE 14'!L52:N52 -> 146589
A53: Name, Title | L53: Supplier ID
L54: ='INVOICE 14'!L54:N54 -> ARSOLASFOO-001
A55: Phone | L55: Supplier Name
L56: ='INVOICE 14'!L56:N56 -> P.O. Box 5520
A57: Email | L57: Address Line 1
L58: ='INVOICE 14'!L58:N58 -> Oakland, CA 94605
A59: Date | L59: Address Line 2
E62: Name, Title
E64: Phone
E66: Date
A68: BSCC USE ONLY
A69: Date Received: | G69: Approved By: | M69: Date:
I70: BSCC Field Representative

Sheet INVOICE 14
A1: STATE OF CALIFORNIA | L1: Purchase Authority: 5227
A2: BOARD OF STATE AND COMMUNITY CORRECTIONS | L2: ='INVOICE 13'!L2:N2 -> Purchase Order: 2480
A3: Financial Invoice - Form BSCC 201 (Revised 06/2020)
A5: Program: | B5: Adult Reentry Grant | K5: Please Note: The California State Controller's Office will send all checks directly to the address listed in the "BSCC Supplier Data" section at the bottom of this invoice.
A7: Grantee: | B7: ='INVOICE 13'!B7 -> ARSOLA's Distribution Center & Community Services | F7: Project Title: | G7: ='INVOICE 13'!G7:I7 -> RA
A9: Contract #: | B9: ='INVOICE 13'!B9 -> BSCC 416-19 | D9: Term: | E9: 2019-08-01 | F9: TO | G9: 2023-02-28 | L9: Invoicing Frequency | M9: Quarterly
A11: Invoice #: | B11: 14 | D11: Reporting Period: | E11: 2022-10-01 | F11: TO | G11: 2022-12-31 | H11: Due: | I11: 2023-02-15 | L11: Final Invoice (Y/N): | M11: No
A13: Line Items | B13: Budget | E13: Prior Expenditures | H13: This Reporting Period | K13: Balance | N13: Advance Disbursements
B14: Grant Funds | C14: Project Income | D14: TOTAL | E14: Grant Funds | F14: Project Income | G14: TOTAL | H14: Grant Funds | I14: Project Income | J14: TOTAL | K14: Grant Funds | L14: Project Income | M14: TOTAL
A15: Salaries & Benefits | B15: ='INVOICE 13'!B15 -> 833387 | C15: ='INVOICE 13'!C15 -> 0 | D15: =SUM(B15:C15) -> 833387 | E15: =SUM('INVOICE 13'!E15,'INVOICE 13'!H15) -> 320983 | F15: =SUM('INVOICE 13'!F15,'INVOICE 13'!I15) -> 0 | G15: =SUM(E15:F15) -> 320983 | H15: 0 | I15: 0 | J15: =SUM(H15:I15) -> 0 | K15: =B15-E15-H15 -> 512404 | L15: 0 | M15: =SUM(K15:L15) -> 512404 | N15: ='INVOICE 13'!N15 -> 1st Advance [10/23/19]
A16: Services & Supplies | B16: ='INVOICE 13'!B16 -> 2042200 | C16: ='INVOICE 13'!C16 -> 0 | D16: 2042200 | E16: =SUM('INVOICE 13'!E16,'INVOICE 13'!H16) -> 608352 | F16: =SUM('INVOICE 13'!F16,'INVOICE 13'!I16) -> 0 | G16: =SUM(E16:F16) -> 608352 | H16: 0 | I16: 0 | J16: 0 | K16: 1433848 | L16: 0 | M16: 1433848 | N16: ='INVOICE 13'!N16 -> 1000000
A17: Professional Services | B17: ='INVOICE 13'!B17 -> 71000 | C17: ='INVOICE 13'!C17 -> 0 | D17: 71000 | E17: =SUM('INVOICE 13'!E17,'INVOICE 13'!H17) -> 5885 | F17: =SUM('INVOICE 13'!F17,'INVOICE 13'!I17) -> 0 | G17: =SUM(E17:F17) -> 5885 | H17: 0 | I17: 0 | J17: 0 | K17: 65115 | L17: 0 | M17: 65115
A18: NGO Subcontracts | B18: ='INVOICE 13'!B18 -> 0 | C18: ='INVOICE 13'!C18 -> 0 | D18: 0 | E18: =SUM('INVOICE 13'!E18,'INVOICE 13'!H18) -> 0 | F18: =SUM('INVOICE 13'!F18,'INVOICE 13'!I18) -> 0 | G18: 0 | H18: 0 | I18: 0 | J18: 0 | K18: 0 | L18: 0 | M18: 0 | N18: ='INVOICE 13'!N18 -> 2nd Advance [enter date]
A19: Equipment / Fixed Assets | B19: ='INVOICE 13'!B19 -> 0 | C19: ='INVOICE 13'!C19 -> 0 | D19: 0 | E19: =SUM('INVOICE 13'!E19,'INVOICE 13'!H19) -> 0 | F19: =SUM('INVOICE 13'!F19,'INVOICE 13'!I19) -> 0 | G19: 0 | H19: 0 | I19: 0 | J19: 0 | K19: 0 | L19: 0 | M19: 0 | N19: ='INVOICE 13'!N19 -> 1000000
A20: Data Collection & Progress Reporting | B20: ='INVOICE 13'!B20 -> 0 | C20: ='INVOICE 13'!C20 -> 0 | D20: 0 | E20: =SUM('INVOICE 13'!E20,'INVOICE 13'!H20) -> 0 | F20: =SUM('INVOICE 13'!F20,'INVOICE 13'!I20) -> 0 | G20: 0 | H20: 0 | I20: 0 | J20: 0 | K20: 0 | L20: 0 | M20: 0
A21: Other (Travel, Training, etc.) | B21: ='INVOICE 13'!B21 -> 4360 | C21: ='INVOICE 13'!C21 -> 0 | D21: 4360 | E21: =SUM('INVOICE 13'!E21,'INVOICE 13'!H21) -> 417 | F21: =SUM('INVOICE 13'!F21,'INVOICE 13'!I21) -> 0 | G21: 417 | H21: 0 | I21: 0 | J21: 0 | K21: 3943 | L21: 0 | M21: 3943 | N21: ='INVOICE 13'!N21 -> 3rd Advance [enter date]
A22: Indirect Costs | B22: ='INVOICE 13'!B22 -> 49053 | C22: ='INVOICE 13'!C22 -> 0 | D22: =SUM(B22:C22) -> 49053 | E22: =SUM('INVOICE 13'!E22,'INVOICE 13'!H22) -> 46782 | F22: =SUM('INVOICE 13'!F22,'INVOICE 13'!I22) -> 0 | G22: 46782 | H22: 0 | I22: 0 | J22: 0 | K22: 2271 | L22: 0 | M22: 2271 | N22: ='INVOICE 13'!N22 -> 0
A23: TOTAL | B23: =SUM(B15:B22) -> 3000000 | C23: 0 | D23: 3000000 | E23: 982419 | F23: 0 | G23: 982419 | H23: 0 | I23: 0 | J23: 0 | K23: 2017581 | L23: 0 | M23: 2017581 | N23: =SUM(N16+N19+N22) -> 2000000
A25: Project Income | C25: Income reported to date | D25: ='INVOICE 13'!D25+I25 -> 400 | F25: Prior allocated income | G25: 0 | H25: This Period | I25: 0 | L25: Unallocated income balance | M25: =D25-G25 -> 400
C27: Grant funds expended to date: | D27: =SUM(E23,H23) -> 982419 | G27: Grant funds claimed this period: | H27: =H23 -> 0 | L27: Percent of total disbursed
G28: Advance Disbursement Balance: | H28: =N23-D27 -> 1017581 | L28: funds expended to date: | N28: =D27/N23 -> 0.4912095
D32: Expenditure Descriptions - Units / $ Amounts | L32: Comments
A33: Salaries & Benefits | B33: Grant Funds | C33: =H15 -> 0
B34: Project Income | C34: =I15 -> 0
A35: Services & Supplies | B35: Grant Funds | C35: =H16 -> 0
B36: Project Income | C36: =I16 -> 0
A37: Professional Services | B37: Grant Funds | C37: =H17 -> 0
B38: Project Income | C38: =I17 -> 0
A39: NGO Subcontracts | B39: Grant Funds | C39: =H18 -> 0
B40: Project Income | C40: =I18 -> 0
A41: Equipment / Fixed Assets | B41: Grant Funds | C41: =H19 -> 0
B42: Project Income | C42: =I19 -> 0
A43: Data Collection & Progress Reporting | B43: Grant Funds | C43: =H20 -> 0
B44: Project Income | C44: =I20 -> 0
A45: Other (Travel, Training, etc.) | B45: Grant Funds | C45: =H21 -> 0
B46: Project Income | C46: =I21 -> 0
A47: Indirect Costs | B47: Grant Funds | C47: =H22 -> 0
B48: Project Income | C48: =I22 -> 0
A49: Project Income Earned | C49: =I25 -> 0
A50: PERSON PREPARING REPORT | E50: AUTHORIZED FINANCIAL OFFICER | L50: BSCC Supplier Data - Internal Use Only
E51: By checking the box below, I hereby certify that I am the authorized financial officer of the herein named agency. I further certify that I have not violated any of the provisions of Section 1090 of the Government Code in incurring the expenditures reported in this invoice, nor in any other way; that Sections 1090 through 1096 of the Government Code will not be violated in any way in the expenditure of funds pursuant to this invoice; that statement of funds above is true, correct, and in accordance with program provisions in all respects; and that all expenditures submitted after the expiration date of this contract are for the purpose of substantiating obligations legally incurred during the contract period. Furthermore, by submitting this invoice, I acknowledge that it must adhere to all of the requirements in the BSCC Grant Administration Guide, including any updates to the Guide during the term of the grant agreement.
L52: ='INVOICE 13'!L52:N52 -> 146589
A53: Name, Title | L53: Supplier ID
L54: ='INVOICE 13'!L54:N54 -> ARSOLASFOO-001
A55: Phone | L55: Supplier Name
L56: ='INVOICE 13'!L56:N56 -> P.O. Box 5520
A57: Email | L57: Address Line 1
L58: ='INVOICE 13'!L58:N58 -> Oakland, CA 94605
A59: Date | L59: Address Line 2
E62: Name, Title
E64: Phone
E66: Date
A68: BSCC USE ONLY
A69: Date Received: | G69: Approved By: | M69: Date:
I70: BSCC Field Representative

Sheet 3rd Advance Payment
A1: STATE OF CALIFORNIA | J1: Purchase Authority: 5227
A2: BOARD OF STATE AND COMMUNITY CORRECTIONS | J2: ='INVOICE 15'!L2 -> Purchase Order: 2480
A3: Advance Payment Invoice - Form BSCC 201A (Revised 06/2020)
B6: Program: | C6: ='INVOICE 1 REVISED'!B5 -> Adult Reentry Grant | H6: Grantee: | I6: ='INVOICE 15'!B7 -> ARSOLA's Distribution Center & Community Services
B8: Contract #: | C8: ='INVOICE 15'!B9 -> BSCC 416-19 | H8: Address | I8: ='INVOICE 15'!L56 -> P.O. Box 5520
J9: Address Line 1
B10: Term: | C10: ='INVOICE 1 REVISED'!E9 -> 2019-08-01 | D10: TO | E10: ='INVOICE 1 REVISED'!G9 -> 2023-02-28 | I10: ='INVOICE 15'!L58 -> Oakland, CA 94605
J11: Address Line 2
B13: Advance Payment # | C13: 3 RA 2019 | G13: Please Note: The California State Controller's Office will send all checks directly to the address listed in the "BSCC Supplier Data" section at the bottom of this invoice.
B15: Effective Invoice #
A18: Advance Payment Invoice
J19: Total Grant Award: | K19: ='1st Advance Payment'!K19 -> 3000000
J20: Advance Total Dispursed To Date: | K20: =SUM(ROUNDUP('1st Advance Payment'!K20:L20+'2nd Advance Payment'!K20:L20,0)) -> 2000000
J21: Final Advance Total: | K21: =K19-K20 -> 1000000
B25: PERSON PREPARING REPORT | G25: AUTHORIZED FINANCIAL OFFICER
G26: I hereby certify that I am the authorized financial officer of the herein named agency. I further certify that I have not violated any of the provisions of Section 1090 of the Government Code in incurring the expenditures reported in this invoice, nor in any other way; that Sections 1090 through 1096 of the Government Code will not be violated in any way in the expenditure of funds pursuant to this invoice; that statement of funds above is true, correct, and in accordance with program provisions in all respects; and that all expenditures submitted after the expiration date of this contract are for the purpose of substantiating obligations legally incurred during the contract period. Furthermore, by submitting this invoice, I acknowledge that it must adhere to all of the requirements in the BSCC Grant Administration Guide, including any updates to the Guide during the term of the grant agreement.
B27: Name, Title
B29: Phone
B31: Email
B33: Date
G36: Name, Title
G38: Phone
G40: Email
G42: Date
G44: Signature
F48: BSCC USE ONLY
B50: Approved By: | J50: BSCC Supplier Data
C51: BSCC Field Representative | I51: ='INVOICE 15'!L54 -> ARSOLASFOO-001
J52: Supplier Name
B53: Date: | I53: ='INVOICE 15'!L52 -> 146589
J54: Supplier Number

Sheet MODIFICATION REQUEST
M1: STATE OF CALIFORNIA
A2: MODIFICATION REQUEST - (FORM BSCC 223.1 (Revised 04/20) | M2: BOARD OF STATE AND COMMUNITY CORRECTIONS
B5: Line-Item Change | F5: Budget Modification | J5: Project Income Allocation
B6: Check this box if you are modifying narrative details within a line item (or line items) but not changing the budget. | F6: Check this box if you are modifying line-item dollar amounts by moving funds from one line-item to another. | J6: Check this box if you are allocating earned project income.
A8: Important Note: You must provide a detailed justification for all modification requests. All modifications require BSCC Field Representative approval.
A10: Grantee: | B10: ='INVOICE 15'!B7 -> ARSOLA's Distribution Center & Community Services | I10: Program: | J10: ='INVOICE 1 REVISED'!B5 -> Adult Reentry Grant
A12: Address | B12: ='INVOICE 15'!L56 -> P.O. Box 5520 | I12: Project Title: | J12: ='INVOICE 15'!G7 -> RA
B14: ='INVOICE 15'!L58 -> Oakland, CA 94605
A16: Contract #: | B16: ='INVOICE 15'!B9 -> BSCC 416-19 | J16: Modification Request #
A18: Term: | B18: ='INVOICE 1 REVISED'!E9 -> 2019-08-01 | C18: ='INVOICE 1 REVISED'!F9 -> TO | D18: ='INVOICE 1 REVISED'!G9 -> 2023-02-28 | J18: Effective on Invoice #
A20: Line Items | B20: Current Budget | E20: Available Budget | H20: Changes (+/-) | K20: Modified Budget
B21: Grant Funds | C21: Project Income | D21: TOTAL | E21: Grant Funds | F21: Project Income | G21: TOTAL | H21: Grant Funds | I21: Project Income | J21: TOTAL | K21: Grant Funds | L21: Project Income | M21: TOTAL
A22: Salaries & Benefits | B22: 833387 | C22: 0 | D22: =SUM(B22:C22) -> 833387 | E22: ='INVOICE 15'!K15 -> 512404 | F22: ='INVOICE 15'!L15 -> 0 | G22: =SUM(E22:F22) -> 512404 | H22: 0 | I22: 0 | J22: =SUM(H22:I22) -> 0 | K22: =SUM(B22,H22) -> 833387 | L22: =SUM(C22,I22) -> 0 | M22: =SUM(K22:L22) -> 833387
A23: Services & Supplies | B23: 2042200 | C23: 0 | D23: 2042200 | E23: ='INVOICE 15'!K16 -> 1433848 | F23: ='INVOICE 15'!L16 -> 0 | G23: 1433848 | H23: 0 | I23: 0 | J23: 0 | K23: 2042200 | L23: 0 | M23: 2042200
A24: Professional Services | B24: 71000 | C24: 0 | D24: 71000 | E24: ='INVOICE 15'!K17 -> 65115 | F24: ='INVOICE 15'!L17 -> 0 | G24: 65115 | H24: 0 | I24: 0 | J24: 0 | K24: 71000 | L24: 0 | M24: 71000
A25: NGO Subcontracts | B25: 0 | C25: 0 | D25: 0 | E25: ='INVOICE 15'!K18 -> 0 | F25: ='INVOICE 15'!L18 -> 0 | G25: 0 | H25: 0 | I25: 0 | J25: 0 | K25: 0 | L25: 0 | M25: 0
A26: Equipment / Fixed Assets | B26: 0 | C26: 0 | D26: 0 | E26: ='INVOICE 15'!K19 -> 0 | F26: ='INVOICE 15'!L19 -> 0 | G26: 0 | H26: 0 | I26: 0 | J26: 0 | K26: 0 | L26: 0 | M26: 0
A27: Data Collection & Progress Reporting | B27: 0 | C27: 0 | D27: 0 | E27: ='INVOICE 15'!K20 -> 0 | F27: ='INVOICE 15'!L20 -> 0 | G27: 0 | H27: 0 | I27: 0 | J27: 0 | K27: 0 | L27: 0 | M27: 0
A28: Other (Travel, Training, etc.) | B28: 4360 | C28: 0 | D28: 4360 | E28: ='INVOICE 15'!K21 -> 3943 | F28: ='INVOICE 15'!L21 -> 0 | G28: 3943 | H28: 0 | I28: 0 | J28: 0 | K28: 4360 | L28: 0 | M28: 4360
A29: Indirect Costs | B29: 49053 | C29: 0 | D29: 49053 | E29: ='INVOICE 15'!K22 -> 2271 | F29: ='INVOICE 15'!L22 -> 0 | G29: 2271 | H29: 0 | I29: 0 | J29: 0 | K29: 49053 | L29: 0 | M29: 49053
A30: TOTAL | B30: =SUM(B22:B29) -> 3000000 | C30: 0 | D30: 3000000 | E30: 2017581 | F30: 0 | G30: 2017581 | H30: 0 | I30: 0 | J30: 0 | K30: 3000000 | L30: 0 | M30: 3000000
A32: Project Income | C32: Income reported to date | D32: ='INVOICE 15'!D25 -> 400 | F32: Prior allocated income | G32: ='INVOICE 15'!G25 -> 0 | H32: Allocating | I32: =I30 -> 0 | L32: Unallocated income balance | M32: =D32-I32 -> 400
A34: JUSTIFICATION FOR MODIFICATION:
A54: PERSON PREPARING REPORT | I54: AUTHORIZED FINANCIAL OFFICER
I55: I hereby certify that I am the authorized financial officer of the herein named agency. I further certify that I have not violated any of the provisions of Section 1090 of the Government Code in incurring the expenditures reported in this invoice, nor in any other way; that Sections 1090 through 1096 of the Government Code will not be violated in any way in the expenditure of funds pursuant to this invoice; that statement of funds above is true, correct, and in accordance with program provisions in all respects; and that all expenditures submitted after the expiration date of this contract are for the purpose of substantiating obligations legally incurred during the contract period. Furthermore, by submitting this invoice, I acknowledge that it must adhere to all of the requirements in the BSCC Grant Administration Guide, including any updates to the Guide during the term of the grant agreement.
A57: Name, Title
A59: Phone
A61: Email
A63: Date
I66: Name, Title
I68: Phone
I70: Date
A72: BSCC USE ONLY
A73: Date Received: | H73: Approved By: | L73: Date:
I74: BSCC Field Representative

Sheet Project Budget NARRATIVE
A2: Project Budget and Budget Narrative for Rental Assistance (UPDATED 3.14.19)
A3: Name of Applicant CBO: | D3: Arsola's House
A4: Project Budget for Rental Assistance
A5: Budget Line Item | G5: Grant Funds
A6: 1. Salaries and Benefits | G6: =G31 -> 930300
A7: 2. Services and Supplies | G7: =G69 -> 2027975
A8: 3. Professional Services | G8: =G101 -> 27700
A9: 4. Non-Governmental Organization (NGO) Subcontracts | G9: =G129 -> 0
A10: 5. Equipment/Fixed Assets | G10: =G148 -> 2170
A11: 6. Data Collection and Progress Reporting | G11: =G165 -> 0
A12: 7. Other (Travel, Training, etc.) | G12: =G184 -> 4360
A13: 8. Indirect Costs | G13: =G198 -> 7495
A14: TOTAL | G14: =SUM(G6:G13) -> 3000000
A15: 1. Salaries and Benefits for Rental Assistance
A16: Name and Title | C16: (% FTE or Hourly Rate) & Benefits | G16: Grant Funds
A17: Example (Hourly): Bob Smith, Fiscal Manager | C17: $60/hour x 10 hours/month x 3 years = $21,600 @ 22% = $4,752 | G17: 4752
A18: Example (FTE): Jane Doe, Counselor | C18: .25 FTE @ $60,000 x 3 years = $45,000 @ 22% = $9,900 | G18: 9900
A19: Candi Thornton, Project Director | C19: .75 FTE @$90,000 x 3.5 yrs & no benefits = | G19: 315000
A20: Catherine Forbes, Administrative Coordinator | C20: .75 FTE @$45,000/yr x 3.5 yrs & no benefits = | G20: 157500
A21: Thomas Forbes, Financial Officer | C21: .50 FTE @$60,000/yr x 3.5 yrs & no benefits = | G21: 210000
A22: Laura McCoy, Data Manager | C22: 1.00 FTE @$60,000 x 3.5 yrs no benefits = | G22: 210000
A23: Salary Deductions | C23: assumes $225/month x 42 months x 4 employees | G23: 37800
G24: 0
G25: 0
G26: 0
G27: 0
G28: 0
G29: 0
G30: 0
A31: TOTAL | G31: =SUM(G19:G30) -> 930300
A32: Salaries and Benefits Narrative for Rental Assistance:
A33: Benefits are not offered to any employees at this time. Payroll deductions assumes $225/mo x 42 mos x 4 employees Project Director works with the Project Coordinator with identifying housing especially large-scale housing (5 units or more) and negotiating large scale housing contracts, troubleshoots issues with rental properties. Is responsible for the overall management of the rental assistance project. Administrative Coordinator assists the Project Director to identify rental units and large-scale rental sources. Orders and oversees furnishing of rental units, identifies and liaison with vendors, responsible for preparing rental progress reports for project staff, conducts pre-move in and post-move out inspections of rental units, maintains list of potential rental properties, performs intake of reentry persons and works with Project Director to identify program participants; supervises project Administrative Assistant, is Office Manager for the project and serves the Human Resources officer. Reports to the Project Director. Project Coordinator coordinates street outreach to homeless reentry persons, outreaches to prisons to identify pre-release persons, troubleshoots issues that may arise between tenants, assists Administrative Coordinator performs intake of potential clients and makes recommendations to Project Director of reentry persons to the Arsola’s House Reentry Housing program as needed. Data Manager coordinates data collection, tallies and performs data analysis. Creates data collection tool as needed or adapts existing survey tool. Uses best practices to set survey parameters and protocol. Ensure participant privacy. Responsible for creating all systems, policies and procedures used for the rental housing program and for project office, ensuring smooth delivery of both project and project office operations. Reports to the Project Director.
A55: MOD 1 Effective Invoice 1 Revised APPROVAL DATE: 1/15/2021 v.s.
A56: Salaries and Benefits Line Item Category: Position Title % FTE or Hourly Rate & Benefits Grant Funds Project Director $10,000*.75% FTE = $7,500x43 months - No Benefits $322,500 Administrative Coordinator $7,500*.25% FTE=$1,875x15 months - No Benefits $28,125 Financial Officer $8,000*.25% FTE=$2,000x43 months - No Benefits $ 86,000 Financial Assistant $6,400*.50% FTE=$3,200x17 months - No Benefits $54,400 Data Manager $7,500*.50% FTE=$3,750x15 months - No Benefits $56,250 Executive Assistant $4,320*.75% FTE=$3,240x28 months - No Benefits $90,720 Program Manager $5,000*.75% FTE=$3,750x28 months - No Benefits $105,000 Salary Deductions Eliminated line item 0 Employer Payroll Taxes Total Salaries $742,995 average 10% of Wages for 43 months $74,300 Payroll Processing Fees Total ADP average monthly payroll processing, Quarterly/Annual payroll reports, HR service fees for 43 months 10,932 Workers Compensation Insurance Estimated $120 for 43 months 5,160 Total 833,387 Justification: We request the Project Director be increased by $7,500 to correct a miscalculation of the time of service from 3.5 years to 43 months. We request for the Administrative Coordinator position to be a temporary position that will be funded from 8/1/2019-10/31/2020. This position will be eliminated as of 10/31/2020 because it is being replaced by the Executive Assistant. We request to reduce the time allocation for the Financial Officer from .50 FTE to .25 FTE because we realized the Financial Officer was not spending .50 FTE to complete the responsibilities for that position. We request to add a new detail line item allocation of $54,400 for a Financial Assistant position to be a temporary position to perform bookkeeping and payroll processing duties that will be funded from 9/1/2019-1/31/2021. This position will be eliminated as of 1/31/2021 and duties will be incorporated by the Financial Officer. We request for the Data Manager position to be a temporary position that will be funded from 8/1/2019-10/31/2020. This position will be eliminated as of 10/31/2020 because these duties are being incorporated into the Program Manager position. We request to add a new detail line for an Executive Assistant allocating $90,720 because we realized we need a daily operating assistant to coordinate and maintain our program responsibilities as well as requirements (job description attached) We request to add a new detail line for a Program Manager allocating $105,000 because we recognize that we need an employee that focuses on our program activities, participant recruitments, supportive services, outcomes and to further develop the program requirements (job description attached) We are eliminating the Salary Deductions line item expenditures originally budgeted in this category because it did not relate to any payroll expenses. We request to add a new detail line for Employer Payroll Taxes allocating $74,300 because the original budget did not include the Payroll Tax portion paid by Employer. Average amount is 10% of wages. We request to add a new detail line for Payroll Process Fees allocating $10,932 because the original did not include payroll service fees. These fees cover expenses such as Payroll Processing, Human Resource Support, Quarterly Reports and Annual Reports. We request to add a new detail line for Workers Compensation Insurance allocating $5,160 because the original budget did not include Worker’s Compensation Insurance for staff.
A59: 2. Services and Supplies for Rental Assistance
A60: Description of Services or Supplies | C60: Calculation for Expenditure | G60: Grant Funds
A61: Example: Supportive Services (bus passes, gas cards, office supplies, uniforms) | C61: $350 x 50 Participants | G61: 17500
A62: Rents | C62: assumes 32 units x $4,500 move in costs each = $144,000 + $1,500/month rent per unit x 32 units x 38 months | G62: 1968000
A63: Rental Services | C63: PGE assumes $47.78/months x 38 months x 32 units = $29,052.50. EBMUD (water) assumes $$47.78/months x 38 months x 32 units = $29,052.50. | G63: 50610
A64: Office Supplies | C64: Windows software assumes $199 x 3.5 years for 1 PC = $597.00; Microsoft Office software assumes $12.50/month x 3.5 years MS Office for up to 5 tablets or 5 PCs laptops = $525.00; Copier paper assumes one case every 6 months @$32.99 per case = $230.93; general office supplies = $2,543.99 over 3.5 years | G64: 2897
A65: Office Services | C65: Cell phone stipend for use of personal cell phones assumes $20.00/month x 42 months x 3 staff (Administrative Coordinator, Project Director and Data Manager) = $2,520.00; Internet Provider = $1,428.00 assuming $34/month x 42 months. Website Hosting assumes $60/months x 42 months = $2,520.00. Office Rents at $14,400 for 3.5 years; PGE at $8,400 for 3.5 year, and Waste Management at $2,420 for 3.5 years are in kind from Arsola’s House. | G65: 6468
G66: 0
G67: 0
G68: 0
A69: TOTAL | G69: =SUM(G62:G68) -> 2027975
A70: Services and Supplies Narrative for Rental Assistance:
A71: Rents assumes 32 units x $4,500 move in = $144,000 + $1,500/month rent per unit x 38/months x 32 units = $1,824,000 Rental Services: PGE assumes $47.78/months x 38 months x 32 units = $29,052.50. EBMUD (water) assumes $$47.78/months x 38 months x 32 units = $29,052.50. We will offer a flat rate per month for PGE and water to landlords that do not include these servies in the rental amount. Program Participants will be expected to seek assistance from the service provider and other CBOs to cover any additional charge each month. Office Supplies: office supplies needed for the project are calculated at a minimum to keep costs low. It is estimated we will need the following: Windows software for 1 PC = $597.00; Microsoft Office software for 3.5 years = $525.00; one case of copier paper every 6 months @$32.99 per case = $231; general office supplies = $2,544 over 3.5 years. Office Services: Project staff will work remotely and receive a monthly stipend of $20.00 each (Administrative Coordinator, Project Director and Data Manager) = $2,520.00; Internet Provider = $1,428.00 assuming $34/month x 42 months. Website Hosting assumes $60/months x 42 months = $2,520.00. Office Rents at $14,400 for 3.5 years; PGE at $8,400 for 3.5 year, and Waste Management at $2,420 for 3.5 years are in kind from Arsola’s House.
A88: MOD 1 Effective Invoice 1 Revised APPROVAL DATE: 1/15/2021 v.s.
A89: Services and Supplies Line Item Category: Description of Service or Supplies Calculation for Expenditure Grant Funds Office Rent $1,500 a month for 29 months $43,500 Participant Rent $1,500 a month for 68 participants for19 months $1,938,000 Security Deposit $1,500 avg. rent deposits for 34 properties $51,000 Move-In & Move Out Costs $125 Est. average cost x 30 units / $3,750 $175 Est x x 34 units / $5,950 $9,700 Total $2,042,200 Justification: We are requesting to eliminate the detail lines for Office Supplies because we plan to address these costs via the Indirect Cost Line Item Category. We are requesting to eliminate the detail line for Office Services because those costs were originally miscalculated and not properly identified. The Rental Services detail line is being eliminated because utilities are included in the monthly rent amount. We are requesting to add a new detail line for Office Rent because it is necessary to have an office suite for the maintenance of the ARG program records and documents and to interview the incoming participants. We secured the new office space effective 10/1/2020 in the amount of $1500 per month. We are requesting to add a new detail line for Security Deposits allocating $51,000 because this was originally included with the “Participant Rents” and we discovered that we will not likely need to pay deposits for each participant because we will backfill vacancies as participants are eligible to remain in housing for 19 months. We are requesting to add a new detail line for Move-In & Move-Out Costs allocating $8680 because the original budget did not include these costs. Estimated average costs will cover: Cleaning, Furnishing & Supplies $125 x 30 units = $3750 Repairs & Maintenance $175 x 34 units = $4930 Total = $8680 We are also requesting to change the detail line originally identified as “Rents” to “Participant Rents” and we are reducing that line from $1,968,000 to $1,938,000 because the original budget miscalculated rents for 32 units @ $1500 and included $4500 for deposits and expenses. However, the “Participant Rents” should be calculated at $1500 x 19 months x 68 participants = $1,938,000.
A91: 3. Professional Services for Rental Assistance
A92: Description of Professional Service(s) | C92: Calculation for Expenditure | G92: Grant Funds
A93: Example: Public Defender | C93: Statewide Program Rate | G93: 15000
A94: Legal | C94: assumes $200/hr x 50 hrs over 3.5 years, as needed | G94: 10000
A95: Website Maintenance | C95: assumes $60/mo x 42 mos for maintenance, $300 for redesign | G95: 2700
A96: Project Assistant | C96: assumes @10 hrs/wk @$31.25/hr for 1 year. no benefits | G96: 15000
G97: 0
G98: 0
G99: 0
G100: 0
A101: TOTAL | G101: =SUM(G94:G100) -> 27700
A102: Professional Services Narrative for Rental Assistance:
A103: Legal: assumes $200 per hour for 50 hours over 3.5 years. Services will be on an as needed basis for document review and advice. Website Maintenance: assumes $300 flat rate for one-time update to existing website to include grant award announcement, project description, an application for housing as well as an inquiry form for potential landlords. Monthly website maintenance at $30/hour for 2 hours per month for project updates including announcements of upcoming orientations for potential landlords. Project Assistant assumes 10 hours per week @$31.25/hour for one year. No benefits. Responsible for developing and administering the pre-release and the street outreach portions of the project. Contacts prisons and establishes relationships with personnel to identify soon to be released persons who will be homeless upon release, perform intakes, assist Project Director and Administrative Coordinator with application review and makes recommendations on who to accept.
A116: MOD 1 Effective Invoice 1 Revised APPROVAL DATE: 1/15/2021 v.s.
A117: Professional Services: Description of Professional Service Calculation for Expenditure Grant Funds Operational Consultant Average $2,000 a month for 28 months 56,000 Accountant (CPA) Average $3,000 a year for 2019-2023 reporting periods. 15,000 Total 71,000 Justification: We are requesting to eliminate the original detail line items for Legal and Website Maintenance because these costs are more appropriately accounted for in the Indirect Cost Line Item Category. The Project Assistant is being eliminated because we realized the duties and tasks that were originally identified are included in the salary position of the Program Manager, as such, this position was not necessary. The Operational Consultant is a new addition and will support the projects State compliances requirements and to develop an operational system to provide computerized analysis of program financials & service outcomes. The position will be paid an average of $2,000 each month; however, the actual monthly charges may vary each month. The CPA will be responsible for preparing Financial Statements and Tax Returns for the exclusive preparation of ARG program years 2019-2023.
A119: 4. Non-Governmental Organizations (NGO) Subcontracts for Rental Assistance
A120: Description of Subcontract | C120: Calculation for Expenditure | G120: Grant Funds
A121: Example: Private Industrial Council | C121: Training Class $450 x 25 participants | G121: 11250
G122: 0
G123: 0
G124: 0
G125: 0
G126: 0
G127: 0
G128: 0
A129: TOTALS | G129: =SUM(G122:G128) -> 0
A130: Non-Governmental Organizations (NGO) Subcontracts Narrative for Rental Assistance:
A135: MOD x APPROVAL DATE:
A138: 5. Equipment/Fixed Assets for Rental Assistance
A139: Description of Equipment/Fixed Asset | C139: Calculation for Expense | G139: Grant Funds
A140: Example: Purchase of Vehicle | C140: Toyota Prius @ Market Value | G140: 24000
A141: Laser printer /copier/fax/scanner | C141: high speed copier/fax and scanner to reproduce, send and store project documents | G141: 1025
A142: 2 - HP Chromebook Model X2 12-F014DX | C142: ($398 each) for use by Administrative Coordinator and Data Manager; | G142: 796
A143: 1 - MS Surface Go Model MHN-0000 tablet | C143: ($349 each) for use by Administrative Coordinator and Project Assistant for intakes | G143: 349
G144: 0
G145: 0
G146: 0
G147: 0
A148: TOTALS | G148: =SUM(G141:G147) -> 2170
A149: Equipment/Fixed Assets Narrative for Rental Assistance:
A150: Laser printer /copier/fax/scanner @$ $1,025; 2 - HP Chromebook Model X2 12-F014DX ($398 each) for use by Administrative Coordinator and Data Manager;1 - MS Surface Go Model MHN-0000 tablet ($349 each) for use by Administrative Coordinator and Project Assistant for intakes
A154: MOD 1 Effective Invoice 1 Revised APPROVAL DATE: 1/15/2021 v.s.
A155: Equipment/Fixed Assets Line Item Category: We are eliminating the expenditures originally budgeted in this category. Justification: We are eliminating the items charged in the original budget because the expense is nominal and would be better accounted for in the Indirect Cost Line Item.
A157: 6. Data Collection and Progress Reporting for Rental Assistance
A158: Description | G158: Grant Funds
A159: Example: Data Collection & Reporting Efforts @ 7% | G159: 10329
G160: 0
G161: 0
G162: 0
G163: 0
G164: 0
A165: TOTAL | G165: =SUM(G160:G164) -> 0
A166: Data Collection and Progress Reporting Narrative for Rental Assistance:
A167: Data Collection and Reporting Efforts are captured elsewhere in the budget. The Data Manager salary, necessary equipment (tablet and laptop), software, and travel to and from BSCC trainings and conferences are shown in the appropriate categories. No additional costs for data collection and reporting are anticipated.
A172: MOD x APPROVAL DATE:
A175: 7. Other (Travel, Training, etc.) for Rental Assistance
A176: Description | C176: Calculation for Expense | G176: Grant Funds
A177: Example: Training Classes | C177: $500/partipant x 30 participants | G177: 15000
A178: Travel and Per Diem | C178: assumes RT car travel 2x per year to BSCC in Sacramento = 4 one way trips @ 95 miles x .58 miles x 4 people (Project Director, Financial Director, Administrator Coordinator, Data Financial Officer, Data Manager) + $66.00/M&IE x 4 persons | G178: 1000
A179: Mileage | C179: assumes $20/month mileage stipend x 4 (Project Director, Fin Officer, Proj Admin, Data Mgr) x 42 months | G179: 3360
G180: 0
G181: 0
G182: 0
G183: 0
A184: TOTAL | G184: =SUM(G178:G183) -> 4360
A185: Other (Travel, Training, etc.) Narrative for Rental Assistance:
A186: Travel and Per Diem: assumes 4 staff will travel twice per year to BSCC Sacramento for training and reentry housing conference, using vernment mileage rate of .58 cents per mile. Per diem assumes government rate of $66.00 per person.
A191: MOD x APPROVAL DATE:
A194: 8. Indirect Costs for Rental Assistance
A195: For this grant program, indirect costs may be charged using only one of the two options below: | G195: Grant Funds
A196: 1. Indirect costs will be charged as 10% of total direct salaries and wages, not to exceed: | F196: =G31*10% -> 93030 | G196: 0
A197: 2. Indirect costs will be charged as 5% of direct total direct project costs (except equipment) not to exceed: | F197: =SUM(G184,G165,G129,G101,G69,G31)*5% -> 149516.75 | G197: 7495
A198: If the amount entered above turns red, please adjust it to not exceed the line-item limit noted: TOTAL | G198: =SUM(G196:G197) -> 7495
A199: Indirect Costs Narrative for Rental Assistance:
A204: MOD 1 Effective Invoice 1 Revised APPROVAL DATE: 1/15/2021 v.s.
A205: Indirect Cost Line Item Category: 5% of total project cost $49,053. Justification: To correct a miscalculation of the original budget submitted which allocated $7,495. We want to add $41,558 to this category to include indirect costs for operational rental assistance expenses. Amount will be no more than allowed amount based on the calculation of the budget.

Sheet INVOICE DUE DATES
A1: Invoice # | B1: Reporting Period | C1: Due Date
A2: Invoice 1 | B2: August 1, 2019 to September 30, 2019 | C2: 2019-11-15
A3: Invoice 2 | B3: October 1, 2019 to December 31, 2019 | C3: 2020-02-14
A4: Invoice 3 | B4: January 1, 2020 to March 31, 2020 | C4: 2020-05-15
A5: Invoice 4 | B5: April 1, 2020 to June 30, 2020 | C5: 2020-08-14
A6: Invoice 5 | B6: July 1, 2020 to September 30, 2020 | C6: 2020-11-16
A7: Invoice 6 | B7: October 1, 2020 to December 31, 2020 | C7: 2021-02-15
A8: Invoice 7 | B8: January 1, 2021 to March 31, 2021 | C8: 2021-05-14
A9: Invoice 8 | B9: April 1, 2021 to June 30, 2021 | C9: 2021-08-16
A10: Invoice 9 | B10: July 1, 2021 to September 30, 2021 | C10: 2021-11-15
A11: Invoice 10 | B11: October 1, 2021 to December 31, 2021 | C11: 2022-02-15
A12: Invoice 11 | B12: January 1, 2022 to March 31, 2022 | C12: 2022-05-16
A13: Invoice 12 | B13: April 1, 2022 to June 30, 2022 | C13: 2022-08-15
A14: Invoice 13 | B14: July 1, 2022 to September 30, 2022 | C14: 2022-11-15
A15: Invoice 14 | B15: October 1, 2022 to December 31, 2022 | C15: 2023-02-15
A16: Invoice 15 | B16: January 1, 2023 to February 28, 2023 | C16: 2023-04-14

Sheet INSTRUCTIONS
A1: Invoice Workbook
A3: How to Locate the Invoice Workbook
A4: Invoice workbooks are located on the Board of State and Community Corrections (BSCC) website under the Corrections Planning and Grant Programs Division (CPGP) webpage: http://www.bscc.ca.gov/s_correctionsplanningandprograms/.
A6: On the CPGP webpage, locate the CPGP Quick Links and select Grantee Invoicing.
A8: Invoice Workbooks are located under the respective grantee program (e.g., California Violence Intervention and Prevention, Edward Byrne Memorial Justice Assistance Grant, Law Enforcement Assisted Diversion, Proposition 47, etc.).
A10: How to Save the Invoice Workbook
A11: Right click on the file and select Save Link as. This will navigate the grantee to their computer files. The grantee shall navigate to a folder where they would like to save their Invoice Workbook. Do not rename the file.
A13: The grantee should then exit the web browser and work directly from the saved file.
A15: Prior to each reporting period, it is the grantee’s responsibility to download and save the Invoice Workbook to their local computer. This will ensure the most current budget information is being used in the Invoice Workbook.
A17: Forms Included in the Invoice Workbook
A18: The Invoice Workbook is an Excel file arranged by worksheet tabs (located along the bottom). The tabs included in the Invoice workbook are listed below:
A19:  Invoice (Form BSCC 201) for each reporting period;
A20:  Advance Payment (Form BSCC 201) for each of three advance disbursements;
A21:  Modification Request (Form BSCC 223.1 Rev 4/20);
A22:  Original Budget
A23:  Project Budget Narrative
A24:  Invoice Due Dates
A25:  Instructions.
A27: Passwords and Formulas in the Invoice Workbook
A28: Each time the grantee opens the Invoice workbook, they will be prompted to enter a password. The password is the grant agreement number (e.g. 990-19, include the -, do not include BSCC).
A30: The Invoice Workbook has specific functions which require macros to be enabled. A macro is a series of commands, such as calculations, that are stored within the document for tasks performed repeatedly. In most cases, Excel will prompt the grantee to enable macros. When this prompt appears, select Enable Editing then Enable Content. Enabling macros for the Invoice Workbook will not compromise the security of the local system nor the security of the agency's network.
A33: Financial Invoice - Form BSCC 201
A35: How to Complete a Financial Invoice
A36: Each Financial Invoice has a separate workbook tab titled, INVOICE #. The Financial Invoice will allow grantees to enter data into the green-shaded fields; all other fields are locked.
A38: The following instructions are for the green-shaded fields the Invoice to be completed by the Grantee.
A40: THIS REPORTING PERIOD
A41: The grantee shall enter the line item expenditures incurred and project income earned during the reporting period.
A42: All expenditures should be rounded to the nearest whole dollar; do not enter decimals.
A43: If an amount entered into a cell is greater than the available balance, an Invalid Dollar error message will appear. If the error is typographical, select Retry and enter the correct amount. If the amount entered is correct, however greater than the available balance, select Cancel and submit a Budget Modification. See, Budget Modification details below.
A44: REPORTING EARNED PROJECT INCOME
A45: Any income you make from your award is considered project income and must be reported on the Financial Invoice form. When project income is earned, grantee will report this earned income on the Project Income row of the Financial Invoice in the “This Period” section. Grantee will also provide detail on the project income earned in the “Expenditure Descriptions – Units / $ Amounts” section in the “Project Income Earned” row of the Financial Invoice. Examples may include: amount of client reimbursement to landlord/project for rent and/or interest generated on grant funds held in a bank account. (See Grant Administration Guide, Section 13, Project and Other Income for more detail on project income and reporting requirements.)
A47: EXPENDITURE DESCRIPTION
A48: For each dollar amount entered as an expenditure, enter a brief but detailed description. Your expenditures should correlate to Project Budget Narrative, which is listed on its own tab along with approved modification requests.
A50: PERSON PREPARING REPORT
A51: The grantee will designate an individual to prepare invoices. The Authorized Financial Officer cannot prepare invoices.
A52: The individual who prepares invoices will provide their contact information and the date the invoice was prepared under the PERSON PREPARING REPORT section. Then, forward the Invoice Workbook to the Authorized Financial Officer for review and approval.
A54: AUTHORIZED FINANCIAL OFFICER
A55: The Authorized Financial Officer is the Financial Officer listed in the Grant Agreement, STD 213 and/or Grantee Contact Information Sheet, Form 227.
A56: The Authorized Financial Officer cannot be the Project Director or the individual preparing the invoice.
A57: The Authorized Financial Officer must review each line item expenditure and description. Then, approve the invoice by checking the certification box and providing their contact information and the date of approval.
A58: Once the invoice is approved, the Authorized Financial Officer shall email the Invoice Workbook to the any grant inbox: adultreentrygrant@bscc.ca.gov. The Authorized Financial Officer is the only authorized party to submit an Invoice Workbook to the BSCC.
A59: Approved Financial Invoice
A60: Once BSCC staff reviews and approves the Financial Invoice, an updated Invoice Workbook will be available on the BSCC website. All approved Financial Invoices will be locked from editing but will be viewable in the Invoice Workbook.
A62: Advance Payment Invoice – Form 201A
A64: How to Complete the Advance Payment Invoice
A65: Each Advance Payment Invoice has a separate workbook tab titled, # ADVANCE PAYMENT. The Advance Payment Invoice will allow grantees to enter data into the green shaded fields; all other fields are locked.
A66: To complete the Advance Payment form, grantees must complete the following:
A67:  Idenitfy the effective invoice
A68:  Idenitfy the person preparing the report
A69:  Complete the information and signature for the Authorized Financial Officer.
A70: Advance Disbursement Details
A71: Grantees will receive three advance payments throughout the life of the grant agreement. Each advance payment will be one-third of the total grant award.
A72: Eighty percent of the total advance disbursement must be expended prior to requesting the next advance payment.
A73: Approved Advance Payment Invoice
A74: Once BSCC staff reviews and approves the Advance Payment Invoice, the updated Invoice Workbook will be emailed to the Authorized Financial Officer and the individual that prepared the report. All approved Advance Payment Invoices will be locked from editing but will be viewable in the Invoice Workbook.
A76: Modification Request - Form BSCC 223.1
A78: Modification Request Requirements
A79: It is the grantees responsibility to receive prior approval from the Field Representative for modifications to the budget or budget narrative. Once the Field Representative approves a modification to the budget or budget narrative, the grantee may complete and submit a Modification Request.
A80: The Modification Request Form allows the grantee to:  Make a change within a line-item change that modifies the grant project narrative, but does not change the total dollar amount of the line item.  Modify the budget by moving funds from one line item to another; or  Allocate earned project income
A82: The grantee must allow a minimum of 10 working days, for the modification form to be submitted and approved by the BSCC prior to completing the next invoice.
A84: How to Complete a Modification Request
A85: Grantees can access the Modification Request form by selecting the tab titled, MODIFICATION REQUEST. For the Modification Request form, grantees can enter data into the yellow-shaded fields; all other fields are locked. First, the grantee must select the purpose of the modification by checking the appropriate box in the yellow section at the top of the form.
A87: The following instructions are for the yellow-shaded fields in the Modification Request to be completed by the Grantee.
A89: Modification Request # and Effective on Invoice #
A90: The grantee shall identify the budget modification number by selecting the next number in sequential order (1 if it's the first) and then identify on which invoice the modification becomes effective.
A92: CHANGES (+/-) and JUSTIFICATION FOR MODIFIED BUDGET
A93: Line-item changes - Complete only the JUSTIFICATION FOR MODIFICATION section below the budget table. The justification must: list the affected line-item(s), detail how the original budget narrative has changed, and explain why the change is necessary. Line-item changes do not change the budget $$. Budget modifications - complete the CHANGES (+/-) section by using a + (plus symbol) followed by a whole dollar amount in the line item that is increasing and using a - (minus symbol) followed by a whole dollar amount in the line item that is decreasing. The TOTAL line must show zeros. In addition, complete the JUSTIFICATION FOR MODIFICATION section. The justification must: list the affected line-item(s), detail how the original budget narrative has changed, and explain why the change is necessary Project Income Allocation - use the Project Income column in the CHANGES (+/-) to show how the income will be allocated across line-items. In addition, complete the JUSTIFICATION FOR MODIFICATION section. The justification must: list the affected line-item(s) and provide narrative detail about how the project income will be used to advance program objectives. (See Grant Administration Guide, Section 13, Project and Other Income)
A95: PERSON PREPARING REPORT
A96: The grantee will designate an individual to prepare Modification Requests. The Authorized Financial Officer cannot prepare Modification Requests.
A97: The individual who prepares the request will provide their contact information and the date the modification was prepared under the PERSON PREPARING REPORT section. Then, forward the Invoice Workbook to the Authorized Financial Officer for review and approval.
A99: AUTHORIZED FINANCIAL OFFICER
A100: The Authorized Financial Officer is the Financial Officer listed in the Grant Agreement, STD 213 and/or Grantee Contact Information Sheet, Form 227.
A101: The Authorized Financial Officer cannot be the Project Director or the individual preparing the modification request.
A102: The Authorized Financial Officer must review each line item change, narrative change and justifications. Then, approve the modification request by checking the certification box and providing their contact information and the date of approval.
A103: Once the modification request is approved, the Authorized Financial Officer shall email the Invoice Workbook to the any grant inbox: adultreentrygrant@bscc.ca.gov. The Authorized Financial Officer is the only authorized party to submit it an Invoice Workbook to the BSCC.
A105: Approved Modification Request
A106: Once BSCC staff reviews and approves the Modification Request, the updated Invoice Workbook will be emailed to the Authorized Financial Officer and the individual who prepared the re quest. All approved modifications will be locked from editing but will be viewable in the Invoice Workbook.
